Workbook

Sheet AÇIKLAMA

Sheet BİLGİ GİRİŞİ
D5: DOĞRUDAN TEMİN PROGRAMI
D7: Üst İdare Adı | O7: BULANIK KAYMAKAMLIĞI
D8: İdare Adı | O8: Atatürk İlkokulu Müdürlüğü | AN8: ne
D9: Mal/Hizmet/Yapım Adı, Niteliği | O9: Bilişim Malzemeleri Alımı
D10: Alım/Temin Usulü | O10: 22/d
D11: DTN (Doğrudan Temin Numarası) | O11: 22DT1211930
AB12: Bütçe Tertibi | AJ12: 6.98.255.9436.13.67.01.03.05.30.02
D13: NO | E13: BELGE ADI/ BELGE AÇ | O13: TARİHİ | S13: ÖNİZLEME | W13: YAZDIRMA | AB13: Kullanılabilir Ödenek Tutarı | AJ13: 45000
D14: 1 | E14: Alım/Görevlendirme Oluru
E15: Alım/Görevlendirme Oluru Tarihi-Sayısı >> | O15: 2023-03-06 | S15: 456789123 | AB15: PİYASA ARAŞTIRMA GÖREVLİLERİ
D16: 2 | E16: Yaklaşık Maliyet Araştırma Yazısı | O16: 2023-03-06 | AB16: Piyasa Araştırma Görevlisi | AH16: Piyasa Araştırma Görevlisi | AN16: Piyasa Araştırma Görevlisi | AT16: OLUR/UYGUNDUR
D17: 3 | E17: Yaklaşık Maliyet Hesap Cetveli | O17: 2023-03-07 | AB17: Ahmet DEMİR | AH17: Ayşe YILDIZ | AT17: Mustafa AYDIN
D18: 4 | E18: Doğrudan Temin Onay Belgesi | O18: 2023-03-06 | AB18: Müdür Yardımcısı 1 | AH18: Öğretmen 1 | AT18: Okul Müdürü
D19: 5 | E19: Teklif Vermeye Davet Yazısı | O19: 2023-03-06
E20: Teklif Geçerlilik Tarihi >> | O20: 2023-03-08 | AB20: MUAYENE VE KABUL GÖREVLİLERİ
D21: 6 | E21: İdari veTeknik Şartlar | AB21: Muayene ve Kabul Görevlisi | AH21: Muayene ve Kabul Görevlisi | AN21: Muayene ve Kabul Görevlisi | AT21: OLUR/UYGUNDUR
D22: 7 | E22: Piyasa Araştırma Tutanağı | O22: 2023-03-08 | AB22: Mehmet ÇELİK | AH22: Fatma GÜNEŞ | AT22: Mustafa AYDIN
D23: 8 | E23: Muayene ve Kabul Tutanağı | O23: 2023-03-08 | AB23: Müdür Yardımcısı 2 | AH23: Öğretmen 2 | AT23: Okul Müdürü
AB25: YAKLAŞIK MALİYET ARAŞTIRMASI
D27: MAL'IN/HİZMET'İN/YAPIM İŞİ'NİN | AB27: ARAŞTIRMA YAPILAN KİŞİLER/FİRMALAR VE VERDİKLERİ FİYATLAR (KDV HARİÇ)
D28: S | E28: =IF((COUNTIF(BA29:BA89,"*x*"))>=1,"Bu alanda (x ile işaretlenen satırda) hücrelerin birinde veya birkaçında fazla veri var! Siliniz!","ADI") -> ADI | T28: MİKTARI | W28: BİRİMİ | Z28: KDV (%) | AB28: A GERÇEK/TÜZEL KİŞİSİ | AJ28: B GERÇEK/TÜZEL KİŞİSİ | AR28: C GERÇEK/TÜZEL KİŞİSİ | BN28: 1 | BO28: 1
AB29: Birim Fiyatı | AF29: Toplam Fiyatı | AJ29: Birim Fiyatı | AN29: Toplam Fiyatı | AR29: Birim Fiyatı | AV29: Toplam Fiyatı
D30: =IF(E30="","",1) -> 1 | E30: AIO (All In One) Masaüstü Bilgisayar | T30: 2 | W30: Adet | Z30: 20 | AB30: 2000 | AF30: =IF(AB30="","",T30*AB30) -> 4000 | AJ30: 3000 | AN30: =IF(AB30="","",T30*AJ30) -> 6000 | AR30: 4000 | AV30: =IF(AB30="","",T30*AR30) -> 8000 | BA30: =IF(E30="",IF(OR(T30<>"",W30<>"",Z30<>"",AB30<>"",AJ30<>"",AR30<>""),"x",""),"✓") -> ✓
D31: =IF(E31="","",2) -> 2 | E31: Fotokopi Makinesi | T31: 2 | W31: Adet | Z31: 10 | AB31: 3000 | AF31: =IF(AB31="","",T31*AB31) -> 6000 | AJ31: 4000 | AN31: =IF(AB31="","",T31*AJ31) -> 8000 | AR31: 5000 | AV31: =IF(AB31="","",T31*AR31) -> 10000 | BA31: =IF(E31="",IF(OR(T31<>"",W31<>"",Z31<>"",AB31<>"",AJ31<>"",AR31<>""),"x",""),"✓") -> ✓
D32: =IF(E32="","",3) -> 3 | E32: Projektör | T32: 2 | W32: Adet | Z32: 1 | AB32: 4000 | AF32: 8000 | AJ32: 5000 | AN32: 10000 | AR32: 6000 | AV32: 12000 | BA32: ✓
D33: =IF(E33="","",4) -> 
D34: =IF(E34="","",5) -> 
D35: =IF(E35="","",6) -> 
D36: =IF(E36="","",7) -> 
D37: =IF(E37="","",8) -> 
D38: =IF(E38="","",9) -> 
D39: =IF(E39="","",10) -> 
D40: =IF(E40="","",11) -> 
D41: =IF(E41="","",12) -> 
D42: =IF(E42="","",13) -> 
D43: =IF(E43="","",14) -> 
D44: =IF(E44="","",15) -> 
D45: =IF(E45="","",16) -> 
D46: =IF(E46="","",17) -> 
D47: =IF(E47="","",18) -> 
D48: =IF(E48="","",19) -> 
D49: =IF(E49="","",20) -> 
D50: =IF(E50="","",21) -> 
D51: =IF(E51="","",22) -> 
D52: =IF(E52="","",23) -> 
D53: =IF(E53="","",24) -> 
D54: =IF(E54="","",25) -> 
D55: =IF(E55="","",26) -> 
D56: =IF(E56="","",27) -> 
D57: =IF(E57="","",28) -> 
D58: =IF(E58="","",29) -> 
D59: =IF(E59="","",30) -> 
D60: =IF(E60="","",31) -> 
D61: =IF(E61="","",32) -> 
D62: =IF(E62="","",33) -> 
D63: =IF(E63="","",34) -> 
D64: =IF(E64="","",35) -> 
D65: =IF(E65="","",36) -> 
D66: =IF(E66="","",37) -> 
D67: =IF(E67="","",38) -> 
D68: =IF(E68="","",39) -> 
D69: =IF(E69="","",40) -> 
D70: =IF(E70="","",41) -> 
D71: =IF(E71="","",42) -> 
D72: =IF(E72="","",43) -> 
D73: =IF(E73="","",44) -> 
D74: =IF(E74="","",45) -> 
D75: =IF(E75="","",46) -> 
D76: =IF(E76="","",47) -> 
D77: =IF(E77="","",48) -> 
D78: =IF(E78="","",49) -> 
D79: =IF(E79="","",50) -> 
D80: =IF(E80="","",51) -> 
D81: =IF(E81="","",52) -> 
D82: =IF(E82="","",53) -> 
D83: =IF(E83="","",54) -> 
D84: =IF(E84="","",55) -> 
D85: =IF(E85="","",56) -> 
D86: =IF(E86="","",57) -> 
D87: =IF(E87="","",58) -> 
D88: =IF(E88="","",59) -> 
D89: =IF(E89="","",60) ->  | AN89: =IF(AB89="","",T89*AJ89) -> 
D90: TOPLAM (KDV Hariç) | AB90: =SUM(AB30:AB89) -> 9000 | AF90: =SUM(AF30:AF89) -> 18000 | AJ90: =SUM(AJ30:AJ89) -> 12000 | AN90: =SUM(AN30:AN89) -> 24000 | AR90: =SUM(AR30:AR89) -> 15000 | AV90: =SUM(AV30:AV89) -> 30000
AB92: PİYASA FİYAT ARAŞTIRMASI
D94: MAL'IN/HİZMET'İN/YAPIM İŞİ'NİN | AB94: TEKLİF VEREN KİŞİLER/FİRMALAR VE TEKLİF FİYATLARI (KDV HARİÇ)
D95: S | E95: =IF((COUNTIF(BA97:BA156,"*x*"))>=1,"Bu alanda (x ile işaretlenen satırda) hücrelerin birinde veya birkaçında fazla veri var! Siliniz!","ADI") -> ADI | T95: BİRİMİ | W95: MİKTARI | Z95: KDV (%) | AB95: A GERÇEK/TÜZEL KİŞİSİ | AJ95: B GERÇEK/TÜZEL KİŞİSİ | AR95: D GERÇEK/TÜZEL KİŞİSİ | BC95: =AB95 -> A GERÇEK/TÜZEL KİŞİSİ | BF95: =AJ95 -> B GERÇEK/TÜZEL KİŞİSİ | BI95: =AR95 -> D GERÇEK/TÜZEL KİŞİSİ
AB96: Birim Fiyatı | AF96: Toplam Fiyatı | AJ96: Birim Fiyatı | AN96: Toplam Fiyatı | AR96: Birim Fiyatı | AV96: Toplam Fiyatı | BC96: 20 | BD96: 10 | BE96: 1 | BF96: 20 | BG96: 10 | BH96: 1 | BI96: 20 | BJ96: 10 | BK96: 1
D97: =IF(D30="","",D30) -> 1 | E97: AIO (All In One) Masaüstü Bilgisayar | T97: =IF(T30="","",T30) -> 2 | W97: =IF(W30="","",W30) -> Adet | Z97: =IF(Z30="","",Z30) -> 20 | AB97: 3000 | AF97: =IF(AB97="","",T97*AB97) -> 6000 | AJ97: 4000 | AN97: =IF(AB97="","",T97*AJ97) -> 8000 | AR97: 5000 | AV97: =IF(T97="","",T97*AR97) -> 10000 | BA97: =IF(E97="",IF(OR(AB97<>"",AJ97<>"",AR97<>""),"x",""),"✓") -> ✓ | BC97: =IF(Z97=20,(AF97*20/100),"") -> 1200 | BD97: =IF(Z97=10,(AF97*10/100),"") ->  | BE97: =IF(Z97=1,(AF97*1/100),"") ->  | BF97: =IF(Z97=20,(AN97*20/100),"") -> 1600 | BG97: =IF(Z97=10,(AN97*10/100),"") ->  | BH97: =IF(Z97=1,(AN97*1/100),"") ->  | BI97: =IF(Z97=20,(AV97*20/100),"") -> 2000 | BJ97: =IF(Z97=10,(AV97*10/100),"") ->  | BK97: =IF(Z97=1,(AV97*1/100),"") -> 
D98: =IF(D31="","",D31) -> 2 | E98: =IF(E31="","",E31) -> Fotokopi Makinesi | T98: 2 | W98: Adet | Z98: 10 | AB98: 4000 | AF98: =IF(AB98="","",T98*AB98) -> 8000 | AJ98: 5000 | AN98: =IF(AB98="","",T98*AJ98) -> 10000 | AR98: 6000 | AV98: =IF(T98="","",T98*AR98) -> 12000 | BA98: =IF(E98="",IF(OR(AB98<>"",AJ98<>"",AR98<>""),"x",""),"✓") -> ✓ | BC98: =IF(Z98=20,(AF98*20/100),"") ->  | BD98: =IF(Z98=10,(AF98*10/100),"") -> 800 | BE98: =IF(Z98=1,(AF98*1/100),"") ->  | BF98: =IF(Z98=20,(AN98*20/100),"") ->  | BG98: =IF(Z98=10,(AN98*10/100),"") -> 1000 | BH98: =IF(Z98=1,(AN98*1/100),"") ->  | BI98: =IF(Z98=20,(AV98*20/100),"") ->  | BJ98: =IF(Z98=10,(AV98*10/100),"") -> 1200 | BK98: =IF(Z98=1,(AV98*1/100),"") -> 
D99: =IF(D32="","",D32) -> 3 | E99: =IF(E32="","",E32) -> Projektör | T99: 2 | W99: Adet | Z99: 1 | AB99: 5000 | AF99: 10000 | AJ99: 6000 | AN99: 12000 | AR99: 7000 | AV99: 14000 | BA99: ✓ | BE99: 100 | BH99: 120 | BK99: 140
D100: =IF(D33="","",D33) ->  | E100: =IF(E33="","",E33) -> 
D101: =IF(D34="","",D34) ->  | E101: =IF(E34="","",E34) -> 
D102: =IF(D35="","",D35) ->  | E102: =IF(E35="","",E35) -> 
D103: =IF(D36="","",D36) ->  | E103: =IF(E36="","",E36) -> 
D104: =IF(D37="","",D37) ->  | E104: =IF(E37="","",E37) -> 
D105: =IF(D38="","",D38) ->  | E105: =IF(E38="","",E38) -> 
D106: =IF(D39="","",D39) ->  | E106: =IF(E39="","",E39) -> 
D107: =IF(D40="","",D40) ->  | E107: =IF(E40="","",E40) -> 
D108: =IF(D41="","",D41) ->  | E108: =IF(E41="","",E41) -> 
D109: =IF(D42="","",D42) ->  | E109: =IF(E42="","",E42) -> 
D110: =IF(D43="","",D43) ->  | E110: =IF(E43="","",E43) -> 
D111: =IF(D44="","",D44) ->  | E111: =IF(E44="","",E44) -> 
D112: =IF(D45="","",D45) ->  | E112: =IF(E45="","",E45) -> 
D113: =IF(D46="","",D46) ->  | E113: =IF(E46="","",E46) -> 
D114: =IF(D47="","",D47) ->  | E114: =IF(E47="","",E47) -> 
D115: =IF(D48="","",D48) ->  | E115: =IF(E48="","",E48) -> 
D116: =IF(D49="","",D49) ->  | E116: =IF(E49="","",E49) -> 
D117: =IF(D50="","",D50) ->  | E117: =IF(E50="","",E50) -> 
D118: =IF(D51="","",D51) ->  | E118: =IF(E51="","",E51) -> 
D119: =IF(D52="","",D52) ->  | E119: =IF(E52="","",E52) -> 
D120: =IF(D53="","",D53) ->  | E120: =IF(E53="","",E53) -> 
D121: =IF(D54="","",D54) ->  | E121: =IF(E54="","",E54) -> 
D122: =IF(D55="","",D55) ->  | E122: =IF(E55="","",E55) -> 
D123: =IF(D56="","",D56) ->  | E123: =IF(E56="","",E56) -> 
D124: =IF(D57="","",D57) ->  | E124: =IF(E57="","",E57) -> 
D125: =IF(D58="","",D58) ->  | E125: =IF(E58="","",E58) -> 
D126: =IF(D59="","",D59) ->  | E126: =IF(E59="","",E59) -> 
D127: =IF(D60="","",D60) -> 
D128: =IF(D61="","",D61) -> 
D129: =IF(D62="","",D62) -> 
D130: =IF(D63="","",D63) -> 
D131: =IF(D64="","",D64) -> 
D132: =IF(D65="","",D65) -> 
D133: =IF(D66="","",D66) -> 
D134: =IF(D67="","",D67) -> 
D135: =IF(D68="","",D68) -> 
D136: =IF(D69="","",D69) ->  | E136: =IF(E69="","",E69) -> 
D137: =IF(D70="","",D70) ->  | E137: =IF(E70="","",E70) -> 
D138: =IF(D71="","",D71) ->  | E138: =IF(E71="","",E71) -> 
D139: =IF(D72="","",D72) ->  | E139: =IF(E72="","",E72) -> 
D140: =IF(D73="","",D73) ->  | E140: =IF(E73="","",E73) -> 
D141: =IF(D74="","",D74) ->  | E141: =IF(E74="","",E74) -> 
D142: =IF(D75="","",D75) ->  | E142: =IF(E75="","",E75) -> 
D143: =IF(D76="","",D76) ->  | E143: =IF(E76="","",E76) -> 
D144: =IF(D77="","",D77) ->  | E144: =IF(E77="","",E77) -> 
D145: =IF(D78="","",D78) ->  | E145: =IF(E78="","",E78) -> 
D146: =IF(D79="","",D79) ->  | E146: =IF(E79="","",E79) -> 
D147: =IF(D80="","",D80) ->  | E147: =IF(E80="","",E80) -> 
D148: =IF(D81="","",D81) ->  | E148: =IF(E81="","",E81) -> 
D149: =IF(D82="","",D82) ->  | E149: =IF(E82="","",E82) -> 
D150: =IF(D83="","",D83) ->  | E150: =IF(E83="","",E83) -> 
D151: =IF(D84="","",D84) ->  | E151: =IF(E84="","",E84) -> 
D152: =IF(D85="","",D85) ->  | E152: =IF(E85="","",E85) -> 
D153: =IF(D86="","",D86) ->  | E153: =IF(E86="","",E86) -> 
D154: =IF(D87="","",D87) ->  | E154: =IF(E87="","",E87) -> 
D155: =IF(D88="","",D88) ->  | E155: =IF(E88="","",E88) -> 
D156: =IF(D89="","",D89) ->  | E156: =IF(E89="","",E89) ->  | BC156: =IF(Z156=20,(AF156*20/100),"") -> 
D157: TOPLAM | AB157: =SUM(AB97:AB156) -> 12000 | AF157: =SUM(AF97:AF156) -> 24000 | AJ157: =SUM(AJ97:AJ156) -> 15000 | AN157: =SUM(AN97:AN156) -> 30000 | AR157: =SUM(AR97:AR156) -> 18000 | AV157: =SUM(AV97:AV156) -> 36000 | BC157: =SUM(BC97:BC156) -> 1200 | BD157: =SUM(BD97:BD156) -> 800 | BE157: 100 | BF157: 1600 | BG157: 1000 | BH157: 120 | BI157: 2000 | BJ157: 1200 | BK157: 140
D159: EN UYGUN (DÜŞÜK) TEKLİFİ VEREN KİŞİ/FİRMA
D160: ADI | T160: ADRESİ | AF160: TEKLİFİ | AJ160: KDV (%20) | AN160: KDV (%10) | AR160: KDV (%1) | AV160: TOPLAM
D161: =IF(AND(AF157<AN157,AF157<AV157),AB95,(IF(AND(AN157<AF157,AN157<AV157),AJ95,(IF(AND(AV157<AF157,AV157<AN157),AR95,""))))) -> A GERÇEK/TÜZEL KİŞİSİ | T161: Bulanık/MUŞ | AF161: =IF(D161=AB95,AF157,IF(D161=AJ95,AN157,IF(D161=AR95,AV157,""))) -> 24000 | AJ161: =IF(D161=AB95,BC157,IF(D161=AJ95,BF157,IF(D161=AR95,BI157,""))) -> 1200 | AN161: =IF(D161=AB95,BD157,IF(D161=AJ95,BG157,IF(D161=AR95,BJ157,""))) -> 800 | AR161: =IF(D161=AB95,BE157,IF(D161=AJ95,BH157,IF(D161=AR95,BK157,""))) -> 100 | AV161: =IF(D161="","",(AF161+AJ161+AN161+AR161)) -> 26100
V163: Birim Fiyat Teklif Mektuplarına Şartlar Eklenecekse Aşağıdaki Alanlara Şartlar Girilecektir. Aksi durumda silinmelidir.
D165: İDARİ ŞARTLAR
D166: =IF(E166="","",1) -> 1 | E166: Bu bent boş bırakılmıştır.
D167: =IF(E167="","",2) -> 
D168: =IF(E168="","",3) -> 
D169: =IF(E169="","",4) -> 
D170: =IF(E170="","",5) -> 
D171: =IF(E171="","",6) -> 
D172: =IF(E172="","",7) -> 
D173: =IF(E173="","",8) -> 
D174: =IF(E174="","",9) -> 
D175: =IF(E175="","",10) -> 
D176: =IF(E176="","",11) -> 
D177: =IF(E177="","",12) -> 
D178: =IF(E178="","",13) -> 
D179: =IF(E179="","",14) -> 
D180: =IF(E180="","",15) -> 
D182: TEKNİK ŞARTLAR
D183: =IF(E183="","",1) -> 1 | E183: Bu bent boş bırakılmıştır.
D184: =IF(E184="","",D183+1) -> 
D185: =IF(E185="","",3) -> 
D186: =IF(E186="","",4) -> 
D187: =IF(E187="","",5) -> 
D188: =IF(E188="","",6) -> 
D189: =IF(E189="","",7) -> 
D190: =IF(E190="","",8) -> 
D191: =IF(E191="","",9) -> 
D192: =IF(E192="","",10) -> 
D193: =IF(E193="","",11) -> 
D194: =IF(E194="","",12) -> 
D195: =IF(E195="","",13) -> 
D196: =IF(E196="","",14) -> 
D197: =IF(E197="","",15) -> 
D198: =IF(E198="","",16) -> 
D199: =IF(E199="","",17) -> 
D200: =IF(E200="","",18) -> 
D201: =IF(E201="","",19) -> 
D202: =IF(E202="","",20) -> 

Sheet 1
A2: T.C.
A3: =IF('BİLGİ GİRİŞİ'!O7="","",'BİLGİ GİRİŞİ'!O7) -> BULANIK KAYMAKAMLIĞI
A4: =IF('BİLGİ GİRİŞİ'!O8="","",'BİLGİ GİRİŞİ'!O8) -> Atatürk İlkokulu Müdürlüğü
A6: Sayı | D6: : | E6: =IF('BİLGİ GİRİŞİ'!S15="","",'BİLGİ GİRİŞİ'!S15) -> 456789123 | Y6: =IF('BİLGİ GİRİŞİ'!O15="","…../…../……..",'BİLGİ GİRİŞİ'!O15) -> 2023-03-06
A7: Konu | D7: : | E7: Mal Alımı/Hizmet Alımı/Yapım İşi
A10: =IF('BİLGİ GİRİŞİ'!O8="","",CONCATENATE(UPPER('BİLGİ GİRİŞİ'!O8)," HARCAMA YETKİLİSİ MAKAMINA",)) -> ATATÜRK İLKOKULU MÜDÜRLÜĞÜ HARCAMA YETKİLİSİ MAKAMINA
A12: =CONCATENATE(" ","Kurumumuz ihtiyaçlarında kullanılmak üzere aşağıda bilgileri verilen Mal'ın/Hizmet'in/Yapım İşi'nin Kamu İhale Kanunu'nun ",IF('BİLGİ GİRİŞİ'!O10="",".............................................................................",'BİLGİ GİRİŞİ'!O10)," Maddesine göre Doğrudan Temin yoluyla satın alınması ve aşağıda bilgileri verilen personellerin piyasa araştırma , muayene ve kabul görevlisi olarak görevlendirilmesi hususunu; Olurlarınıza arz ederim/ederiz.") -> Kurumumuz ihtiyaçlarında kullanılmak üzere aşağıda bilgileri verilen Mal'ın/Hizmet'in/Yapım İşi'nin Kamu İhale Kanunu'nun 22/d Maddesine göre Doğrudan Temin yoluyla satın alınması ve aşağıda bilgileri verilen personellerin piyasa araştırma , muayene ve kabul görevlisi olarak görevlendirilmesi hususunu; Olurlarınıza arz ederim/ederiz.
T18: =IF('BİLGİ GİRİŞİ'!AB17="","",'BİLGİ GİRİŞİ'!AB17) -> Ahmet DEMİR
T19: =IF(T18="","",IF('BİLGİ GİRİŞİ'!AB18="","",'BİLGİ GİRİŞİ'!AB18)) -> Müdür Yardımcısı 1
J22: =IF(J23="","",IF('BİLGİ GİRİŞİ'!AT16="","",'BİLGİ GİRİŞİ'!AT16)) -> OLUR/UYGUNDUR
J23: =IF('BİLGİ GİRİŞİ'!AT17="","",'BİLGİ GİRİŞİ'!AT17) -> Mustafa AYDIN
J24: =IF(J23="","",IF('BİLGİ GİRİŞİ'!AT18="","",'BİLGİ GİRİŞİ'!AT18)) -> Okul Müdürü
A30: MAL'IN/HİZMET'İN/YAPIM İŞİ'NİN
A31: S | B31: Kalem/KısımBilgileri | X31: Birimi | AB31: Miktarı
A32: =IF('BİLGİ GİRİŞİ'!D30="","",'BİLGİ GİRİŞİ'!D30) -> 1 | B32: =IF('BİLGİ GİRİŞİ'!E30="","",'BİLGİ GİRİŞİ'!E30) -> AIO (All In One) Masaüstü Bilgisayar | X32: =IF('BİLGİ GİRİŞİ'!W30="","",'BİLGİ GİRİŞİ'!W30) -> Adet | AB32: =IF('BİLGİ GİRİŞİ'!T30="","",'BİLGİ GİRİŞİ'!T30) -> 2
A33: =IF('BİLGİ GİRİŞİ'!D31="","",'BİLGİ GİRİŞİ'!D31) -> 2 | B33: =IF('BİLGİ GİRİŞİ'!E31="","",'BİLGİ GİRİŞİ'!E31) -> Fotokopi Makinesi | X33: =IF('BİLGİ GİRİŞİ'!W31="","",'BİLGİ GİRİŞİ'!W31) -> Adet | AB33: =IF('BİLGİ GİRİŞİ'!T31="","",'BİLGİ GİRİŞİ'!T31) -> 2
A34: =IF('BİLGİ GİRİŞİ'!D32="","",'BİLGİ GİRİŞİ'!D32) -> 3 | B34: =IF('BİLGİ GİRİŞİ'!E32="","",'BİLGİ GİRİŞİ'!E32) -> Projektör | X34: =IF('BİLGİ GİRİŞİ'!W32="","",'BİLGİ GİRİŞİ'!W32) -> Adet | AB34: =IF('BİLGİ GİRİŞİ'!T32="","",'BİLGİ GİRİŞİ'!T32) -> 2
A35: =IF('BİLGİ GİRİŞİ'!D33="","",'BİLGİ GİRİŞİ'!D33) ->  | B35: =IF('BİLGİ GİRİŞİ'!E33="","",'BİLGİ GİRİŞİ'!E33) ->  | X35: =IF('BİLGİ GİRİŞİ'!W33="","",'BİLGİ GİRİŞİ'!W33) ->  | AB35: =IF('BİLGİ GİRİŞİ'!T33="","",'BİLGİ GİRİŞİ'!T33) -> 
A36: =IF('BİLGİ GİRİŞİ'!D34="","",'BİLGİ GİRİŞİ'!D34) ->  | B36: =IF('BİLGİ GİRİŞİ'!E34="","",'BİLGİ GİRİŞİ'!E34) ->  | X36: =IF('BİLGİ GİRİŞİ'!W34="","",'BİLGİ GİRİŞİ'!W34) ->  | AB36: =IF('BİLGİ GİRİŞİ'!T34="","",'BİLGİ GİRİŞİ'!T34) -> 
A37: =IF('BİLGİ GİRİŞİ'!D35="","",'BİLGİ GİRİŞİ'!D35) ->  | B37: =IF('BİLGİ GİRİŞİ'!E35="","",'BİLGİ GİRİŞİ'!E35) ->  | X37: =IF('BİLGİ GİRİŞİ'!W35="","",'BİLGİ GİRİŞİ'!W35) ->  | AB37: =IF('BİLGİ GİRİŞİ'!T35="","",'BİLGİ GİRİŞİ'!T35) -> 
A38: =IF('BİLGİ GİRİŞİ'!D36="","",'BİLGİ GİRİŞİ'!D36) ->  | B38: =IF('BİLGİ GİRİŞİ'!E36="","",'BİLGİ GİRİŞİ'!E36) ->  | X38: =IF('BİLGİ GİRİŞİ'!W36="","",'BİLGİ GİRİŞİ'!W36) ->  | AB38: =IF('BİLGİ GİRİŞİ'!T36="","",'BİLGİ GİRİŞİ'!T36) -> 
A39: =IF('BİLGİ GİRİŞİ'!D37="","",'BİLGİ GİRİŞİ'!D37) ->  | B39: =IF('BİLGİ GİRİŞİ'!E37="","",'BİLGİ GİRİŞİ'!E37) ->  | X39: =IF('BİLGİ GİRİŞİ'!W37="","",'BİLGİ GİRİŞİ'!W37) ->  | AB39: =IF('BİLGİ GİRİŞİ'!T37="","",'BİLGİ GİRİŞİ'!T37) -> 
A40: =IF('BİLGİ GİRİŞİ'!D38="","",'BİLGİ GİRİŞİ'!D38) ->  | B40: =IF('BİLGİ GİRİŞİ'!E38="","",'BİLGİ GİRİŞİ'!E38) ->  | X40: =IF('BİLGİ GİRİŞİ'!W38="","",'BİLGİ GİRİŞİ'!W38) ->  | AB40: =IF('BİLGİ GİRİŞİ'!T38="","",'BİLGİ GİRİŞİ'!T38) -> 
A41: =IF('BİLGİ GİRİŞİ'!D39="","",'BİLGİ GİRİŞİ'!D39) ->  | B41: =IF('BİLGİ GİRİŞİ'!E39="","",'BİLGİ GİRİŞİ'!E39) ->  | X41: =IF('BİLGİ GİRİŞİ'!W39="","",'BİLGİ GİRİŞİ'!W39) ->  | AB41: =IF('BİLGİ GİRİŞİ'!T39="","",'BİLGİ GİRİŞİ'!T39) -> 
A42: =IF('BİLGİ GİRİŞİ'!D40="","",'BİLGİ GİRİŞİ'!D40) ->  | B42: =IF('BİLGİ GİRİŞİ'!E40="","",'BİLGİ GİRİŞİ'!E40) ->  | X42: =IF('BİLGİ GİRİŞİ'!W40="","",'BİLGİ GİRİŞİ'!W40) ->  | AB42: =IF('BİLGİ GİRİŞİ'!T40="","",'BİLGİ GİRİŞİ'!T40) -> 
A43: =IF('BİLGİ GİRİŞİ'!D41="","",'BİLGİ GİRİŞİ'!D41) ->  | B43: =IF('BİLGİ GİRİŞİ'!E41="","",'BİLGİ GİRİŞİ'!E41) ->  | X43: =IF('BİLGİ GİRİŞİ'!W41="","",'BİLGİ GİRİŞİ'!W41) ->  | AB43: =IF('BİLGİ GİRİŞİ'!T41="","",'BİLGİ GİRİŞİ'!T41) -> 
A44: =IF('BİLGİ GİRİŞİ'!D42="","",'BİLGİ GİRİŞİ'!D42) ->  | B44: =IF('BİLGİ GİRİŞİ'!E42="","",'BİLGİ GİRİŞİ'!E42) ->  | X44: =IF('BİLGİ GİRİŞİ'!W42="","",'BİLGİ GİRİŞİ'!W42) ->  | AB44: =IF('BİLGİ GİRİŞİ'!T42="","",'BİLGİ GİRİŞİ'!T42) -> 
A45: =IF('BİLGİ GİRİŞİ'!D43="","",'BİLGİ GİRİŞİ'!D43) ->  | B45: =IF('BİLGİ GİRİŞİ'!E43="","",'BİLGİ GİRİŞİ'!E43) ->  | X45: =IF('BİLGİ GİRİŞİ'!W43="","",'BİLGİ GİRİŞİ'!W43) ->  | AB45: =IF('BİLGİ GİRİŞİ'!T43="","",'BİLGİ GİRİŞİ'!T43) -> 
A46: =IF('BİLGİ GİRİŞİ'!D44="","",'BİLGİ GİRİŞİ'!D44) ->  | B46: =IF('BİLGİ GİRİŞİ'!E44="","",'BİLGİ GİRİŞİ'!E44) ->  | X46: =IF('BİLGİ GİRİŞİ'!W44="","",'BİLGİ GİRİŞİ'!W44) ->  | AB46: =IF('BİLGİ GİRİŞİ'!T44="","",'BİLGİ GİRİŞİ'!T44) -> 
A47: =IF('BİLGİ GİRİŞİ'!D45="","",'BİLGİ GİRİŞİ'!D45) ->  | B47: =IF('BİLGİ GİRİŞİ'!E45="","",'BİLGİ GİRİŞİ'!E45) ->  | X47: =IF('BİLGİ GİRİŞİ'!W45="","",'BİLGİ GİRİŞİ'!W45) ->  | AB47: =IF('BİLGİ GİRİŞİ'!T45="","",'BİLGİ GİRİŞİ'!T45) -> 
A48: =IF('BİLGİ GİRİŞİ'!D46="","",'BİLGİ GİRİŞİ'!D46) ->  | B48: =IF('BİLGİ GİRİŞİ'!E46="","",'BİLGİ GİRİŞİ'!E46) ->  | X48: =IF('BİLGİ GİRİŞİ'!W46="","",'BİLGİ GİRİŞİ'!W46) ->  | AB48: =IF('BİLGİ GİRİŞİ'!T46="","",'BİLGİ GİRİŞİ'!T46) -> 
A49: =IF('BİLGİ GİRİŞİ'!D47="","",'BİLGİ GİRİŞİ'!D47) ->  | B49: =IF('BİLGİ GİRİŞİ'!E47="","",'BİLGİ GİRİŞİ'!E47) ->  | X49: =IF('BİLGİ GİRİŞİ'!W47="","",'BİLGİ GİRİŞİ'!W47) ->  | AB49: =IF('BİLGİ GİRİŞİ'!T47="","",'BİLGİ GİRİŞİ'!T47) -> 
A50: =IF('BİLGİ GİRİŞİ'!D48="","",'BİLGİ GİRİŞİ'!D48) ->  | B50: =IF('BİLGİ GİRİŞİ'!E48="","",'BİLGİ GİRİŞİ'!E48) ->  | X50: =IF('BİLGİ GİRİŞİ'!W48="","",'BİLGİ GİRİŞİ'!W48) ->  | AB50: =IF('BİLGİ GİRİŞİ'!T48="","",'BİLGİ GİRİŞİ'!T48) -> 
A51: =IF('BİLGİ GİRİŞİ'!D49="","",'BİLGİ GİRİŞİ'!D49) ->  | B51: =IF('BİLGİ GİRİŞİ'!E49="","",'BİLGİ GİRİŞİ'!E49) ->  | X51: =IF('BİLGİ GİRİŞİ'!W49="","",'BİLGİ GİRİŞİ'!W49) ->  | AB51: =IF('BİLGİ GİRİŞİ'!T49="","",'BİLGİ GİRİŞİ'!T49) -> 
A52: =IF('BİLGİ GİRİŞİ'!D50="","",'BİLGİ GİRİŞİ'!D50) ->  | B52: =IF('BİLGİ GİRİŞİ'!E50="","",'BİLGİ GİRİŞİ'!E50) ->  | X52: =IF('BİLGİ GİRİŞİ'!W50="","",'BİLGİ GİRİŞİ'!W50) ->  | AB52: =IF('BİLGİ GİRİŞİ'!T50="","",'BİLGİ GİRİŞİ'!T50) -> 
A53: =IF('BİLGİ GİRİŞİ'!D51="","",'BİLGİ GİRİŞİ'!D51) ->  | B53: =IF('BİLGİ GİRİŞİ'!E51="","",'BİLGİ GİRİŞİ'!E51) ->  | X53: =IF('BİLGİ GİRİŞİ'!W51="","",'BİLGİ GİRİŞİ'!W51) ->  | AB53: =IF('BİLGİ GİRİŞİ'!T51="","",'BİLGİ GİRİŞİ'!T51) -> 
A54: =IF('BİLGİ GİRİŞİ'!D52="","",'BİLGİ GİRİŞİ'!D52) ->  | B54: =IF('BİLGİ GİRİŞİ'!E52="","",'BİLGİ GİRİŞİ'!E52) ->  | X54: =IF('BİLGİ GİRİŞİ'!W52="","",'BİLGİ GİRİŞİ'!W52) ->  | AB54: =IF('BİLGİ GİRİŞİ'!T52="","",'BİLGİ GİRİŞİ'!T52) -> 
A55: =IF('BİLGİ GİRİŞİ'!D53="","",'BİLGİ GİRİŞİ'!D53) ->  | B55: =IF('BİLGİ GİRİŞİ'!E53="","",'BİLGİ GİRİŞİ'!E53) ->  | X55: =IF('BİLGİ GİRİŞİ'!W53="","",'BİLGİ GİRİŞİ'!W53) ->  | AB55: =IF('BİLGİ GİRİŞİ'!T53="","",'BİLGİ GİRİŞİ'!T53) -> 
A56: =IF('BİLGİ GİRİŞİ'!D54="","",'BİLGİ GİRİŞİ'!D54) ->  | B56: =IF('BİLGİ GİRİŞİ'!E54="","",'BİLGİ GİRİŞİ'!E54) ->  | X56: =IF('BİLGİ GİRİŞİ'!W54="","",'BİLGİ GİRİŞİ'!W54) ->  | AB56: =IF('BİLGİ GİRİŞİ'!T54="","",'BİLGİ GİRİŞİ'!T54) -> 
A57: =IF('BİLGİ GİRİŞİ'!D55="","",'BİLGİ GİRİŞİ'!D55) ->  | B57: =IF('BİLGİ GİRİŞİ'!E55="","",'BİLGİ GİRİŞİ'!E55) ->  | X57: =IF('BİLGİ GİRİŞİ'!W55="","",'BİLGİ GİRİŞİ'!W55) ->  | AB57: =IF('BİLGİ GİRİŞİ'!T55="","",'BİLGİ GİRİŞİ'!T55) -> 
A58: =IF('BİLGİ GİRİŞİ'!D56="","",'BİLGİ GİRİŞİ'!D56) ->  | B58: =IF('BİLGİ GİRİŞİ'!E56="","",'BİLGİ GİRİŞİ'!E56) ->  | X58: =IF('BİLGİ GİRİŞİ'!W56="","",'BİLGİ GİRİŞİ'!W56) ->  | AB58: =IF('BİLGİ GİRİŞİ'!T56="","",'BİLGİ GİRİŞİ'!T56) -> 
A59: =IF('BİLGİ GİRİŞİ'!D57="","",'BİLGİ GİRİŞİ'!D57) ->  | B59: =IF('BİLGİ GİRİŞİ'!E57="","",'BİLGİ GİRİŞİ'!E57) ->  | X59: =IF('BİLGİ GİRİŞİ'!W57="","",'BİLGİ GİRİŞİ'!W57) ->  | AB59: =IF('BİLGİ GİRİŞİ'!T57="","",'BİLGİ GİRİŞİ'!T57) -> 
A60: =IF('BİLGİ GİRİŞİ'!D58="","",'BİLGİ GİRİŞİ'!D58) ->  | B60: =IF('BİLGİ GİRİŞİ'!E58="","",'BİLGİ GİRİŞİ'!E58) ->  | X60: =IF('BİLGİ GİRİŞİ'!W58="","",'BİLGİ GİRİŞİ'!W58) ->  | AB60: =IF('BİLGİ GİRİŞİ'!T58="","",'BİLGİ GİRİŞİ'!T58) -> 
A61: =IF('BİLGİ GİRİŞİ'!D59="","",'BİLGİ GİRİŞİ'!D59) ->  | B61: =IF('BİLGİ GİRİŞİ'!E59="","",'BİLGİ GİRİŞİ'!E59) ->  | X61: =IF('BİLGİ GİRİŞİ'!W59="","",'BİLGİ GİRİŞİ'!W59) ->  | AB61: =IF('BİLGİ GİRİŞİ'!T59="","",'BİLGİ GİRİŞİ'!T59) -> 
A62: =IF('BİLGİ GİRİŞİ'!D60="","",'BİLGİ GİRİŞİ'!D60) ->  | B62: =IF('BİLGİ GİRİŞİ'!E60="","",'BİLGİ GİRİŞİ'!E60) ->  | X62: =IF('BİLGİ GİRİŞİ'!W60="","",'BİLGİ GİRİŞİ'!W60) ->  | AB62: =IF('BİLGİ GİRİŞİ'!T60="","",'BİLGİ GİRİŞİ'!T60) -> 
A63: =IF('BİLGİ GİRİŞİ'!D61="","",'BİLGİ GİRİŞİ'!D61) ->  | B63: =IF('BİLGİ GİRİŞİ'!E61="","",'BİLGİ GİRİŞİ'!E61) ->  | X63: =IF('BİLGİ GİRİŞİ'!W61="","",'BİLGİ GİRİŞİ'!W61) ->  | AB63: =IF('BİLGİ GİRİŞİ'!T61="","",'BİLGİ GİRİŞİ'!T61) -> 
A64: =IF('BİLGİ GİRİŞİ'!D62="","",'BİLGİ GİRİŞİ'!D62) ->  | B64: =IF('BİLGİ GİRİŞİ'!E62="","",'BİLGİ GİRİŞİ'!E62) ->  | X64: =IF('BİLGİ GİRİŞİ'!W62="","",'BİLGİ GİRİŞİ'!W62) ->  | AB64: =IF('BİLGİ GİRİŞİ'!T62="","",'BİLGİ GİRİŞİ'!T62) -> 
A65: =IF('BİLGİ GİRİŞİ'!D63="","",'BİLGİ GİRİŞİ'!D63) ->  | B65: =IF('BİLGİ GİRİŞİ'!E63="","",'BİLGİ GİRİŞİ'!E63) ->  | X65: =IF('BİLGİ GİRİŞİ'!W63="","",'BİLGİ GİRİŞİ'!W63) ->  | AB65: =IF('BİLGİ GİRİŞİ'!T63="","",'BİLGİ GİRİŞİ'!T63) -> 
A66: =IF('BİLGİ GİRİŞİ'!D64="","",'BİLGİ GİRİŞİ'!D64) ->  | B66: =IF('BİLGİ GİRİŞİ'!E64="","",'BİLGİ GİRİŞİ'!E64) ->  | X66: =IF('BİLGİ GİRİŞİ'!W64="","",'BİLGİ GİRİŞİ'!W64) ->  | AB66: =IF('BİLGİ GİRİŞİ'!T64="","",'BİLGİ GİRİŞİ'!T64) -> 
A67: =IF('BİLGİ GİRİŞİ'!D65="","",'BİLGİ GİRİŞİ'!D65) ->  | B67: =IF('BİLGİ GİRİŞİ'!E65="","",'BİLGİ GİRİŞİ'!E65) ->  | X67: =IF('BİLGİ GİRİŞİ'!W65="","",'BİLGİ GİRİŞİ'!W65) ->  | AB67: =IF('BİLGİ GİRİŞİ'!T65="","",'BİLGİ GİRİŞİ'!T65) -> 
A68: =IF('BİLGİ GİRİŞİ'!D66="","",'BİLGİ GİRİŞİ'!D66) ->  | B68: =IF('BİLGİ GİRİŞİ'!E66="","",'BİLGİ GİRİŞİ'!E66) ->  | X68: =IF('BİLGİ GİRİŞİ'!W66="","",'BİLGİ GİRİŞİ'!W66) ->  | AB68: =IF('BİLGİ GİRİŞİ'!T66="","",'BİLGİ GİRİŞİ'!T66) -> 
A69: =IF('BİLGİ GİRİŞİ'!D67="","",'BİLGİ GİRİŞİ'!D67) ->  | B69: =IF('BİLGİ GİRİŞİ'!E67="","",'BİLGİ GİRİŞİ'!E67) ->  | X69: =IF('BİLGİ GİRİŞİ'!W67="","",'BİLGİ GİRİŞİ'!W67) ->  | AB69: =IF('BİLGİ GİRİŞİ'!T67="","",'BİLGİ GİRİŞİ'!T67) -> 
A70: =IF('BİLGİ GİRİŞİ'!D68="","",'BİLGİ GİRİŞİ'!D68) ->  | B70: =IF('BİLGİ GİRİŞİ'!E68="","",'BİLGİ GİRİŞİ'!E68) ->  | X70: =IF('BİLGİ GİRİŞİ'!W68="","",'BİLGİ GİRİŞİ'!W68) ->  | AB70: =IF('BİLGİ GİRİŞİ'!T68="","",'BİLGİ GİRİŞİ'!T68) -> 
A71: =IF('BİLGİ GİRİŞİ'!D69="","",'BİLGİ GİRİŞİ'!D69) ->  | B71: =IF('BİLGİ GİRİŞİ'!E69="","",'BİLGİ GİRİŞİ'!E69) ->  | X71: =IF('BİLGİ GİRİŞİ'!W69="","",'BİLGİ GİRİŞİ'!W69) ->  | AB71: =IF('BİLGİ GİRİŞİ'!T69="","",'BİLGİ GİRİŞİ'!T69) -> 
A72: =IF('BİLGİ GİRİŞİ'!D70="","",'BİLGİ GİRİŞİ'!D70) ->  | B72: =IF('BİLGİ GİRİŞİ'!E70="","",'BİLGİ GİRİŞİ'!E70) ->  | X72: =IF('BİLGİ GİRİŞİ'!W70="","",'BİLGİ GİRİŞİ'!W70) ->  | AB72: =IF('BİLGİ GİRİŞİ'!T70="","",'BİLGİ GİRİŞİ'!T70) -> 
A73: =IF('BİLGİ GİRİŞİ'!D71="","",'BİLGİ GİRİŞİ'!D71) ->  | B73: =IF('BİLGİ GİRİŞİ'!E71="","",'BİLGİ GİRİŞİ'!E71) ->  | X73: =IF('BİLGİ GİRİŞİ'!W71="","",'BİLGİ GİRİŞİ'!W71) ->  | AB73: =IF('BİLGİ GİRİŞİ'!T71="","",'BİLGİ GİRİŞİ'!T71) -> 
A74: =IF('BİLGİ GİRİŞİ'!D72="","",'BİLGİ GİRİŞİ'!D72) ->  | B74: =IF('BİLGİ GİRİŞİ'!E72="","",'BİLGİ GİRİŞİ'!E72) ->  | X74: =IF('BİLGİ GİRİŞİ'!W72="","",'BİLGİ GİRİŞİ'!W72) ->  | AB74: =IF('BİLGİ GİRİŞİ'!T72="","",'BİLGİ GİRİŞİ'!T72) -> 
A75: =IF('BİLGİ GİRİŞİ'!D73="","",'BİLGİ GİRİŞİ'!D73) ->  | B75: =IF('BİLGİ GİRİŞİ'!E73="","",'BİLGİ GİRİŞİ'!E73) ->  | X75: =IF('BİLGİ GİRİŞİ'!W73="","",'BİLGİ GİRİŞİ'!W73) ->  | AB75: =IF('BİLGİ GİRİŞİ'!T73="","",'BİLGİ GİRİŞİ'!T73) -> 
A76: =IF('BİLGİ GİRİŞİ'!D74="","",'BİLGİ GİRİŞİ'!D74) ->  | B76: =IF('BİLGİ GİRİŞİ'!E74="","",'BİLGİ GİRİŞİ'!E74) ->  | X76: =IF('BİLGİ GİRİŞİ'!W74="","",'BİLGİ GİRİŞİ'!W74) ->  | AB76: =IF('BİLGİ GİRİŞİ'!T74="","",'BİLGİ GİRİŞİ'!T74) -> 
A77: =IF('BİLGİ GİRİŞİ'!D75="","",'BİLGİ GİRİŞİ'!D75) ->  | B77: =IF('BİLGİ GİRİŞİ'!E75="","",'BİLGİ GİRİŞİ'!E75) ->  | X77: =IF('BİLGİ GİRİŞİ'!W75="","",'BİLGİ GİRİŞİ'!W75) ->  | AB77: =IF('BİLGİ GİRİŞİ'!T75="","",'BİLGİ GİRİŞİ'!T75) -> 
A78: =IF('BİLGİ GİRİŞİ'!D76="","",'BİLGİ GİRİŞİ'!D76) ->  | B78: =IF('BİLGİ GİRİŞİ'!E76="","",'BİLGİ GİRİŞİ'!E76) ->  | X78: =IF('BİLGİ GİRİŞİ'!W76="","",'BİLGİ GİRİŞİ'!W76) ->  | AB78: =IF('BİLGİ GİRİŞİ'!T76="","",'BİLGİ GİRİŞİ'!T76) -> 
A79: =IF('BİLGİ GİRİŞİ'!D77="","",'BİLGİ GİRİŞİ'!D77) ->  | B79: =IF('BİLGİ GİRİŞİ'!E77="","",'BİLGİ GİRİŞİ'!E77) ->  | X79: =IF('BİLGİ GİRİŞİ'!W77="","",'BİLGİ GİRİŞİ'!W77) ->  | AB79: =IF('BİLGİ GİRİŞİ'!T77="","",'BİLGİ GİRİŞİ'!T77) -> 
A80: =IF('BİLGİ GİRİŞİ'!D78="","",'BİLGİ GİRİŞİ'!D78) ->  | B80: =IF('BİLGİ GİRİŞİ'!E78="","",'BİLGİ GİRİŞİ'!E78) ->  | X80: =IF('BİLGİ GİRİŞİ'!W78="","",'BİLGİ GİRİŞİ'!W78) ->  | AB80: =IF('BİLGİ GİRİŞİ'!T78="","",'BİLGİ GİRİŞİ'!T78) -> 
A81: =IF('BİLGİ GİRİŞİ'!D79="","",'BİLGİ GİRİŞİ'!D79) ->  | B81: =IF('BİLGİ GİRİŞİ'!E79="","",'BİLGİ GİRİŞİ'!E79) ->  | X81: =IF('BİLGİ GİRİŞİ'!W79="","",'BİLGİ GİRİŞİ'!W79) ->  | AB81: =IF('BİLGİ GİRİŞİ'!T79="","",'BİLGİ GİRİŞİ'!T79) -> 
A82: =IF('BİLGİ GİRİŞİ'!D80="","",'BİLGİ GİRİŞİ'!D80) ->  | B82: =IF('BİLGİ GİRİŞİ'!E80="","",'BİLGİ GİRİŞİ'!E80) ->  | X82: =IF('BİLGİ GİRİŞİ'!W80="","",'BİLGİ GİRİŞİ'!W80) ->  | AB82: =IF('BİLGİ GİRİŞİ'!T80="","",'BİLGİ GİRİŞİ'!T80) -> 
A83: =IF('BİLGİ GİRİŞİ'!D81="","",'BİLGİ GİRİŞİ'!D81) ->  | B83: =IF('BİLGİ GİRİŞİ'!E81="","",'BİLGİ GİRİŞİ'!E81) ->  | X83: =IF('BİLGİ GİRİŞİ'!W81="","",'BİLGİ GİRİŞİ'!W81) ->  | AB83: =IF('BİLGİ GİRİŞİ'!T81="","",'BİLGİ GİRİŞİ'!T81) -> 
A84: =IF('BİLGİ GİRİŞİ'!D82="","",'BİLGİ GİRİŞİ'!D82) ->  | B84: =IF('BİLGİ GİRİŞİ'!E82="","",'BİLGİ GİRİŞİ'!E82) ->  | X84: =IF('BİLGİ GİRİŞİ'!W82="","",'BİLGİ GİRİŞİ'!W82) ->  | AB84: =IF('BİLGİ GİRİŞİ'!T82="","",'BİLGİ GİRİŞİ'!T82) -> 
A85: =IF('BİLGİ GİRİŞİ'!D83="","",'BİLGİ GİRİŞİ'!D83) ->  | B85: =IF('BİLGİ GİRİŞİ'!E83="","",'BİLGİ GİRİŞİ'!E83) ->  | X85: =IF('BİLGİ GİRİŞİ'!W83="","",'BİLGİ GİRİŞİ'!W83) ->  | AB85: =IF('BİLGİ GİRİŞİ'!T83="","",'BİLGİ GİRİŞİ'!T83) -> 
A86: =IF('BİLGİ GİRİŞİ'!D84="","",'BİLGİ GİRİŞİ'!D84) ->  | B86: =IF('BİLGİ GİRİŞİ'!E84="","",'BİLGİ GİRİŞİ'!E84) ->  | X86: =IF('BİLGİ GİRİŞİ'!W84="","",'BİLGİ GİRİŞİ'!W84) ->  | AB86: =IF('BİLGİ GİRİŞİ'!T84="","",'BİLGİ GİRİŞİ'!T84) -> 
A87: =IF('BİLGİ GİRİŞİ'!D85="","",'BİLGİ GİRİŞİ'!D85) ->  | B87: =IF('BİLGİ GİRİŞİ'!E85="","",'BİLGİ GİRİŞİ'!E85) ->  | X87: =IF('BİLGİ GİRİŞİ'!W85="","",'BİLGİ GİRİŞİ'!W85) ->  | AB87: =IF('BİLGİ GİRİŞİ'!T85="","",'BİLGİ GİRİŞİ'!T85) -> 
A88: =IF('BİLGİ GİRİŞİ'!D86="","",'BİLGİ GİRİŞİ'!D86) ->  | B88: =IF('BİLGİ GİRİŞİ'!E86="","",'BİLGİ GİRİŞİ'!E86) ->  | X88: =IF('BİLGİ GİRİŞİ'!W86="","",'BİLGİ GİRİŞİ'!W86) ->  | AB88: =IF('BİLGİ GİRİŞİ'!T86="","",'BİLGİ GİRİŞİ'!T86) -> 
A89: =IF('BİLGİ GİRİŞİ'!D87="","",'BİLGİ GİRİŞİ'!D87) ->  | B89: =IF('BİLGİ GİRİŞİ'!E87="","",'BİLGİ GİRİŞİ'!E87) ->  | X89: =IF('BİLGİ GİRİŞİ'!W87="","",'BİLGİ GİRİŞİ'!W87) ->  | AB89: =IF('BİLGİ GİRİŞİ'!T87="","",'BİLGİ GİRİŞİ'!T87) -> 
A90: =IF('BİLGİ GİRİŞİ'!D88="","",'BİLGİ GİRİŞİ'!D88) ->  | B90: =IF('BİLGİ GİRİŞİ'!E88="","",'BİLGİ GİRİŞİ'!E88) ->  | X90: =IF('BİLGİ GİRİŞİ'!W88="","",'BİLGİ GİRİŞİ'!W88) ->  | AB90: =IF('BİLGİ GİRİŞİ'!T88="","",'BİLGİ GİRİŞİ'!T88) -> 
A91: =IF('BİLGİ GİRİŞİ'!D89="","",'BİLGİ GİRİŞİ'!D89) ->  | B91: =IF('BİLGİ GİRİŞİ'!E89="","",'BİLGİ GİRİŞİ'!E89) ->  | X91: =IF('BİLGİ GİRİŞİ'!W89="","",'BİLGİ GİRİŞİ'!W89) ->  | AB91: =IF('BİLGİ GİRİŞİ'!T89="","",'BİLGİ GİRİŞİ'!T89) -> 
A93: PİYASA ARAŞTIRMA GÖREVLİLERİ
A94: =IF('BİLGİ GİRİŞİ'!AB17="","",'BİLGİ GİRİŞİ'!AB17) -> Ahmet DEMİR | K94: =IF('BİLGİ GİRİŞİ'!AH17="","",'BİLGİ GİRİŞİ'!AH17) -> Ayşe YILDIZ | V94: =IF('BİLGİ GİRİŞİ'!AN17="","",'BİLGİ GİRİŞİ'!AN17) -> 
A95: =IF(A94="","",'BİLGİ GİRİŞİ'!AB18) -> Müdür Yardımcısı 1 | K95: =IF(K94="","",'BİLGİ GİRİŞİ'!AH18) -> Öğretmen 1 | V95: =IF(V94="","",'BİLGİ GİRİŞİ'!AN18) -> 
A97: MUAYENE VE KABUL GÖREVLİLERİ
A98: =IF('BİLGİ GİRİŞİ'!AB22="","",'BİLGİ GİRİŞİ'!AB22) -> Mehmet ÇELİK | K98: =IF('BİLGİ GİRİŞİ'!AH22="","",'BİLGİ GİRİŞİ'!AH22) -> Fatma GÜNEŞ | V98: =IF('BİLGİ GİRİŞİ'!AN22="","",'BİLGİ GİRİŞİ'!AN22) -> 
A99: =IF(A98="","",'BİLGİ GİRİŞİ'!AB23) -> Müdür Yardımcısı 2 | K99: =IF(K98="","",'BİLGİ GİRİŞİ'!AH23) -> Öğretmen 2 | V99: =IF(V98="","",'BİLGİ GİRİŞİ'!AN23) -> 

Sheet 2
A2: T.C.
A3: =IF('BİLGİ GİRİŞİ'!O7="","",'BİLGİ GİRİŞİ'!O7) -> BULANIK KAYMAKAMLIĞI
A4: =IF('BİLGİ GİRİŞİ'!O8="","",'BİLGİ GİRİŞİ'!O8) -> Atatürk İlkokulu Müdürlüğü
A6: Sayı | D6: : | E6: =IF('BİLGİ GİRİŞİ'!S15="","",'BİLGİ GİRİŞİ'!S15) -> 456789123 | Z6: =IF('BİLGİ GİRİŞİ'!O16="","…../…../……..",'BİLGİ GİRİŞİ'!O16) -> 2023-03-06
A7: Konu | D7: : | E7: Yaklaşık Maliyet Araştırması
A9: İLGİLİ GERÇEK/TÜZEL KİŞİLERE
A11: =CONCATENATE(" ","Kurumumuz ihtiyaçlarında kullanılmak üzere aşağıda bilgileri verilen Mal/Hizmet/Yapım İşi, Kamu İhale Kanunu'nun ",IF('BİLGİ GİRİŞİ'!O10="",".............................................................................",'BİLGİ GİRİŞİ'!O10)," maddesine göre Doğrudan Temin yoluyla satın alınacaktır.") -> Kurumumuz ihtiyaçlarında kullanılmak üzere aşağıda bilgileri verilen Mal/Hizmet/Yapım İşi, Kamu İhale Kanunu'nun 22/d maddesine göre Doğrudan Temin yoluyla satın alınacaktır.
A13: Yaklaşık maliyetin tespitinde değerlendirilmek üzere aşağıda bilgileri verilen Mal'ın/Hizmet'in/Yapım İşi'nin, KDV hariç piyasa fiyatlarının karşılarına yazılması ve Kurumumuza gönderilmesi hususunda; Gereğini rica ederim/ederiz
A18: =IF(A19="","",IF('BİLGİ GİRİŞİ'!AH16="","",'BİLGİ GİRİŞİ'!AH16)) -> Piyasa Araştırma Görevlisi | K18: =IF(K19="","",IF('BİLGİ GİRİŞİ'!AN16="","",'BİLGİ GİRİŞİ'!AN16)) ->  | U18: =IF(U19="","",IF('BİLGİ GİRİŞİ'!AB16="","",'BİLGİ GİRİŞİ'!AB16)) -> Piyasa Araştırma Görevlisi
A19: =IF('BİLGİ GİRİŞİ'!AH17="","",'BİLGİ GİRİŞİ'!AH17) -> Ayşe YILDIZ | K19: =IF('BİLGİ GİRİŞİ'!AN17="","",'BİLGİ GİRİŞİ'!AN17) ->  | U19: =IF('BİLGİ GİRİŞİ'!AB17="","",'BİLGİ GİRİŞİ'!AB17) -> Ahmet DEMİR
A20: =IF(A19="","",IF('BİLGİ GİRİŞİ'!AH18="","",'BİLGİ GİRİŞİ'!AH18)) -> Öğretmen 1 | K20: =IF(K19="","",IF('BİLGİ GİRİŞİ'!AN18="","",'BİLGİ GİRİŞİ'!AN18)) ->  | U20: =IF(U19="","",IF('BİLGİ GİRİŞİ'!AB18="","",'BİLGİ GİRİŞİ'!AB18)) -> Müdür Yardımcısı 1
A23: =IF('BİLGİ GİRİŞİ'!O8="","",CONCATENATE(UPPER('BİLGİ GİRİŞİ'!O8),"",UPPER(IF('BİLGİ GİRİŞİ'!O8="","",'BİLGİ GİRİŞİ'!AN8)))) -> ATATÜRK İLKOKULU MÜDÜRLÜĞÜNE
A25: Kurumunuzca satın alınacak Mal'ın/Hizmet'in/Yapım İşi'nin piyasa fiyatları aşağıya çıkarılmıştır. Gereğini bilgilerinize arz ederim/ederiz.
A30: MAL'IN/HİZMET'İN/YAPIM İŞİ'NİN
A31: S | B31: Kalem/KısımBilgileri | P31: Birimi | T31: Miktarı | X31: Birim Fiyatı | AB31: Toplam Fiyatı
A32: =IF('BİLGİ GİRİŞİ'!D30="","",'BİLGİ GİRİŞİ'!D30) -> 1 | B32: =IF('BİLGİ GİRİŞİ'!E30="","",'BİLGİ GİRİŞİ'!E30) -> AIO (All In One) Masaüstü Bilgisayar | P32: =IF('BİLGİ GİRİŞİ'!W30="","",'BİLGİ GİRİŞİ'!W30) -> Adet | T32: =IF('BİLGİ GİRİŞİ'!T30="","",IF('BİLGİ GİRİŞİ'!$BN$28=1,"1",'BİLGİ GİRİŞİ'!T30)) -> 1
A33: =IF('BİLGİ GİRİŞİ'!D31="","",'BİLGİ GİRİŞİ'!D31) -> 2 | B33: =IF('BİLGİ GİRİŞİ'!E31="","",'BİLGİ GİRİŞİ'!E31) -> Fotokopi Makinesi | P33: =IF('BİLGİ GİRİŞİ'!W31="","",'BİLGİ GİRİŞİ'!W31) -> Adet | T33: =IF('BİLGİ GİRİŞİ'!T31="","",IF('BİLGİ GİRİŞİ'!$BN$28=1,"1",'BİLGİ GİRİŞİ'!T31)) -> 1
A34: =IF('BİLGİ GİRİŞİ'!D32="","",'BİLGİ GİRİŞİ'!D32) -> 3 | B34: =IF('BİLGİ GİRİŞİ'!E32="","",'BİLGİ GİRİŞİ'!E32) -> Projektör | P34: =IF('BİLGİ GİRİŞİ'!W32="","",'BİLGİ GİRİŞİ'!W32) -> Adet | T34: =IF('BİLGİ GİRİŞİ'!T32="","",IF('BİLGİ GİRİŞİ'!$BN$28=1,"1",'BİLGİ GİRİŞİ'!T32)) -> 1
A35: =IF('BİLGİ GİRİŞİ'!D33="","",'BİLGİ GİRİŞİ'!D33) ->  | B35: =IF('BİLGİ GİRİŞİ'!E33="","",'BİLGİ GİRİŞİ'!E33) ->  | P35: =IF('BİLGİ GİRİŞİ'!W33="","",'BİLGİ GİRİŞİ'!W33) ->  | T35: =IF('BİLGİ GİRİŞİ'!T33="","",IF('BİLGİ GİRİŞİ'!$BN$28=1,"1",'BİLGİ GİRİŞİ'!T33)) -> 
A36: =IF('BİLGİ GİRİŞİ'!D34="","",'BİLGİ GİRİŞİ'!D34) ->  | B36: =IF('BİLGİ GİRİŞİ'!E34="","",'BİLGİ GİRİŞİ'!E34) ->  | P36: =IF('BİLGİ GİRİŞİ'!W34="","",'BİLGİ GİRİŞİ'!W34) ->  | T36: =IF('BİLGİ GİRİŞİ'!T34="","",IF('BİLGİ GİRİŞİ'!$BN$28=1,"1",'BİLGİ GİRİŞİ'!T34)) -> 
A37: =IF('BİLGİ GİRİŞİ'!D35="","",'BİLGİ GİRİŞİ'!D35) ->  | B37: =IF('BİLGİ GİRİŞİ'!E35="","",'BİLGİ GİRİŞİ'!E35) ->  | P37: =IF('BİLGİ GİRİŞİ'!W35="","",'BİLGİ GİRİŞİ'!W35) ->  | T37: =IF('BİLGİ GİRİŞİ'!T35="","",IF('BİLGİ GİRİŞİ'!$BN$28=1,"1",'BİLGİ GİRİŞİ'!T35)) -> 
A38: =IF('BİLGİ GİRİŞİ'!D36="","",'BİLGİ GİRİŞİ'!D36) ->  | B38: =IF('BİLGİ GİRİŞİ'!E36="","",'BİLGİ GİRİŞİ'!E36) ->  | P38: =IF('BİLGİ GİRİŞİ'!W36="","",'BİLGİ GİRİŞİ'!W36) ->  | T38: =IF('BİLGİ GİRİŞİ'!T36="","",IF('BİLGİ GİRİŞİ'!$BN$28=1,"1",'BİLGİ GİRİŞİ'!T36)) -> 
A39: =IF('BİLGİ GİRİŞİ'!D37="","",'BİLGİ GİRİŞİ'!D37) ->  | B39: =IF('BİLGİ GİRİŞİ'!E37="","",'BİLGİ GİRİŞİ'!E37) ->  | P39: =IF('BİLGİ GİRİŞİ'!W37="","",'BİLGİ GİRİŞİ'!W37) ->  | T39: =IF('BİLGİ GİRİŞİ'!T37="","",IF('BİLGİ GİRİŞİ'!$BN$28=1,"1",'BİLGİ GİRİŞİ'!T37)) -> 
A40: =IF('BİLGİ GİRİŞİ'!D38="","",'BİLGİ GİRİŞİ'!D38) ->  | B40: =IF('BİLGİ GİRİŞİ'!E38="","",'BİLGİ GİRİŞİ'!E38) ->  | P40: =IF('BİLGİ GİRİŞİ'!W38="","",'BİLGİ GİRİŞİ'!W38) ->  | T40: =IF('BİLGİ GİRİŞİ'!T38="","",IF('BİLGİ GİRİŞİ'!$BN$28=1,"1",'BİLGİ GİRİŞİ'!T38)) -> 
A41: =IF('BİLGİ GİRİŞİ'!D39="","",'BİLGİ GİRİŞİ'!D39) ->  | B41: =IF('BİLGİ GİRİŞİ'!E39="","",'BİLGİ GİRİŞİ'!E39) ->  | P41: =IF('BİLGİ GİRİŞİ'!W39="","",'BİLGİ GİRİŞİ'!W39) ->  | T41: =IF('BİLGİ GİRİŞİ'!T39="","",IF('BİLGİ GİRİŞİ'!$BN$28=1,"1",'BİLGİ GİRİŞİ'!T39)) -> 
A42: =IF('BİLGİ GİRİŞİ'!D40="","",'BİLGİ GİRİŞİ'!D40) ->  | B42: =IF('BİLGİ GİRİŞİ'!E40="","",'BİLGİ GİRİŞİ'!E40) ->  | P42: =IF('BİLGİ GİRİŞİ'!W40="","",'BİLGİ GİRİŞİ'!W40) ->  | T42: =IF('BİLGİ GİRİŞİ'!T40="","",IF('BİLGİ GİRİŞİ'!$BN$28=1,"1",'BİLGİ GİRİŞİ'!T40)) -> 
A43: =IF('BİLGİ GİRİŞİ'!D41="","",'BİLGİ GİRİŞİ'!D41) ->  | B43: =IF('BİLGİ GİRİŞİ'!E41="","",'BİLGİ GİRİŞİ'!E41) ->  | P43: =IF('BİLGİ GİRİŞİ'!W41="","",'BİLGİ GİRİŞİ'!W41) ->  | T43: =IF('BİLGİ GİRİŞİ'!T41="","",IF('BİLGİ GİRİŞİ'!$BN$28=1,"1",'BİLGİ GİRİŞİ'!T41)) -> 
A44: =IF('BİLGİ GİRİŞİ'!D42="","",'BİLGİ GİRİŞİ'!D42) ->  | B44: =IF('BİLGİ GİRİŞİ'!E42="","",'BİLGİ GİRİŞİ'!E42) ->  | P44: =IF('BİLGİ GİRİŞİ'!W42="","",'BİLGİ GİRİŞİ'!W42) ->  | T44: =IF('BİLGİ GİRİŞİ'!T42="","",IF('BİLGİ GİRİŞİ'!$BN$28=1,"1",'BİLGİ GİRİŞİ'!T42)) -> 
A45: =IF('BİLGİ GİRİŞİ'!D43="","",'BİLGİ GİRİŞİ'!D43) ->  | B45: =IF('BİLGİ GİRİŞİ'!E43="","",'BİLGİ GİRİŞİ'!E43) ->  | P45: =IF('BİLGİ GİRİŞİ'!W43="","",'BİLGİ GİRİŞİ'!W43) ->  | T45: =IF('BİLGİ GİRİŞİ'!T43="","",IF('BİLGİ GİRİŞİ'!$BN$28=1,"1",'BİLGİ GİRİŞİ'!T43)) -> 
A46: =IF('BİLGİ GİRİŞİ'!D44="","",'BİLGİ GİRİŞİ'!D44) ->  | B46: =IF('BİLGİ GİRİŞİ'!E44="","",'BİLGİ GİRİŞİ'!E44) ->  | P46: =IF('BİLGİ GİRİŞİ'!W44="","",'BİLGİ GİRİŞİ'!W44) ->  | T46: =IF('BİLGİ GİRİŞİ'!T44="","",IF('BİLGİ GİRİŞİ'!$BN$28=1,"1",'BİLGİ GİRİŞİ'!T44)) -> 
A47: =IF('BİLGİ GİRİŞİ'!D45="","",'BİLGİ GİRİŞİ'!D45) ->  | B47: =IF('BİLGİ GİRİŞİ'!E45="","",'BİLGİ GİRİŞİ'!E45) ->  | P47: =IF('BİLGİ GİRİŞİ'!W45="","",'BİLGİ GİRİŞİ'!W45) ->  | T47: =IF('BİLGİ GİRİŞİ'!T45="","",IF('BİLGİ GİRİŞİ'!$BN$28=1,"1",'BİLGİ GİRİŞİ'!T45)) -> 
A48: =IF('BİLGİ GİRİŞİ'!D46="","",'BİLGİ GİRİŞİ'!D46) ->  | B48: =IF('BİLGİ GİRİŞİ'!E46="","",'BİLGİ GİRİŞİ'!E46) ->  | P48: =IF('BİLGİ GİRİŞİ'!W46="","",'BİLGİ GİRİŞİ'!W46) ->  | T48: =IF('BİLGİ GİRİŞİ'!T46="","",IF('BİLGİ GİRİŞİ'!$BN$28=1,"1",'BİLGİ GİRİŞİ'!T46)) -> 
A49: =IF('BİLGİ GİRİŞİ'!D47="","",'BİLGİ GİRİŞİ'!D47) ->  | B49: =IF('BİLGİ GİRİŞİ'!E47="","",'BİLGİ GİRİŞİ'!E47) ->  | P49: =IF('BİLGİ GİRİŞİ'!W47="","",'BİLGİ GİRİŞİ'!W47) ->  | T49: =IF('BİLGİ GİRİŞİ'!T47="","",IF('BİLGİ GİRİŞİ'!$BN$28=1,"1",'BİLGİ GİRİŞİ'!T47)) -> 
A50: =IF('BİLGİ GİRİŞİ'!D48="","",'BİLGİ GİRİŞİ'!D48) ->  | B50: =IF('BİLGİ GİRİŞİ'!E48="","",'BİLGİ GİRİŞİ'!E48) ->  | P50: =IF('BİLGİ GİRİŞİ'!W48="","",'BİLGİ GİRİŞİ'!W48) ->  | T50: =IF('BİLGİ GİRİŞİ'!T48="","",IF('BİLGİ GİRİŞİ'!$BN$28=1,"1",'BİLGİ GİRİŞİ'!T48)) -> 
A51: =IF('BİLGİ GİRİŞİ'!D49="","",'BİLGİ GİRİŞİ'!D49) ->  | B51: =IF('BİLGİ GİRİŞİ'!E49="","",'BİLGİ GİRİŞİ'!E49) ->  | P51: =IF('BİLGİ GİRİŞİ'!W49="","",'BİLGİ GİRİŞİ'!W49) ->  | T51: =IF('BİLGİ GİRİŞİ'!T49="","",IF('BİLGİ GİRİŞİ'!$BN$28=1,"1",'BİLGİ GİRİŞİ'!T49)) -> 
A52: =IF('BİLGİ GİRİŞİ'!D50="","",'BİLGİ GİRİŞİ'!D50) ->  | B52: =IF('BİLGİ GİRİŞİ'!E50="","",'BİLGİ GİRİŞİ'!E50) ->  | P52: =IF('BİLGİ GİRİŞİ'!W50="","",'BİLGİ GİRİŞİ'!W50) ->  | T52: =IF('BİLGİ GİRİŞİ'!T50="","",IF('BİLGİ GİRİŞİ'!$BN$28=1,"1",'BİLGİ GİRİŞİ'!T50)) -> 
A53: =IF('BİLGİ GİRİŞİ'!D51="","",'BİLGİ GİRİŞİ'!D51) ->  | B53: =IF('BİLGİ GİRİŞİ'!E51="","",'BİLGİ GİRİŞİ'!E51) ->  | P53: =IF('BİLGİ GİRİŞİ'!W51="","",'BİLGİ GİRİŞİ'!W51) ->  | T53: =IF('BİLGİ GİRİŞİ'!T51="","",IF('BİLGİ GİRİŞİ'!$BN$28=1,"1",'BİLGİ GİRİŞİ'!T51)) -> 
A54: =IF('BİLGİ GİRİŞİ'!D52="","",'BİLGİ GİRİŞİ'!D52) ->  | B54: =IF('BİLGİ GİRİŞİ'!E52="","",'BİLGİ GİRİŞİ'!E52) ->  | P54: =IF('BİLGİ GİRİŞİ'!W52="","",'BİLGİ GİRİŞİ'!W52) ->  | T54: =IF('BİLGİ GİRİŞİ'!T52="","",IF('BİLGİ GİRİŞİ'!$BN$28=1,"1",'BİLGİ GİRİŞİ'!T52)) -> 
A55: =IF('BİLGİ GİRİŞİ'!D53="","",'BİLGİ GİRİŞİ'!D53) ->  | B55: =IF('BİLGİ GİRİŞİ'!E53="","",'BİLGİ GİRİŞİ'!E53) ->  | P55: =IF('BİLGİ GİRİŞİ'!W53="","",'BİLGİ GİRİŞİ'!W53) ->  | T55: =IF('BİLGİ GİRİŞİ'!T53="","",IF('BİLGİ GİRİŞİ'!$BN$28=1,"1",'BİLGİ GİRİŞİ'!T53)) -> 
A56: =IF('BİLGİ GİRİŞİ'!D54="","",'BİLGİ GİRİŞİ'!D54) ->  | B56: =IF('BİLGİ GİRİŞİ'!E54="","",'BİLGİ GİRİŞİ'!E54) ->  | P56: =IF('BİLGİ GİRİŞİ'!W54="","",'BİLGİ GİRİŞİ'!W54) ->  | T56: =IF('BİLGİ GİRİŞİ'!T54="","",IF('BİLGİ GİRİŞİ'!$BN$28=1,"1",'BİLGİ GİRİŞİ'!T54)) -> 
A57: =IF('BİLGİ GİRİŞİ'!D55="","",'BİLGİ GİRİŞİ'!D55) ->  | B57: =IF('BİLGİ GİRİŞİ'!E55="","",'BİLGİ GİRİŞİ'!E55) ->  | P57: =IF('BİLGİ GİRİŞİ'!W55="","",'BİLGİ GİRİŞİ'!W55) ->  | T57: =IF('BİLGİ GİRİŞİ'!T55="","",IF('BİLGİ GİRİŞİ'!$BN$28=1,"1",'BİLGİ GİRİŞİ'!T55)) -> 
A58: =IF('BİLGİ GİRİŞİ'!D56="","",'BİLGİ GİRİŞİ'!D56) ->  | B58: =IF('BİLGİ GİRİŞİ'!E56="","",'BİLGİ GİRİŞİ'!E56) ->  | P58: =IF('BİLGİ GİRİŞİ'!W56="","",'BİLGİ GİRİŞİ'!W56) ->  | T58: =IF('BİLGİ GİRİŞİ'!T56="","",IF('BİLGİ GİRİŞİ'!$BN$28=1,"1",'BİLGİ GİRİŞİ'!T56)) -> 
A59: =IF('BİLGİ GİRİŞİ'!D57="","",'BİLGİ GİRİŞİ'!D57) ->  | B59: =IF('BİLGİ GİRİŞİ'!E57="","",'BİLGİ GİRİŞİ'!E57) ->  | P59: =IF('BİLGİ GİRİŞİ'!W57="","",'BİLGİ GİRİŞİ'!W57) ->  | T59: =IF('BİLGİ GİRİŞİ'!T57="","",IF('BİLGİ GİRİŞİ'!$BN$28=1,"1",'BİLGİ GİRİŞİ'!T57)) -> 
A60: =IF('BİLGİ GİRİŞİ'!D58="","",'BİLGİ GİRİŞİ'!D58) ->  | B60: =IF('BİLGİ GİRİŞİ'!E58="","",'BİLGİ GİRİŞİ'!E58) ->  | P60: =IF('BİLGİ GİRİŞİ'!W58="","",'BİLGİ GİRİŞİ'!W58) ->  | T60: =IF('BİLGİ GİRİŞİ'!T58="","",IF('BİLGİ GİRİŞİ'!$BN$28=1,"1",'BİLGİ GİRİŞİ'!T58)) -> 
A61: =IF('BİLGİ GİRİŞİ'!D59="","",'BİLGİ GİRİŞİ'!D59) ->  | B61: =IF('BİLGİ GİRİŞİ'!E59="","",'BİLGİ GİRİŞİ'!E59) ->  | P61: =IF('BİLGİ GİRİŞİ'!W59="","",'BİLGİ GİRİŞİ'!W59) ->  | T61: =IF('BİLGİ GİRİŞİ'!T59="","",IF('BİLGİ GİRİŞİ'!$BN$28=1,"1",'BİLGİ GİRİŞİ'!T59)) -> 
A62: =IF('BİLGİ GİRİŞİ'!D60="","",'BİLGİ GİRİŞİ'!D60) ->  | B62: =IF('BİLGİ GİRİŞİ'!E60="","",'BİLGİ GİRİŞİ'!E60) ->  | P62: =IF('BİLGİ GİRİŞİ'!W60="","",'BİLGİ GİRİŞİ'!W60) ->  | T62: =IF('BİLGİ GİRİŞİ'!T60="","",IF('BİLGİ GİRİŞİ'!$BN$28=1,"1",'BİLGİ GİRİŞİ'!T60)) -> 
A63: =IF('BİLGİ GİRİŞİ'!D61="","",'BİLGİ GİRİŞİ'!D61) ->  | B63: =IF('BİLGİ GİRİŞİ'!E61="","",'BİLGİ GİRİŞİ'!E61) ->  | P63: =IF('BİLGİ GİRİŞİ'!W61="","",'BİLGİ GİRİŞİ'!W61) ->  | T63: =IF('BİLGİ GİRİŞİ'!T61="","",IF('BİLGİ GİRİŞİ'!$BN$28=1,"1",'BİLGİ GİRİŞİ'!T61)) -> 
A64: =IF('BİLGİ GİRİŞİ'!D62="","",'BİLGİ GİRİŞİ'!D62) ->  | B64: =IF('BİLGİ GİRİŞİ'!E62="","",'BİLGİ GİRİŞİ'!E62) ->  | P64: =IF('BİLGİ GİRİŞİ'!W62="","",'BİLGİ GİRİŞİ'!W62) ->  | T64: =IF('BİLGİ GİRİŞİ'!T62="","",IF('BİLGİ GİRİŞİ'!$BN$28=1,"1",'BİLGİ GİRİŞİ'!T62)) -> 
A65: =IF('BİLGİ GİRİŞİ'!D63="","",'BİLGİ GİRİŞİ'!D63) ->  | B65: =IF('BİLGİ GİRİŞİ'!E63="","",'BİLGİ GİRİŞİ'!E63) ->  | P65: =IF('BİLGİ GİRİŞİ'!W63="","",'BİLGİ GİRİŞİ'!W63) ->  | T65: =IF('BİLGİ GİRİŞİ'!T63="","",IF('BİLGİ GİRİŞİ'!$BN$28=1,"1",'BİLGİ GİRİŞİ'!T63)) -> 
A66: =IF('BİLGİ GİRİŞİ'!D64="","",'BİLGİ GİRİŞİ'!D64) ->  | B66: =IF('BİLGİ GİRİŞİ'!E64="","",'BİLGİ GİRİŞİ'!E64) ->  | P66: =IF('BİLGİ GİRİŞİ'!W64="","",'BİLGİ GİRİŞİ'!W64) ->  | T66: =IF('BİLGİ GİRİŞİ'!T64="","",IF('BİLGİ GİRİŞİ'!$BN$28=1,"1",'BİLGİ GİRİŞİ'!T64)) -> 
A67: =IF('BİLGİ GİRİŞİ'!D65="","",'BİLGİ GİRİŞİ'!D65) ->  | B67: =IF('BİLGİ GİRİŞİ'!E65="","",'BİLGİ GİRİŞİ'!E65) ->  | P67: =IF('BİLGİ GİRİŞİ'!W65="","",'BİLGİ GİRİŞİ'!W65) ->  | T67: =IF('BİLGİ GİRİŞİ'!T65="","",IF('BİLGİ GİRİŞİ'!$BN$28=1,"1",'BİLGİ GİRİŞİ'!T65)) -> 
A68: =IF('BİLGİ GİRİŞİ'!D66="","",'BİLGİ GİRİŞİ'!D66) ->  | B68: =IF('BİLGİ GİRİŞİ'!E66="","",'BİLGİ GİRİŞİ'!E66) ->  | P68: =IF('BİLGİ GİRİŞİ'!W66="","",'BİLGİ GİRİŞİ'!W66) ->  | T68: =IF('BİLGİ GİRİŞİ'!T66="","",IF('BİLGİ GİRİŞİ'!$BN$28=1,"1",'BİLGİ GİRİŞİ'!T66)) -> 
A69: =IF('BİLGİ GİRİŞİ'!D67="","",'BİLGİ GİRİŞİ'!D67) ->  | B69: =IF('BİLGİ GİRİŞİ'!E67="","",'BİLGİ GİRİŞİ'!E67) ->  | P69: =IF('BİLGİ GİRİŞİ'!W67="","",'BİLGİ GİRİŞİ'!W67) ->  | T69: =IF('BİLGİ GİRİŞİ'!T67="","",IF('BİLGİ GİRİŞİ'!$BN$28=1,"1",'BİLGİ GİRİŞİ'!T67)) -> 
A70: =IF('BİLGİ GİRİŞİ'!D68="","",'BİLGİ GİRİŞİ'!D68) ->  | B70: =IF('BİLGİ GİRİŞİ'!E68="","",'BİLGİ GİRİŞİ'!E68) ->  | P70: =IF('BİLGİ GİRİŞİ'!W68="","",'BİLGİ GİRİŞİ'!W68) ->  | T70: =IF('BİLGİ GİRİŞİ'!T68="","",IF('BİLGİ GİRİŞİ'!$BN$28=1,"1",'BİLGİ GİRİŞİ'!T68)) -> 
A71: =IF('BİLGİ GİRİŞİ'!D69="","",'BİLGİ GİRİŞİ'!D69) ->  | B71: =IF('BİLGİ GİRİŞİ'!E69="","",'BİLGİ GİRİŞİ'!E69) ->  | P71: =IF('BİLGİ GİRİŞİ'!W69="","",'BİLGİ GİRİŞİ'!W69) ->  | T71: =IF('BİLGİ GİRİŞİ'!T69="","",IF('BİLGİ GİRİŞİ'!$BN$28=1,"1",'BİLGİ GİRİŞİ'!T69)) -> 
A72: =IF('BİLGİ GİRİŞİ'!D70="","",'BİLGİ GİRİŞİ'!D70) ->  | B72: =IF('BİLGİ GİRİŞİ'!E70="","",'BİLGİ GİRİŞİ'!E70) ->  | P72: =IF('BİLGİ GİRİŞİ'!W70="","",'BİLGİ GİRİŞİ'!W70) ->  | T72: =IF('BİLGİ GİRİŞİ'!T70="","",IF('BİLGİ GİRİŞİ'!$BN$28=1,"1",'BİLGİ GİRİŞİ'!T70)) -> 
A73: =IF('BİLGİ GİRİŞİ'!D71="","",'BİLGİ GİRİŞİ'!D71) ->  | B73: =IF('BİLGİ GİRİŞİ'!E71="","",'BİLGİ GİRİŞİ'!E71) ->  | P73: =IF('BİLGİ GİRİŞİ'!W71="","",'BİLGİ GİRİŞİ'!W71) ->  | T73: =IF('BİLGİ GİRİŞİ'!T71="","",IF('BİLGİ GİRİŞİ'!$BN$28=1,"1",'BİLGİ GİRİŞİ'!T71)) -> 
A74: =IF('BİLGİ GİRİŞİ'!D72="","",'BİLGİ GİRİŞİ'!D72) ->  | B74: =IF('BİLGİ GİRİŞİ'!E72="","",'BİLGİ GİRİŞİ'!E72) ->  | P74: =IF('BİLGİ GİRİŞİ'!W72="","",'BİLGİ GİRİŞİ'!W72) ->  | T74: =IF('BİLGİ GİRİŞİ'!T72="","",IF('BİLGİ GİRİŞİ'!$BN$28=1,"1",'BİLGİ GİRİŞİ'!T72)) -> 
A75: =IF('BİLGİ GİRİŞİ'!D73="","",'BİLGİ GİRİŞİ'!D73) ->  | B75: =IF('BİLGİ GİRİŞİ'!E73="","",'BİLGİ GİRİŞİ'!E73) ->  | P75: =IF('BİLGİ GİRİŞİ'!W73="","",'BİLGİ GİRİŞİ'!W73) ->  | T75: =IF('BİLGİ GİRİŞİ'!T73="","",IF('BİLGİ GİRİŞİ'!$BN$28=1,"1",'BİLGİ GİRİŞİ'!T73)) -> 
A76: =IF('BİLGİ GİRİŞİ'!D74="","",'BİLGİ GİRİŞİ'!D74) ->  | B76: =IF('BİLGİ GİRİŞİ'!E74="","",'BİLGİ GİRİŞİ'!E74) ->  | P76: =IF('BİLGİ GİRİŞİ'!W74="","",'BİLGİ GİRİŞİ'!W74) ->  | T76: =IF('BİLGİ GİRİŞİ'!T74="","",IF('BİLGİ GİRİŞİ'!$BN$28=1,"1",'BİLGİ GİRİŞİ'!T74)) -> 
A77: =IF('BİLGİ GİRİŞİ'!D75="","",'BİLGİ GİRİŞİ'!D75) ->  | B77: =IF('BİLGİ GİRİŞİ'!E75="","",'BİLGİ GİRİŞİ'!E75) ->  | P77: =IF('BİLGİ GİRİŞİ'!W75="","",'BİLGİ GİRİŞİ'!W75) ->  | T77: =IF('BİLGİ GİRİŞİ'!T75="","",IF('BİLGİ GİRİŞİ'!$BN$28=1,"1",'BİLGİ GİRİŞİ'!T75)) -> 
A78: =IF('BİLGİ GİRİŞİ'!D76="","",'BİLGİ GİRİŞİ'!D76) ->  | B78: =IF('BİLGİ GİRİŞİ'!E76="","",'BİLGİ GİRİŞİ'!E76) ->  | P78: =IF('BİLGİ GİRİŞİ'!W76="","",'BİLGİ GİRİŞİ'!W76) ->  | T78: =IF('BİLGİ GİRİŞİ'!T76="","",IF('BİLGİ GİRİŞİ'!$BN$28=1,"1",'BİLGİ GİRİŞİ'!T76)) -> 
A79: =IF('BİLGİ GİRİŞİ'!D77="","",'BİLGİ GİRİŞİ'!D77) ->  | B79: =IF('BİLGİ GİRİŞİ'!E77="","",'BİLGİ GİRİŞİ'!E77) ->  | P79: =IF('BİLGİ GİRİŞİ'!W77="","",'BİLGİ GİRİŞİ'!W77) ->  | T79: =IF('BİLGİ GİRİŞİ'!T77="","",IF('BİLGİ GİRİŞİ'!$BN$28=1,"1",'BİLGİ GİRİŞİ'!T77)) -> 
A80: =IF('BİLGİ GİRİŞİ'!D78="","",'BİLGİ GİRİŞİ'!D78) ->  | B80: =IF('BİLGİ GİRİŞİ'!E78="","",'BİLGİ GİRİŞİ'!E78) ->  | P80: =IF('BİLGİ GİRİŞİ'!W78="","",'BİLGİ GİRİŞİ'!W78) ->  | T80: =IF('BİLGİ GİRİŞİ'!T78="","",IF('BİLGİ GİRİŞİ'!$BN$28=1,"1",'BİLGİ GİRİŞİ'!T78)) -> 
A81: =IF('BİLGİ GİRİŞİ'!D79="","",'BİLGİ GİRİŞİ'!D79) ->  | B81: =IF('BİLGİ GİRİŞİ'!E79="","",'BİLGİ GİRİŞİ'!E79) ->  | P81: =IF('BİLGİ GİRİŞİ'!W79="","",'BİLGİ GİRİŞİ'!W79) ->  | T81: =IF('BİLGİ GİRİŞİ'!T79="","",IF('BİLGİ GİRİŞİ'!$BN$28=1,"1",'BİLGİ GİRİŞİ'!T79)) -> 
A82: =IF('BİLGİ GİRİŞİ'!D80="","",'BİLGİ GİRİŞİ'!D80) ->  | B82: =IF('BİLGİ GİRİŞİ'!E80="","",'BİLGİ GİRİŞİ'!E80) ->  | P82: =IF('BİLGİ GİRİŞİ'!W80="","",'BİLGİ GİRİŞİ'!W80) ->  | T82: =IF('BİLGİ GİRİŞİ'!T80="","",IF('BİLGİ GİRİŞİ'!$BN$28=1,"1",'BİLGİ GİRİŞİ'!T80)) -> 
A83: =IF('BİLGİ GİRİŞİ'!D81="","",'BİLGİ GİRİŞİ'!D81) ->  | B83: =IF('BİLGİ GİRİŞİ'!E81="","",'BİLGİ GİRİŞİ'!E81) ->  | P83: =IF('BİLGİ GİRİŞİ'!W81="","",'BİLGİ GİRİŞİ'!W81) ->  | T83: =IF('BİLGİ GİRİŞİ'!T81="","",IF('BİLGİ GİRİŞİ'!$BN$28=1,"1",'BİLGİ GİRİŞİ'!T81)) -> 
A84: =IF('BİLGİ GİRİŞİ'!D82="","",'BİLGİ GİRİŞİ'!D82) ->  | B84: =IF('BİLGİ GİRİŞİ'!E82="","",'BİLGİ GİRİŞİ'!E82) ->  | P84: =IF('BİLGİ GİRİŞİ'!W82="","",'BİLGİ GİRİŞİ'!W82) ->  | T84: =IF('BİLGİ GİRİŞİ'!T82="","",IF('BİLGİ GİRİŞİ'!$BN$28=1,"1",'BİLGİ GİRİŞİ'!T82)) -> 
A85: =IF('BİLGİ GİRİŞİ'!D83="","",'BİLGİ GİRİŞİ'!D83) ->  | B85: =IF('BİLGİ GİRİŞİ'!E83="","",'BİLGİ GİRİŞİ'!E83) ->  | P85: =IF('BİLGİ GİRİŞİ'!W83="","",'BİLGİ GİRİŞİ'!W83) ->  | T85: =IF('BİLGİ GİRİŞİ'!T83="","",IF('BİLGİ GİRİŞİ'!$BN$28=1,"1",'BİLGİ GİRİŞİ'!T83)) -> 
A86: =IF('BİLGİ GİRİŞİ'!D84="","",'BİLGİ GİRİŞİ'!D84) ->  | B86: =IF('BİLGİ GİRİŞİ'!E84="","",'BİLGİ GİRİŞİ'!E84) ->  | P86: =IF('BİLGİ GİRİŞİ'!W84="","",'BİLGİ GİRİŞİ'!W84) ->  | T86: =IF('BİLGİ GİRİŞİ'!T84="","",IF('BİLGİ GİRİŞİ'!$BN$28=1,"1",'BİLGİ GİRİŞİ'!T84)) -> 
A87: =IF('BİLGİ GİRİŞİ'!D85="","",'BİLGİ GİRİŞİ'!D85) ->  | B87: =IF('BİLGİ GİRİŞİ'!E85="","",'BİLGİ GİRİŞİ'!E85) ->  | P87: =IF('BİLGİ GİRİŞİ'!W85="","",'BİLGİ GİRİŞİ'!W85) ->  | T87: =IF('BİLGİ GİRİŞİ'!T85="","",IF('BİLGİ GİRİŞİ'!$BN$28=1,"1",'BİLGİ GİRİŞİ'!T85)) -> 
A88: =IF('BİLGİ GİRİŞİ'!D86="","",'BİLGİ GİRİŞİ'!D86) ->  | B88: =IF('BİLGİ GİRİŞİ'!E86="","",'BİLGİ GİRİŞİ'!E86) ->  | P88: =IF('BİLGİ GİRİŞİ'!W86="","",'BİLGİ GİRİŞİ'!W86) ->  | T88: =IF('BİLGİ GİRİŞİ'!T86="","",IF('BİLGİ GİRİŞİ'!$BN$28=1,"1",'BİLGİ GİRİŞİ'!T86)) -> 
A89: =IF('BİLGİ GİRİŞİ'!D87="","",'BİLGİ GİRİŞİ'!D87) ->  | B89: =IF('BİLGİ GİRİŞİ'!E87="","",'BİLGİ GİRİŞİ'!E87) ->  | P89: =IF('BİLGİ GİRİŞİ'!W87="","",'BİLGİ GİRİŞİ'!W87) ->  | T89: =IF('BİLGİ GİRİŞİ'!T87="","",IF('BİLGİ GİRİŞİ'!$BN$28=1,"1",'BİLGİ GİRİŞİ'!T87)) -> 
A90: =IF('BİLGİ GİRİŞİ'!D88="","",'BİLGİ GİRİŞİ'!D88) ->  | B90: =IF('BİLGİ GİRİŞİ'!E88="","",'BİLGİ GİRİŞİ'!E88) ->  | P90: =IF('BİLGİ GİRİŞİ'!W88="","",'BİLGİ GİRİŞİ'!W88) ->  | T90: =IF('BİLGİ GİRİŞİ'!T88="","",IF('BİLGİ GİRİŞİ'!$BN$28=1,"1",'BİLGİ GİRİŞİ'!T88)) -> 
A91: =IF('BİLGİ GİRİŞİ'!D89="","",'BİLGİ GİRİŞİ'!D89) ->  | B91: =IF('BİLGİ GİRİŞİ'!E89="","",'BİLGİ GİRİŞİ'!E89) ->  | P91: =IF('BİLGİ GİRİŞİ'!W89="","",'BİLGİ GİRİŞİ'!W89) ->  | T91: =IF('BİLGİ GİRİŞİ'!T89="","",IF('BİLGİ GİRİŞİ'!$BN$28=1,"1",'BİLGİ GİRİŞİ'!T89)) -> 
A92: TOPLAM (KDV Hariç)
U94: KİŞİ/FİRMA KAŞE/İMZA

Sheet 3
A2: YAKLAŞIK MALİYET HESAP CETVELİ
A4: İdarenin Adı | K4: : | L4: =IF('BİLGİ GİRİŞİ'!O8="","",'BİLGİ GİRİŞİ'!O8) -> Atatürk İlkokulu Müdürlüğü | AQ4: =IF('BİLGİ GİRİŞİ'!O17="","….../….../….…..",'BİLGİ GİRİŞİ'!O17) -> 2023-03-07
A5: Doğrudan Temin Numarası | K5: : | L5: =IF('BİLGİ GİRİŞİ'!O11="","",'BİLGİ GİRİŞİ'!O11) -> 22DT1211930
A6: Mal/Hizmet/Yapım Adı, Niteliği | K6: : | L6: =IF('BİLGİ GİRİŞİ'!O9="","",'BİLGİ GİRİŞİ'!O9) -> Bilişim Malzemeleri Alımı
A7: Alım/Görevlendirme Onay Tarihi/sayısı | K7: : | L7: =IF('BİLGİ GİRİŞİ'!O15="","",'BİLGİ GİRİŞİ'!O15) -> 2023-03-06 | P7: / | Q7: =IF('BİLGİ GİRİŞİ'!S15="","",'BİLGİ GİRİŞİ'!S15) -> 456789123
A9: =CONCATENATE(" ","Kurumumuz ihtiyaçlarında kullanılmak üzere aşağıda bilgileri verilen Mal/Hizmet/Yapım İşi, Kamu İhale Kanunu'nun ",IF('BİLGİ GİRİŞİ'!O10="",".............................................................................",'BİLGİ GİRİŞİ'!O10)," maddesine göre Doğrudan Temin yoluyla satın alınmak üzere piyasa fiyat araştırması yapılmış olup verilen fiyatlar ve yaklaşık maliyet aşağıya çıkarılmıştır.") -> Kurumumuz ihtiyaçlarında kullanılmak üzere aşağıda bilgileri verilen Mal/Hizmet/Yapım İşi, Kamu İhale Kanunu'nun 22/d maddesine göre Doğrudan Temin yoluyla satın alınmak üzere piyasa fiyat araştırması yapılmış olup verilen fiyatlar ve yaklaşık maliyet aşağıya çıkarılmıştır.
A13: MAL'IN/HİZMET'İN/YAPIM İŞİ'NİN | X13: TEKLİF VEREN KİŞİLER/FİRMALAR VE TEKLİF FİYATLARI | AP13: YAKLAŞIK MALİYET
A14: S | B14: Kalem/KısımBilgileri | P14: Birimi | T14: Miktarı | X14: =IF('BİLGİ GİRİŞİ'!AB28="","",'BİLGİ GİRİŞİ'!AB28) -> A GERÇEK/TÜZEL KİŞİSİ | AD14: =IF('BİLGİ GİRİŞİ'!AJ28="","",'BİLGİ GİRİŞİ'!AJ28) -> B GERÇEK/TÜZEL KİŞİSİ | AJ14: =IF('BİLGİ GİRİŞİ'!AR28="","",'BİLGİ GİRİŞİ'!AR28) -> C GERÇEK/TÜZEL KİŞİSİ
X15: Birim Fiyat | AA15: Toplam Fiyat | AD15: Birim Fiyat | AG15: Toplam Fiyat | AJ15: Birim Fiyat | AM15: Toplam Fiyat | AP15: Birim Fiyat | AS15: Toplam Fiyat
A16: =IF('BİLGİ GİRİŞİ'!D30="","",'BİLGİ GİRİŞİ'!D30) -> 1 | B16: =IF('BİLGİ GİRİŞİ'!E30="","",'BİLGİ GİRİŞİ'!E30) -> AIO (All In One) Masaüstü Bilgisayar | P16: =IF('BİLGİ GİRİŞİ'!W30="","",'BİLGİ GİRİŞİ'!W30) -> Adet | T16: =IF('BİLGİ GİRİŞİ'!T30="","",'BİLGİ GİRİŞİ'!T30) -> 2 | X16: =IF('BİLGİ GİRİŞİ'!AB30="","",'BİLGİ GİRİŞİ'!AB30) -> 2000 | AA16: =IF('BİLGİ GİRİŞİ'!AF30="","",'BİLGİ GİRİŞİ'!AF30) -> 4000 | AD16: =IF('BİLGİ GİRİŞİ'!AJ30="","",'BİLGİ GİRİŞİ'!AJ30) -> 3000 | AG16: =IF('BİLGİ GİRİŞİ'!AN30="","",'BİLGİ GİRİŞİ'!AN30) -> 6000 | AJ16: =IF('BİLGİ GİRİŞİ'!AR30="","",'BİLGİ GİRİŞİ'!AR30) -> 4000 | AM16: =IF('BİLGİ GİRİŞİ'!AV30="","",'BİLGİ GİRİŞİ'!AV30) -> 8000 | AP16: =IF(P16="","",(X16+AD16+AJ16)/3) -> 3000 | AS16: =IF(P16="","",(AA16+AG16+AM16)/3) -> 6000
A17: =IF('BİLGİ GİRİŞİ'!D31="","",'BİLGİ GİRİŞİ'!D31) -> 2 | B17: =IF('BİLGİ GİRİŞİ'!E31="","",'BİLGİ GİRİŞİ'!E31) -> Fotokopi Makinesi | P17: =IF('BİLGİ GİRİŞİ'!W31="","",'BİLGİ GİRİŞİ'!W31) -> Adet | T17: =IF('BİLGİ GİRİŞİ'!T31="","",'BİLGİ GİRİŞİ'!T31) -> 2 | X17: =IF('BİLGİ GİRİŞİ'!AB31="","",'BİLGİ GİRİŞİ'!AB31) -> 3000 | AA17: =IF('BİLGİ GİRİŞİ'!AF31="","",'BİLGİ GİRİŞİ'!AF31) -> 6000 | AD17: =IF('BİLGİ GİRİŞİ'!AJ31="","",'BİLGİ GİRİŞİ'!AJ31) -> 4000 | AG17: =IF('BİLGİ GİRİŞİ'!AN31="","",'BİLGİ GİRİŞİ'!AN31) -> 8000 | AJ17: =IF('BİLGİ GİRİŞİ'!AR31="","",'BİLGİ GİRİŞİ'!AR31) -> 5000 | AM17: =IF('BİLGİ GİRİŞİ'!AV31="","",'BİLGİ GİRİŞİ'!AV31) -> 10000 | AP17: =IF(P17="","",(X17+AD17+AJ17)/3) -> 4000 | AS17: =IF(P17="","",(AA17+AG17+AM17)/3) -> 8000
A18: =IF('BİLGİ GİRİŞİ'!D32="","",'BİLGİ GİRİŞİ'!D32) -> 3 | B18: =IF('BİLGİ GİRİŞİ'!E32="","",'BİLGİ GİRİŞİ'!E32) -> Projektör | P18: =IF('BİLGİ GİRİŞİ'!W32="","",'BİLGİ GİRİŞİ'!W32) -> Adet | T18: =IF('BİLGİ GİRİŞİ'!T32="","",'BİLGİ GİRİŞİ'!T32) -> 2 | X18: =IF('BİLGİ GİRİŞİ'!AB32="","",'BİLGİ GİRİŞİ'!AB32) -> 4000 | AA18: =IF('BİLGİ GİRİŞİ'!AF32="","",'BİLGİ GİRİŞİ'!AF32) -> 8000 | AD18: =IF('BİLGİ GİRİŞİ'!AJ32="","",'BİLGİ GİRİŞİ'!AJ32) -> 5000 | AG18: =IF('BİLGİ GİRİŞİ'!AN32="","",'BİLGİ GİRİŞİ'!AN32) -> 10000 | AJ18: =IF('BİLGİ GİRİŞİ'!AR32="","",'BİLGİ GİRİŞİ'!AR32) -> 6000 | AM18: =IF('BİLGİ GİRİŞİ'!AV32="","",'BİLGİ GİRİŞİ'!AV32) -> 12000 | AP18: 5000 | AS18: 10000
A19: =IF('BİLGİ GİRİŞİ'!D33="","",'BİLGİ GİRİŞİ'!D33) ->  | B19: =IF('BİLGİ GİRİŞİ'!E33="","",'BİLGİ GİRİŞİ'!E33) ->  | P19: =IF('BİLGİ GİRİŞİ'!W33="","",'BİLGİ GİRİŞİ'!W33) ->  | T19: =IF('BİLGİ GİRİŞİ'!T33="","",'BİLGİ GİRİŞİ'!T33) ->  | X19: =IF('BİLGİ GİRİŞİ'!AB33="","",'BİLGİ GİRİŞİ'!AB33) ->  | AA19: =IF('BİLGİ GİRİŞİ'!AF33="","",'BİLGİ GİRİŞİ'!AF33) ->  | AD19: =IF('BİLGİ GİRİŞİ'!AJ33="","",'BİLGİ GİRİŞİ'!AJ33) ->  | AG19: =IF('BİLGİ GİRİŞİ'!AN33="","",'BİLGİ GİRİŞİ'!AN33) ->  | AJ19: =IF('BİLGİ GİRİŞİ'!AR33="","",'BİLGİ GİRİŞİ'!AR33) ->  | AM19: =IF('BİLGİ GİRİŞİ'!AV33="","",'BİLGİ GİRİŞİ'!AV33) -> 
A20: =IF('BİLGİ GİRİŞİ'!D34="","",'BİLGİ GİRİŞİ'!D34) ->  | B20: =IF('BİLGİ GİRİŞİ'!E34="","",'BİLGİ GİRİŞİ'!E34) ->  | P20: =IF('BİLGİ GİRİŞİ'!W34="","",'BİLGİ GİRİŞİ'!W34) ->  | T20: =IF('BİLGİ GİRİŞİ'!T34="","",'BİLGİ GİRİŞİ'!T34) ->  | X20: =IF('BİLGİ GİRİŞİ'!AB34="","",'BİLGİ GİRİŞİ'!AB34) ->  | AA20: =IF('BİLGİ GİRİŞİ'!AF34="","",'BİLGİ GİRİŞİ'!AF34) ->  | AD20: =IF('BİLGİ GİRİŞİ'!AJ34="","",'BİLGİ GİRİŞİ'!AJ34) ->  | AG20: =IF('BİLGİ GİRİŞİ'!AN34="","",'BİLGİ GİRİŞİ'!AN34) ->  | AJ20: =IF('BİLGİ GİRİŞİ'!AR34="","",'BİLGİ GİRİŞİ'!AR34) ->  | AM20: =IF('BİLGİ GİRİŞİ'!AV34="","",'BİLGİ GİRİŞİ'!AV34) -> 
A21: =IF('BİLGİ GİRİŞİ'!D35="","",'BİLGİ GİRİŞİ'!D35) ->  | B21: =IF('BİLGİ GİRİŞİ'!E35="","",'BİLGİ GİRİŞİ'!E35) ->  | P21: =IF('BİLGİ GİRİŞİ'!W35="","",'BİLGİ GİRİŞİ'!W35) ->  | T21: =IF('BİLGİ GİRİŞİ'!T35="","",'BİLGİ GİRİŞİ'!T35) ->  | X21: =IF('BİLGİ GİRİŞİ'!AB35="","",'BİLGİ GİRİŞİ'!AB35) ->  | AA21: =IF('BİLGİ GİRİŞİ'!AF35="","",'BİLGİ GİRİŞİ'!AF35) ->  | AD21: =IF('BİLGİ GİRİŞİ'!AJ35="","",'BİLGİ GİRİŞİ'!AJ35) ->  | AG21: =IF('BİLGİ GİRİŞİ'!AN35="","",'BİLGİ GİRİŞİ'!AN35) ->  | AJ21: =IF('BİLGİ GİRİŞİ'!AR35="","",'BİLGİ GİRİŞİ'!AR35) ->  | AM21: =IF('BİLGİ GİRİŞİ'!AV35="","",'BİLGİ GİRİŞİ'!AV35) -> 
A22: =IF('BİLGİ GİRİŞİ'!D36="","",'BİLGİ GİRİŞİ'!D36) ->  | B22: =IF('BİLGİ GİRİŞİ'!E36="","",'BİLGİ GİRİŞİ'!E36) ->  | P22: =IF('BİLGİ GİRİŞİ'!W36="","",'BİLGİ GİRİŞİ'!W36) ->  | T22: =IF('BİLGİ GİRİŞİ'!T36="","",'BİLGİ GİRİŞİ'!T36) ->  | X22: =IF('BİLGİ GİRİŞİ'!AB36="","",'BİLGİ GİRİŞİ'!AB36) ->  | AA22: =IF('BİLGİ GİRİŞİ'!AF36="","",'BİLGİ GİRİŞİ'!AF36) ->  | AD22: =IF('BİLGİ GİRİŞİ'!AJ36="","",'BİLGİ GİRİŞİ'!AJ36) ->  | AG22: =IF('BİLGİ GİRİŞİ'!AN36="","",'BİLGİ GİRİŞİ'!AN36) ->  | AJ22: =IF('BİLGİ GİRİŞİ'!AR36="","",'BİLGİ GİRİŞİ'!AR36) ->  | AM22: =IF('BİLGİ GİRİŞİ'!AV36="","",'BİLGİ GİRİŞİ'!AV36) -> 
A23: =IF('BİLGİ GİRİŞİ'!D37="","",'BİLGİ GİRİŞİ'!D37) ->  | B23: =IF('BİLGİ GİRİŞİ'!E37="","",'BİLGİ GİRİŞİ'!E37) ->  | P23: =IF('BİLGİ GİRİŞİ'!W37="","",'BİLGİ GİRİŞİ'!W37) ->  | T23: =IF('BİLGİ GİRİŞİ'!T37="","",'BİLGİ GİRİŞİ'!T37) ->  | X23: =IF('BİLGİ GİRİŞİ'!AB37="","",'BİLGİ GİRİŞİ'!AB37) ->  | AA23: =IF('BİLGİ GİRİŞİ'!AF37="","",'BİLGİ GİRİŞİ'!AF37) ->  | AD23: =IF('BİLGİ GİRİŞİ'!AJ37="","",'BİLGİ GİRİŞİ'!AJ37) ->  | AG23: =IF('BİLGİ GİRİŞİ'!AN37="","",'BİLGİ GİRİŞİ'!AN37) ->  | AJ23: =IF('BİLGİ GİRİŞİ'!AR37="","",'BİLGİ GİRİŞİ'!AR37) ->  | AM23: =IF('BİLGİ GİRİŞİ'!AV37="","",'BİLGİ GİRİŞİ'!AV37) -> 
A24: =IF('BİLGİ GİRİŞİ'!D38="","",'BİLGİ GİRİŞİ'!D38) ->  | B24: =IF('BİLGİ GİRİŞİ'!E38="","",'BİLGİ GİRİŞİ'!E38) ->  | P24: =IF('BİLGİ GİRİŞİ'!W38="","",'BİLGİ GİRİŞİ'!W38) ->  | T24: =IF('BİLGİ GİRİŞİ'!T38="","",'BİLGİ GİRİŞİ'!T38) ->  | X24: =IF('BİLGİ GİRİŞİ'!AB38="","",'BİLGİ GİRİŞİ'!AB38) ->  | AA24: =IF('BİLGİ GİRİŞİ'!AF38="","",'BİLGİ GİRİŞİ'!AF38) ->  | AD24: =IF('BİLGİ GİRİŞİ'!AJ38="","",'BİLGİ GİRİŞİ'!AJ38) ->  | AG24: =IF('BİLGİ GİRİŞİ'!AN38="","",'BİLGİ GİRİŞİ'!AN38) ->  | AJ24: =IF('BİLGİ GİRİŞİ'!AR38="","",'BİLGİ GİRİŞİ'!AR38) ->  | AM24: =IF('BİLGİ GİRİŞİ'!AV38="","",'BİLGİ GİRİŞİ'!AV38) -> 
A25: =IF('BİLGİ GİRİŞİ'!D39="","",'BİLGİ GİRİŞİ'!D39) ->  | B25: =IF('BİLGİ GİRİŞİ'!E39="","",'BİLGİ GİRİŞİ'!E39) ->  | P25: =IF('BİLGİ GİRİŞİ'!W39="","",'BİLGİ GİRİŞİ'!W39) ->  | T25: =IF('BİLGİ GİRİŞİ'!T39="","",'BİLGİ GİRİŞİ'!T39) ->  | X25: =IF('BİLGİ GİRİŞİ'!AB39="","",'BİLGİ GİRİŞİ'!AB39) ->  | AA25: =IF('BİLGİ GİRİŞİ'!AF39="","",'BİLGİ GİRİŞİ'!AF39) ->  | AD25: =IF('BİLGİ GİRİŞİ'!AJ39="","",'BİLGİ GİRİŞİ'!AJ39) ->  | AG25: =IF('BİLGİ GİRİŞİ'!AN39="","",'BİLGİ GİRİŞİ'!AN39) ->  | AJ25: =IF('BİLGİ GİRİŞİ'!AR39="","",'BİLGİ GİRİŞİ'!AR39) ->  | AM25: =IF('BİLGİ GİRİŞİ'!AV39="","",'BİLGİ GİRİŞİ'!AV39) -> 
A26: =IF('BİLGİ GİRİŞİ'!D40="","",'BİLGİ GİRİŞİ'!D40) ->  | B26: =IF('BİLGİ GİRİŞİ'!E40="","",'BİLGİ GİRİŞİ'!E40) ->  | P26: =IF('BİLGİ GİRİŞİ'!W40="","",'BİLGİ GİRİŞİ'!W40) ->  | T26: =IF('BİLGİ GİRİŞİ'!T40="","",'BİLGİ GİRİŞİ'!T40) ->  | X26: =IF('BİLGİ GİRİŞİ'!AB40="","",'BİLGİ GİRİŞİ'!AB40) ->  | AA26: =IF('BİLGİ GİRİŞİ'!AF40="","",'BİLGİ GİRİŞİ'!AF40) ->  | AD26: =IF('BİLGİ GİRİŞİ'!AJ40="","",'BİLGİ GİRİŞİ'!AJ40) ->  | AG26: =IF('BİLGİ GİRİŞİ'!AN40="","",'BİLGİ GİRİŞİ'!AN40) ->  | AJ26: =IF('BİLGİ GİRİŞİ'!AR40="","",'BİLGİ GİRİŞİ'!AR40) ->  | AM26: =IF('BİLGİ GİRİŞİ'!AV40="","",'BİLGİ GİRİŞİ'!AV40) -> 
A27: =IF('BİLGİ GİRİŞİ'!D41="","",'BİLGİ GİRİŞİ'!D41) ->  | B27: =IF('BİLGİ GİRİŞİ'!E41="","",'BİLGİ GİRİŞİ'!E41) ->  | P27: =IF('BİLGİ GİRİŞİ'!W41="","",'BİLGİ GİRİŞİ'!W41) ->  | T27: =IF('BİLGİ GİRİŞİ'!T41="","",'BİLGİ GİRİŞİ'!T41) ->  | X27: =IF('BİLGİ GİRİŞİ'!AB41="","",'BİLGİ GİRİŞİ'!AB41) ->  | AA27: =IF('BİLGİ GİRİŞİ'!AF41="","",'BİLGİ GİRİŞİ'!AF41) ->  | AD27: =IF('BİLGİ GİRİŞİ'!AJ41="","",'BİLGİ GİRİŞİ'!AJ41) ->  | AG27: =IF('BİLGİ GİRİŞİ'!AN41="","",'BİLGİ GİRİŞİ'!AN41) ->  | AJ27: =IF('BİLGİ GİRİŞİ'!AR41="","",'BİLGİ GİRİŞİ'!AR41) ->  | AM27: =IF('BİLGİ GİRİŞİ'!AV41="","",'BİLGİ GİRİŞİ'!AV41) -> 
A28: =IF('BİLGİ GİRİŞİ'!D42="","",'BİLGİ GİRİŞİ'!D42) ->  | B28: =IF('BİLGİ GİRİŞİ'!E42="","",'BİLGİ GİRİŞİ'!E42) ->  | P28: =IF('BİLGİ GİRİŞİ'!W42="","",'BİLGİ GİRİŞİ'!W42) ->  | T28: =IF('BİLGİ GİRİŞİ'!T42="","",'BİLGİ GİRİŞİ'!T42) ->  | X28: =IF('BİLGİ GİRİŞİ'!AB42="","",'BİLGİ GİRİŞİ'!AB42) ->  | AA28: =IF('BİLGİ GİRİŞİ'!AF42="","",'BİLGİ GİRİŞİ'!AF42) ->  | AD28: =IF('BİLGİ GİRİŞİ'!AJ42="","",'BİLGİ GİRİŞİ'!AJ42) ->  | AG28: =IF('BİLGİ GİRİŞİ'!AN42="","",'BİLGİ GİRİŞİ'!AN42) ->  | AJ28: =IF('BİLGİ GİRİŞİ'!AR42="","",'BİLGİ GİRİŞİ'!AR42) ->  | AM28: =IF('BİLGİ GİRİŞİ'!AV42="","",'BİLGİ GİRİŞİ'!AV42) -> 
A29: =IF('BİLGİ GİRİŞİ'!D43="","",'BİLGİ GİRİŞİ'!D43) ->  | B29: =IF('BİLGİ GİRİŞİ'!E43="","",'BİLGİ GİRİŞİ'!E43) ->  | P29: =IF('BİLGİ GİRİŞİ'!W43="","",'BİLGİ GİRİŞİ'!W43) ->  | T29: =IF('BİLGİ GİRİŞİ'!T43="","",'BİLGİ GİRİŞİ'!T43) ->  | X29: =IF('BİLGİ GİRİŞİ'!AB43="","",'BİLGİ GİRİŞİ'!AB43) ->  | AA29: =IF('BİLGİ GİRİŞİ'!AF43="","",'BİLGİ GİRİŞİ'!AF43) ->  | AD29: =IF('BİLGİ GİRİŞİ'!AJ43="","",'BİLGİ GİRİŞİ'!AJ43) ->  | AG29: =IF('BİLGİ GİRİŞİ'!AN43="","",'BİLGİ GİRİŞİ'!AN43) ->  | AJ29: =IF('BİLGİ GİRİŞİ'!AR43="","",'BİLGİ GİRİŞİ'!AR43) ->  | AM29: =IF('BİLGİ GİRİŞİ'!AV43="","",'BİLGİ GİRİŞİ'!AV43) -> 
A30: =IF('BİLGİ GİRİŞİ'!D44="","",'BİLGİ GİRİŞİ'!D44) ->  | B30: =IF('BİLGİ GİRİŞİ'!E44="","",'BİLGİ GİRİŞİ'!E44) ->  | P30: =IF('BİLGİ GİRİŞİ'!W44="","",'BİLGİ GİRİŞİ'!W44) ->  | T30: =IF('BİLGİ GİRİŞİ'!T44="","",'BİLGİ GİRİŞİ'!T44) ->  | X30: =IF('BİLGİ GİRİŞİ'!AB44="","",'BİLGİ GİRİŞİ'!AB44) ->  | AA30: =IF('BİLGİ GİRİŞİ'!AF44="","",'BİLGİ GİRİŞİ'!AF44) ->  | AD30: =IF('BİLGİ GİRİŞİ'!AJ44="","",'BİLGİ GİRİŞİ'!AJ44) ->  | AG30: =IF('BİLGİ GİRİŞİ'!AN44="","",'BİLGİ GİRİŞİ'!AN44) ->  | AJ30: =IF('BİLGİ GİRİŞİ'!AR44="","",'BİLGİ GİRİŞİ'!AR44) ->  | AM30: =IF('BİLGİ GİRİŞİ'!AV44="","",'BİLGİ GİRİŞİ'!AV44) -> 
A31: =IF('BİLGİ GİRİŞİ'!D45="","",'BİLGİ GİRİŞİ'!D45) ->  | B31: =IF('BİLGİ GİRİŞİ'!E45="","",'BİLGİ GİRİŞİ'!E45) ->  | P31: =IF('BİLGİ GİRİŞİ'!W45="","",'BİLGİ GİRİŞİ'!W45) ->  | T31: =IF('BİLGİ GİRİŞİ'!T45="","",'BİLGİ GİRİŞİ'!T45) ->  | X31: =IF('BİLGİ GİRİŞİ'!AB45="","",'BİLGİ GİRİŞİ'!AB45) ->  | AA31: =IF('BİLGİ GİRİŞİ'!AF45="","",'BİLGİ GİRİŞİ'!AF45) ->  | AD31: =IF('BİLGİ GİRİŞİ'!AJ45="","",'BİLGİ GİRİŞİ'!AJ45) ->  | AG31: =IF('BİLGİ GİRİŞİ'!AN45="","",'BİLGİ GİRİŞİ'!AN45) ->  | AJ31: =IF('BİLGİ GİRİŞİ'!AR45="","",'BİLGİ GİRİŞİ'!AR45) ->  | AM31: =IF('BİLGİ GİRİŞİ'!AV45="","",'BİLGİ GİRİŞİ'!AV45) -> 
A32: =IF('BİLGİ GİRİŞİ'!D46="","",'BİLGİ GİRİŞİ'!D46) ->  | B32: =IF('BİLGİ GİRİŞİ'!E46="","",'BİLGİ GİRİŞİ'!E46) ->  | P32: =IF('BİLGİ GİRİŞİ'!W46="","",'BİLGİ GİRİŞİ'!W46) ->  | T32: =IF('BİLGİ GİRİŞİ'!T46="","",'BİLGİ GİRİŞİ'!T46) ->  | X32: =IF('BİLGİ GİRİŞİ'!AB46="","",'BİLGİ GİRİŞİ'!AB46) ->  | AA32: =IF('BİLGİ GİRİŞİ'!AF46="","",'BİLGİ GİRİŞİ'!AF46) ->  | AD32: =IF('BİLGİ GİRİŞİ'!AJ46="","",'BİLGİ GİRİŞİ'!AJ46) ->  | AG32: =IF('BİLGİ GİRİŞİ'!AN46="","",'BİLGİ GİRİŞİ'!AN46) ->  | AJ32: =IF('BİLGİ GİRİŞİ'!AR46="","",'BİLGİ GİRİŞİ'!AR46) ->  | AM32: =IF('BİLGİ GİRİŞİ'!AV46="","",'BİLGİ GİRİŞİ'!AV46) -> 
A33: =IF('BİLGİ GİRİŞİ'!D47="","",'BİLGİ GİRİŞİ'!D47) ->  | B33: =IF('BİLGİ GİRİŞİ'!E47="","",'BİLGİ GİRİŞİ'!E47) ->  | P33: =IF('BİLGİ GİRİŞİ'!W47="","",'BİLGİ GİRİŞİ'!W47) ->  | T33: =IF('BİLGİ GİRİŞİ'!T47="","",'BİLGİ GİRİŞİ'!T47) ->  | X33: =IF('BİLGİ GİRİŞİ'!AB47="","",'BİLGİ GİRİŞİ'!AB47) ->  | AA33: =IF('BİLGİ GİRİŞİ'!AF47="","",'BİLGİ GİRİŞİ'!AF47) ->  | AD33: =IF('BİLGİ GİRİŞİ'!AJ47="","",'BİLGİ GİRİŞİ'!AJ47) ->  | AG33: =IF('BİLGİ GİRİŞİ'!AN47="","",'BİLGİ GİRİŞİ'!AN47) ->  | AJ33: =IF('BİLGİ GİRİŞİ'!AR47="","",'BİLGİ GİRİŞİ'!AR47) ->  | AM33: =IF('BİLGİ GİRİŞİ'!AV47="","",'BİLGİ GİRİŞİ'!AV47) -> 
A34: =IF('BİLGİ GİRİŞİ'!D48="","",'BİLGİ GİRİŞİ'!D48) ->  | B34: =IF('BİLGİ GİRİŞİ'!E48="","",'BİLGİ GİRİŞİ'!E48) ->  | P34: =IF('BİLGİ GİRİŞİ'!W48="","",'BİLGİ GİRİŞİ'!W48) ->  | T34: =IF('BİLGİ GİRİŞİ'!T48="","",'BİLGİ GİRİŞİ'!T48) ->  | X34: =IF('BİLGİ GİRİŞİ'!AB48="","",'BİLGİ GİRİŞİ'!AB48) ->  | AA34: =IF('BİLGİ GİRİŞİ'!AF48="","",'BİLGİ GİRİŞİ'!AF48) ->  | AD34: =IF('BİLGİ GİRİŞİ'!AJ48="","",'BİLGİ GİRİŞİ'!AJ48) ->  | AG34: =IF('BİLGİ GİRİŞİ'!AN48="","",'BİLGİ GİRİŞİ'!AN48) ->  | AJ34: =IF('BİLGİ GİRİŞİ'!AR48="","",'BİLGİ GİRİŞİ'!AR48) ->  | AM34: =IF('BİLGİ GİRİŞİ'!AV48="","",'BİLGİ GİRİŞİ'!AV48) ->  | AP34: =IF(P34="","",(X34+AD34+AJ34)/3) ->  | AS34: =IF(P34="","",(AA34+AG34+AM34)/3) -> 
A35: =IF('BİLGİ GİRİŞİ'!D49="","",'BİLGİ GİRİŞİ'!D49) ->  | B35: =IF('BİLGİ GİRİŞİ'!E49="","",'BİLGİ GİRİŞİ'!E49) ->  | P35: =IF('BİLGİ GİRİŞİ'!W49="","",'BİLGİ GİRİŞİ'!W49) ->  | T35: =IF('BİLGİ GİRİŞİ'!T49="","",'BİLGİ GİRİŞİ'!T49) ->  | X35: =IF('BİLGİ GİRİŞİ'!AB49="","",'BİLGİ GİRİŞİ'!AB49) ->  | AA35: =IF('BİLGİ GİRİŞİ'!AF49="","",'BİLGİ GİRİŞİ'!AF49) ->  | AD35: =IF('BİLGİ GİRİŞİ'!AJ49="","",'BİLGİ GİRİŞİ'!AJ49) ->  | AG35: =IF('BİLGİ GİRİŞİ'!AN49="","",'BİLGİ GİRİŞİ'!AN49) ->  | AJ35: =IF('BİLGİ GİRİŞİ'!AR49="","",'BİLGİ GİRİŞİ'!AR49) ->  | AM35: =IF('BİLGİ GİRİŞİ'!AV49="","",'BİLGİ GİRİŞİ'!AV49) -> 
A36: =IF('BİLGİ GİRİŞİ'!D50="","",'BİLGİ GİRİŞİ'!D50) ->  | B36: =IF('BİLGİ GİRİŞİ'!E50="","",'BİLGİ GİRİŞİ'!E50) ->  | P36: =IF('BİLGİ GİRİŞİ'!W50="","",'BİLGİ GİRİŞİ'!W50) ->  | T36: =IF('BİLGİ GİRİŞİ'!T50="","",'BİLGİ GİRİŞİ'!T50) ->  | X36: =IF('BİLGİ GİRİŞİ'!AB50="","",'BİLGİ GİRİŞİ'!AB50) ->  | AA36: =IF('BİLGİ GİRİŞİ'!AF50="","",'BİLGİ GİRİŞİ'!AF50) ->  | AD36: =IF('BİLGİ GİRİŞİ'!AJ50="","",'BİLGİ GİRİŞİ'!AJ50) ->  | AG36: =IF('BİLGİ GİRİŞİ'!AN50="","",'BİLGİ GİRİŞİ'!AN50) ->  | AJ36: =IF('BİLGİ GİRİŞİ'!AR50="","",'BİLGİ GİRİŞİ'!AR50) ->  | AM36: =IF('BİLGİ GİRİŞİ'!AV50="","",'BİLGİ GİRİŞİ'!AV50) -> 
A37: =IF('BİLGİ GİRİŞİ'!D51="","",'BİLGİ GİRİŞİ'!D51) ->  | B37: =IF('BİLGİ GİRİŞİ'!E51="","",'BİLGİ GİRİŞİ'!E51) ->  | P37: =IF('BİLGİ GİRİŞİ'!W51="","",'BİLGİ GİRİŞİ'!W51) ->  | T37: =IF('BİLGİ GİRİŞİ'!T51="","",'BİLGİ GİRİŞİ'!T51) ->  | X37: =IF('BİLGİ GİRİŞİ'!AB51="","",'BİLGİ GİRİŞİ'!AB51) ->  | AA37: =IF('BİLGİ GİRİŞİ'!AF51="","",'BİLGİ GİRİŞİ'!AF51) ->  | AD37: =IF('BİLGİ GİRİŞİ'!AJ51="","",'BİLGİ GİRİŞİ'!AJ51) ->  | AG37: =IF('BİLGİ GİRİŞİ'!AN51="","",'BİLGİ GİRİŞİ'!AN51) ->  | AJ37: =IF('BİLGİ GİRİŞİ'!AR51="","",'BİLGİ GİRİŞİ'!AR51) ->  | AM37: =IF('BİLGİ GİRİŞİ'!AV51="","",'BİLGİ GİRİŞİ'!AV51) -> 
A38: =IF('BİLGİ GİRİŞİ'!D52="","",'BİLGİ GİRİŞİ'!D52) ->  | B38: =IF('BİLGİ GİRİŞİ'!E52="","",'BİLGİ GİRİŞİ'!E52) ->  | P38: =IF('BİLGİ GİRİŞİ'!W52="","",'BİLGİ GİRİŞİ'!W52) ->  | T38: =IF('BİLGİ GİRİŞİ'!T52="","",'BİLGİ GİRİŞİ'!T52) ->  | X38: =IF('BİLGİ GİRİŞİ'!AB52="","",'BİLGİ GİRİŞİ'!AB52) ->  | AA38: =IF('BİLGİ GİRİŞİ'!AF52="","",'BİLGİ GİRİŞİ'!AF52) ->  | AD38: =IF('BİLGİ GİRİŞİ'!AJ52="","",'BİLGİ GİRİŞİ'!AJ52) ->  | AG38: =IF('BİLGİ GİRİŞİ'!AN52="","",'BİLGİ GİRİŞİ'!AN52) ->  | AJ38: =IF('BİLGİ GİRİŞİ'!AR52="","",'BİLGİ GİRİŞİ'!AR52) ->  | AM38: =IF('BİLGİ GİRİŞİ'!AV52="","",'BİLGİ GİRİŞİ'!AV52) -> 
A39: =IF('BİLGİ GİRİŞİ'!D53="","",'BİLGİ GİRİŞİ'!D53) ->  | B39: =IF('BİLGİ GİRİŞİ'!E53="","",'BİLGİ GİRİŞİ'!E53) ->  | P39: =IF('BİLGİ GİRİŞİ'!W53="","",'BİLGİ GİRİŞİ'!W53) ->  | T39: =IF('BİLGİ GİRİŞİ'!T53="","",'BİLGİ GİRİŞİ'!T53) ->  | X39: =IF('BİLGİ GİRİŞİ'!AB53="","",'BİLGİ GİRİŞİ'!AB53) ->  | AA39: =IF('BİLGİ GİRİŞİ'!AF53="","",'BİLGİ GİRİŞİ'!AF53) ->  | AD39: =IF('BİLGİ GİRİŞİ'!AJ53="","",'BİLGİ GİRİŞİ'!AJ53) ->  | AG39: =IF('BİLGİ GİRİŞİ'!AN53="","",'BİLGİ GİRİŞİ'!AN53) ->  | AJ39: =IF('BİLGİ GİRİŞİ'!AR53="","",'BİLGİ GİRİŞİ'!AR53) ->  | AM39: =IF('BİLGİ GİRİŞİ'!AV53="","",'BİLGİ GİRİŞİ'!AV53) -> 
A40: =IF('BİLGİ GİRİŞİ'!D54="","",'BİLGİ GİRİŞİ'!D54) ->  | B40: =IF('BİLGİ GİRİŞİ'!E54="","",'BİLGİ GİRİŞİ'!E54) ->  | P40: =IF('BİLGİ GİRİŞİ'!W54="","",'BİLGİ GİRİŞİ'!W54) ->  | T40: =IF('BİLGİ GİRİŞİ'!T54="","",'BİLGİ GİRİŞİ'!T54) ->  | X40: =IF('BİLGİ GİRİŞİ'!AB54="","",'BİLGİ GİRİŞİ'!AB54) ->  | AA40: =IF('BİLGİ GİRİŞİ'!AF54="","",'BİLGİ GİRİŞİ'!AF54) ->  | AD40: =IF('BİLGİ GİRİŞİ'!AJ54="","",'BİLGİ GİRİŞİ'!AJ54) ->  | AG40: =IF('BİLGİ GİRİŞİ'!AN54="","",'BİLGİ GİRİŞİ'!AN54) ->  | AJ40: =IF('BİLGİ GİRİŞİ'!AR54="","",'BİLGİ GİRİŞİ'!AR54) ->  | AM40: =IF('BİLGİ GİRİŞİ'!AV54="","",'BİLGİ GİRİŞİ'!AV54) -> 
A41: =IF('BİLGİ GİRİŞİ'!D55="","",'BİLGİ GİRİŞİ'!D55) ->  | B41: =IF('BİLGİ GİRİŞİ'!E55="","",'BİLGİ GİRİŞİ'!E55) ->  | P41: =IF('BİLGİ GİRİŞİ'!W55="","",'BİLGİ GİRİŞİ'!W55) ->  | T41: =IF('BİLGİ GİRİŞİ'!T55="","",'BİLGİ GİRİŞİ'!T55) ->  | X41: =IF('BİLGİ GİRİŞİ'!AB55="","",'BİLGİ GİRİŞİ'!AB55) ->  | AA41: =IF('BİLGİ GİRİŞİ'!AF55="","",'BİLGİ GİRİŞİ'!AF55) ->  | AD41: =IF('BİLGİ GİRİŞİ'!AJ55="","",'BİLGİ GİRİŞİ'!AJ55) ->  | AG41: =IF('BİLGİ GİRİŞİ'!AN55="","",'BİLGİ GİRİŞİ'!AN55) ->  | AJ41: =IF('BİLGİ GİRİŞİ'!AR55="","",'BİLGİ GİRİŞİ'!AR55) ->  | AM41: =IF('BİLGİ GİRİŞİ'!AV55="","",'BİLGİ GİRİŞİ'!AV55) -> 
A42: =IF('BİLGİ GİRİŞİ'!D56="","",'BİLGİ GİRİŞİ'!D56) ->  | B42: =IF('BİLGİ GİRİŞİ'!E56="","",'BİLGİ GİRİŞİ'!E56) ->  | P42: =IF('BİLGİ GİRİŞİ'!W56="","",'BİLGİ GİRİŞİ'!W56) ->  | T42: =IF('BİLGİ GİRİŞİ'!T56="","",'BİLGİ GİRİŞİ'!T56) ->  | X42: =IF('BİLGİ GİRİŞİ'!AB56="","",'BİLGİ GİRİŞİ'!AB56) ->  | AA42: =IF('BİLGİ GİRİŞİ'!AF56="","",'BİLGİ GİRİŞİ'!AF56) ->  | AD42: =IF('BİLGİ GİRİŞİ'!AJ56="","",'BİLGİ GİRİŞİ'!AJ56) ->  | AG42: =IF('BİLGİ GİRİŞİ'!AN56="","",'BİLGİ GİRİŞİ'!AN56) ->  | AJ42: =IF('BİLGİ GİRİŞİ'!AR56="","",'BİLGİ GİRİŞİ'!AR56) ->  | AM42: =IF('BİLGİ GİRİŞİ'!AV56="","",'BİLGİ GİRİŞİ'!AV56) -> 
A43: =IF('BİLGİ GİRİŞİ'!D57="","",'BİLGİ GİRİŞİ'!D57) ->  | B43: =IF('BİLGİ GİRİŞİ'!E57="","",'BİLGİ GİRİŞİ'!E57) ->  | P43: =IF('BİLGİ GİRİŞİ'!W57="","",'BİLGİ GİRİŞİ'!W57) ->  | T43: =IF('BİLGİ GİRİŞİ'!T57="","",'BİLGİ GİRİŞİ'!T57) ->  | X43: =IF('BİLGİ GİRİŞİ'!AB57="","",'BİLGİ GİRİŞİ'!AB57) ->  | AA43: =IF('BİLGİ GİRİŞİ'!AF57="","",'BİLGİ GİRİŞİ'!AF57) ->  | AD43: =IF('BİLGİ GİRİŞİ'!AJ57="","",'BİLGİ GİRİŞİ'!AJ57) ->  | AG43: =IF('BİLGİ GİRİŞİ'!AN57="","",'BİLGİ GİRİŞİ'!AN57) ->  | AJ43: =IF('BİLGİ GİRİŞİ'!AR57="","",'BİLGİ GİRİŞİ'!AR57) ->  | AM43: =IF('BİLGİ GİRİŞİ'!AV57="","",'BİLGİ GİRİŞİ'!AV57) -> 
A44: =IF('BİLGİ GİRİŞİ'!D58="","",'BİLGİ GİRİŞİ'!D58) ->  | B44: =IF('BİLGİ GİRİŞİ'!E58="","",'BİLGİ GİRİŞİ'!E58) ->  | P44: =IF('BİLGİ GİRİŞİ'!W58="","",'BİLGİ GİRİŞİ'!W58) ->  | T44: =IF('BİLGİ GİRİŞİ'!T58="","",'BİLGİ GİRİŞİ'!T58) ->  | X44: =IF('BİLGİ GİRİŞİ'!AB58="","",'BİLGİ GİRİŞİ'!AB58) ->  | AA44: =IF('BİLGİ GİRİŞİ'!AF58="","",'BİLGİ GİRİŞİ'!AF58) ->  | AD44: =IF('BİLGİ GİRİŞİ'!AJ58="","",'BİLGİ GİRİŞİ'!AJ58) ->  | AG44: =IF('BİLGİ GİRİŞİ'!AN58="","",'BİLGİ GİRİŞİ'!AN58) ->  | AJ44: =IF('BİLGİ GİRİŞİ'!AR58="","",'BİLGİ GİRİŞİ'!AR58) ->  | AM44: =IF('BİLGİ GİRİŞİ'!AV58="","",'BİLGİ GİRİŞİ'!AV58) -> 
A45: =IF('BİLGİ GİRİŞİ'!D59="","",'BİLGİ GİRİŞİ'!D59) ->  | B45: =IF('BİLGİ GİRİŞİ'!E59="","",'BİLGİ GİRİŞİ'!E59) ->  | P45: =IF('BİLGİ GİRİŞİ'!W59="","",'BİLGİ GİRİŞİ'!W59) ->  | T45: =IF('BİLGİ GİRİŞİ'!T59="","",'BİLGİ GİRİŞİ'!T59) ->  | X45: =IF('BİLGİ GİRİŞİ'!AB59="","",'BİLGİ GİRİŞİ'!AB59) ->  | AA45: =IF('BİLGİ GİRİŞİ'!AF59="","",'BİLGİ GİRİŞİ'!AF59) ->  | AD45: =IF('BİLGİ GİRİŞİ'!AJ59="","",'BİLGİ GİRİŞİ'!AJ59) ->  | AG45: =IF('BİLGİ GİRİŞİ'!AN59="","",'BİLGİ GİRİŞİ'!AN59) ->  | AJ45: =IF('BİLGİ GİRİŞİ'!AR59="","",'BİLGİ GİRİŞİ'!AR59) ->  | AM45: =IF('BİLGİ GİRİŞİ'!AV59="","",'BİLGİ GİRİŞİ'!AV59) -> 
A46: =IF('BİLGİ GİRİŞİ'!D60="","",'BİLGİ GİRİŞİ'!D60) ->  | B46: =IF('BİLGİ GİRİŞİ'!E60="","",'BİLGİ GİRİŞİ'!E60) ->  | P46: =IF('BİLGİ GİRİŞİ'!W60="","",'BİLGİ GİRİŞİ'!W60) ->  | T46: =IF('BİLGİ GİRİŞİ'!T60="","",'BİLGİ GİRİŞİ'!T60) ->  | X46: =IF('BİLGİ GİRİŞİ'!AB60="","",'BİLGİ GİRİŞİ'!AB60) ->  | AA46: =IF('BİLGİ GİRİŞİ'!AF60="","",'BİLGİ GİRİŞİ'!AF60) ->  | AD46: =IF('BİLGİ GİRİŞİ'!AJ60="","",'BİLGİ GİRİŞİ'!AJ60) ->  | AG46: =IF('BİLGİ GİRİŞİ'!AN60="","",'BİLGİ GİRİŞİ'!AN60) ->  | AJ46: =IF('BİLGİ GİRİŞİ'!AR60="","",'BİLGİ GİRİŞİ'!AR60) ->  | AM46: =IF('BİLGİ GİRİŞİ'!AV60="","",'BİLGİ GİRİŞİ'!AV60) -> 
A47: =IF('BİLGİ GİRİŞİ'!D61="","",'BİLGİ GİRİŞİ'!D61) ->  | B47: =IF('BİLGİ GİRİŞİ'!E61="","",'BİLGİ GİRİŞİ'!E61) ->  | P47: =IF('BİLGİ GİRİŞİ'!W61="","",'BİLGİ GİRİŞİ'!W61) ->  | T47: =IF('BİLGİ GİRİŞİ'!T61="","",'BİLGİ GİRİŞİ'!T61) ->  | X47: =IF('BİLGİ GİRİŞİ'!AB61="","",'BİLGİ GİRİŞİ'!AB61) ->  | AA47: =IF('BİLGİ GİRİŞİ'!AF61="","",'BİLGİ GİRİŞİ'!AF61) ->  | AD47: =IF('BİLGİ GİRİŞİ'!AJ61="","",'BİLGİ GİRİŞİ'!AJ61) ->  | AG47: =IF('BİLGİ GİRİŞİ'!AN61="","",'BİLGİ GİRİŞİ'!AN61) ->  | AJ47: =IF('BİLGİ GİRİŞİ'!AR61="","",'BİLGİ GİRİŞİ'!AR61) ->  | AM47: =IF('BİLGİ GİRİŞİ'!AV61="","",'BİLGİ GİRİŞİ'!AV61) -> 
A48: =IF('BİLGİ GİRİŞİ'!D62="","",'BİLGİ GİRİŞİ'!D62) ->  | B48: =IF('BİLGİ GİRİŞİ'!E62="","",'BİLGİ GİRİŞİ'!E62) ->  | P48: =IF('BİLGİ GİRİŞİ'!W62="","",'BİLGİ GİRİŞİ'!W62) ->  | T48: =IF('BİLGİ GİRİŞİ'!T62="","",'BİLGİ GİRİŞİ'!T62) ->  | X48: =IF('BİLGİ GİRİŞİ'!AB62="","",'BİLGİ GİRİŞİ'!AB62) ->  | AA48: =IF('BİLGİ GİRİŞİ'!AF62="","",'BİLGİ GİRİŞİ'!AF62) ->  | AD48: =IF('BİLGİ GİRİŞİ'!AJ62="","",'BİLGİ GİRİŞİ'!AJ62) ->  | AG48: =IF('BİLGİ GİRİŞİ'!AN62="","",'BİLGİ GİRİŞİ'!AN62) ->  | AJ48: =IF('BİLGİ GİRİŞİ'!AR62="","",'BİLGİ GİRİŞİ'!AR62) ->  | AM48: =IF('BİLGİ GİRİŞİ'!AV62="","",'BİLGİ GİRİŞİ'!AV62) -> 
A49: =IF('BİLGİ GİRİŞİ'!D63="","",'BİLGİ GİRİŞİ'!D63) ->  | B49: =IF('BİLGİ GİRİŞİ'!E63="","",'BİLGİ GİRİŞİ'!E63) ->  | P49: =IF('BİLGİ GİRİŞİ'!W63="","",'BİLGİ GİRİŞİ'!W63) ->  | T49: =IF('BİLGİ GİRİŞİ'!T63="","",'BİLGİ GİRİŞİ'!T63) ->  | X49: =IF('BİLGİ GİRİŞİ'!AB63="","",'BİLGİ GİRİŞİ'!AB63) ->  | AA49: =IF('BİLGİ GİRİŞİ'!AF63="","",'BİLGİ GİRİŞİ'!AF63) ->  | AD49: =IF('BİLGİ GİRİŞİ'!AJ63="","",'BİLGİ GİRİŞİ'!AJ63) ->  | AG49: =IF('BİLGİ GİRİŞİ'!AN63="","",'BİLGİ GİRİŞİ'!AN63) ->  | AJ49: =IF('BİLGİ GİRİŞİ'!AR63="","",'BİLGİ GİRİŞİ'!AR63) ->  | AM49: =IF('BİLGİ GİRİŞİ'!AV63="","",'BİLGİ GİRİŞİ'!AV63) -> 
A50: =IF('BİLGİ GİRİŞİ'!D64="","",'BİLGİ GİRİŞİ'!D64) ->  | B50: =IF('BİLGİ GİRİŞİ'!E64="","",'BİLGİ GİRİŞİ'!E64) ->  | P50: =IF('BİLGİ GİRİŞİ'!W64="","",'BİLGİ GİRİŞİ'!W64) ->  | T50: =IF('BİLGİ GİRİŞİ'!T64="","",'BİLGİ GİRİŞİ'!T64) ->  | X50: =IF('BİLGİ GİRİŞİ'!AB64="","",'BİLGİ GİRİŞİ'!AB64) ->  | AA50: =IF('BİLGİ GİRİŞİ'!AF64="","",'BİLGİ GİRİŞİ'!AF64) ->  | AD50: =IF('BİLGİ GİRİŞİ'!AJ64="","",'BİLGİ GİRİŞİ'!AJ64) ->  | AG50: =IF('BİLGİ GİRİŞİ'!AN64="","",'BİLGİ GİRİŞİ'!AN64) ->  | AJ50: =IF('BİLGİ GİRİŞİ'!AR64="","",'BİLGİ GİRİŞİ'!AR64) ->  | AM50: =IF('BİLGİ GİRİŞİ'!AV64="","",'BİLGİ GİRİŞİ'!AV64) -> 
A51: =IF('BİLGİ GİRİŞİ'!D65="","",'BİLGİ GİRİŞİ'!D65) ->  | B51: =IF('BİLGİ GİRİŞİ'!E65="","",'BİLGİ GİRİŞİ'!E65) ->  | P51: =IF('BİLGİ GİRİŞİ'!W65="","",'BİLGİ GİRİŞİ'!W65) ->  | T51: =IF('BİLGİ GİRİŞİ'!T65="","",'BİLGİ GİRİŞİ'!T65) ->  | X51: =IF('BİLGİ GİRİŞİ'!AB65="","",'BİLGİ GİRİŞİ'!AB65) ->  | AA51: =IF('BİLGİ GİRİŞİ'!AF65="","",'BİLGİ GİRİŞİ'!AF65) ->  | AD51: =IF('BİLGİ GİRİŞİ'!AJ65="","",'BİLGİ GİRİŞİ'!AJ65) ->  | AG51: =IF('BİLGİ GİRİŞİ'!AN65="","",'BİLGİ GİRİŞİ'!AN65) ->  | AJ51: =IF('BİLGİ GİRİŞİ'!AR65="","",'BİLGİ GİRİŞİ'!AR65) ->  | AM51: =IF('BİLGİ GİRİŞİ'!AV65="","",'BİLGİ GİRİŞİ'!AV65) -> 
A52: =IF('BİLGİ GİRİŞİ'!D66="","",'BİLGİ GİRİŞİ'!D66) ->  | B52: =IF('BİLGİ GİRİŞİ'!E66="","",'BİLGİ GİRİŞİ'!E66) ->  | P52: =IF('BİLGİ GİRİŞİ'!W66="","",'BİLGİ GİRİŞİ'!W66) ->  | T52: =IF('BİLGİ GİRİŞİ'!T66="","",'BİLGİ GİRİŞİ'!T66) ->  | X52: =IF('BİLGİ GİRİŞİ'!AB66="","",'BİLGİ GİRİŞİ'!AB66) ->  | AA52: =IF('BİLGİ GİRİŞİ'!AF66="","",'BİLGİ GİRİŞİ'!AF66) ->  | AD52: =IF('BİLGİ GİRİŞİ'!AJ66="","",'BİLGİ GİRİŞİ'!AJ66) ->  | AG52: =IF('BİLGİ GİRİŞİ'!AN66="","",'BİLGİ GİRİŞİ'!AN66) ->  | AJ52: =IF('BİLGİ GİRİŞİ'!AR66="","",'BİLGİ GİRİŞİ'!AR66) ->  | AM52: =IF('BİLGİ GİRİŞİ'!AV66="","",'BİLGİ GİRİŞİ'!AV66) -> 
A53: =IF('BİLGİ GİRİŞİ'!D67="","",'BİLGİ GİRİŞİ'!D67) ->  | B53: =IF('BİLGİ GİRİŞİ'!E67="","",'BİLGİ GİRİŞİ'!E67) ->  | P53: =IF('BİLGİ GİRİŞİ'!W67="","",'BİLGİ GİRİŞİ'!W67) ->  | T53: =IF('BİLGİ GİRİŞİ'!T67="","",'BİLGİ GİRİŞİ'!T67) ->  | X53: =IF('BİLGİ GİRİŞİ'!AB67="","",'BİLGİ GİRİŞİ'!AB67) ->  | AA53: =IF('BİLGİ GİRİŞİ'!AF67="","",'BİLGİ GİRİŞİ'!AF67) ->  | AD53: =IF('BİLGİ GİRİŞİ'!AJ67="","",'BİLGİ GİRİŞİ'!AJ67) ->  | AG53: =IF('BİLGİ GİRİŞİ'!AN67="","",'BİLGİ GİRİŞİ'!AN67) ->  | AJ53: =IF('BİLGİ GİRİŞİ'!AR67="","",'BİLGİ GİRİŞİ'!AR67) ->  | AM53: =IF('BİLGİ GİRİŞİ'!AV67="","",'BİLGİ GİRİŞİ'!AV67) -> 
A54: =IF('BİLGİ GİRİŞİ'!D68="","",'BİLGİ GİRİŞİ'!D68) ->  | B54: =IF('BİLGİ GİRİŞİ'!E68="","",'BİLGİ GİRİŞİ'!E68) ->  | P54: =IF('BİLGİ GİRİŞİ'!W68="","",'BİLGİ GİRİŞİ'!W68) ->  | T54: =IF('BİLGİ GİRİŞİ'!T68="","",'BİLGİ GİRİŞİ'!T68) ->  | X54: =IF('BİLGİ GİRİŞİ'!AB68="","",'BİLGİ GİRİŞİ'!AB68) ->  | AA54: =IF('BİLGİ GİRİŞİ'!AF68="","",'BİLGİ GİRİŞİ'!AF68) ->  | AD54: =IF('BİLGİ GİRİŞİ'!AJ68="","",'BİLGİ GİRİŞİ'!AJ68) ->  | AG54: =IF('BİLGİ GİRİŞİ'!AN68="","",'BİLGİ GİRİŞİ'!AN68) ->  | AJ54: =IF('BİLGİ GİRİŞİ'!AR68="","",'BİLGİ GİRİŞİ'!AR68) ->  | AM54: =IF('BİLGİ GİRİŞİ'!AV68="","",'BİLGİ GİRİŞİ'!AV68) -> 
A55: =IF('BİLGİ GİRİŞİ'!D69="","",'BİLGİ GİRİŞİ'!D69) ->  | B55: =IF('BİLGİ GİRİŞİ'!E69="","",'BİLGİ GİRİŞİ'!E69) ->  | P55: =IF('BİLGİ GİRİŞİ'!W69="","",'BİLGİ GİRİŞİ'!W69) ->  | T55: =IF('BİLGİ GİRİŞİ'!T69="","",'BİLGİ GİRİŞİ'!T69) ->  | X55: =IF('BİLGİ GİRİŞİ'!AB69="","",'BİLGİ GİRİŞİ'!AB69) ->  | AA55: =IF('BİLGİ GİRİŞİ'!AF69="","",'BİLGİ GİRİŞİ'!AF69) ->  | AD55: =IF('BİLGİ GİRİŞİ'!AJ69="","",'BİLGİ GİRİŞİ'!AJ69) ->  | AG55: =IF('BİLGİ GİRİŞİ'!AN69="","",'BİLGİ GİRİŞİ'!AN69) ->  | AJ55: =IF('BİLGİ GİRİŞİ'!AR69="","",'BİLGİ GİRİŞİ'!AR69) ->  | AM55: =IF('BİLGİ GİRİŞİ'!AV69="","",'BİLGİ GİRİŞİ'!AV69) ->  | AP55: =IF(P55="","",(X55+AD55+AJ55)/3) ->  | AS55: =IF(P55="","",(AA55+AG55+AM55)/3) -> 
A56: =IF('BİLGİ GİRİŞİ'!D70="","",'BİLGİ GİRİŞİ'!D70) ->  | B56: =IF('BİLGİ GİRİŞİ'!E70="","",'BİLGİ GİRİŞİ'!E70) ->  | P56: =IF('BİLGİ GİRİŞİ'!W70="","",'BİLGİ GİRİŞİ'!W70) ->  | T56: =IF('BİLGİ GİRİŞİ'!T70="","",'BİLGİ GİRİŞİ'!T70) ->  | X56: =IF('BİLGİ GİRİŞİ'!AB70="","",'BİLGİ GİRİŞİ'!AB70) ->  | AA56: =IF('BİLGİ GİRİŞİ'!AF70="","",'BİLGİ GİRİŞİ'!AF70) ->  | AD56: =IF('BİLGİ GİRİŞİ'!AJ70="","",'BİLGİ GİRİŞİ'!AJ70) ->  | AG56: =IF('BİLGİ GİRİŞİ'!AN70="","",'BİLGİ GİRİŞİ'!AN70) ->  | AJ56: =IF('BİLGİ GİRİŞİ'!AR70="","",'BİLGİ GİRİŞİ'!AR70) ->  | AM56: =IF('BİLGİ GİRİŞİ'!AV70="","",'BİLGİ GİRİŞİ'!AV70) -> 
A57: =IF('BİLGİ GİRİŞİ'!D71="","",'BİLGİ GİRİŞİ'!D71) ->  | B57: =IF('BİLGİ GİRİŞİ'!E71="","",'BİLGİ GİRİŞİ'!E71) ->  | P57: =IF('BİLGİ GİRİŞİ'!W71="","",'BİLGİ GİRİŞİ'!W71) ->  | T57: =IF('BİLGİ GİRİŞİ'!T71="","",'BİLGİ GİRİŞİ'!T71) ->  | X57: =IF('BİLGİ GİRİŞİ'!AB71="","",'BİLGİ GİRİŞİ'!AB71) ->  | AA57: =IF('BİLGİ GİRİŞİ'!AF71="","",'BİLGİ GİRİŞİ'!AF71) ->  | AD57: =IF('BİLGİ GİRİŞİ'!AJ71="","",'BİLGİ GİRİŞİ'!AJ71) ->  | AG57: =IF('BİLGİ GİRİŞİ'!AN71="","",'BİLGİ GİRİŞİ'!AN71) ->  | AJ57: =IF('BİLGİ GİRİŞİ'!AR71="","",'BİLGİ GİRİŞİ'!AR71) ->  | AM57: =IF('BİLGİ GİRİŞİ'!AV71="","",'BİLGİ GİRİŞİ'!AV71) -> 
A58: =IF('BİLGİ GİRİŞİ'!D72="","",'BİLGİ GİRİŞİ'!D72) ->  | B58: =IF('BİLGİ GİRİŞİ'!E72="","",'BİLGİ GİRİŞİ'!E72) ->  | P58: =IF('BİLGİ GİRİŞİ'!W72="","",'BİLGİ GİRİŞİ'!W72) ->  | T58: =IF('BİLGİ GİRİŞİ'!T72="","",'BİLGİ GİRİŞİ'!T72) ->  | X58: =IF('BİLGİ GİRİŞİ'!AB72="","",'BİLGİ GİRİŞİ'!AB72) ->  | AA58: =IF('BİLGİ GİRİŞİ'!AF72="","",'BİLGİ GİRİŞİ'!AF72) ->  | AD58: =IF('BİLGİ GİRİŞİ'!AJ72="","",'BİLGİ GİRİŞİ'!AJ72) ->  | AG58: =IF('BİLGİ GİRİŞİ'!AN72="","",'BİLGİ GİRİŞİ'!AN72) ->  | AJ58: =IF('BİLGİ GİRİŞİ'!AR72="","",'BİLGİ GİRİŞİ'!AR72) ->  | AM58: =IF('BİLGİ GİRİŞİ'!AV72="","",'BİLGİ GİRİŞİ'!AV72) -> 
A59: =IF('BİLGİ GİRİŞİ'!D73="","",'BİLGİ GİRİŞİ'!D73) ->  | B59: =IF('BİLGİ GİRİŞİ'!E73="","",'BİLGİ GİRİŞİ'!E73) ->  | P59: =IF('BİLGİ GİRİŞİ'!W73="","",'BİLGİ GİRİŞİ'!W73) ->  | T59: =IF('BİLGİ GİRİŞİ'!T73="","",'BİLGİ GİRİŞİ'!T73) ->  | X59: =IF('BİLGİ GİRİŞİ'!AB73="","",'BİLGİ GİRİŞİ'!AB73) ->  | AA59: =IF('BİLGİ GİRİŞİ'!AF73="","",'BİLGİ GİRİŞİ'!AF73) ->  | AD59: =IF('BİLGİ GİRİŞİ'!AJ73="","",'BİLGİ GİRİŞİ'!AJ73) ->  | AG59: =IF('BİLGİ GİRİŞİ'!AN73="","",'BİLGİ GİRİŞİ'!AN73) ->  | AJ59: =IF('BİLGİ GİRİŞİ'!AR73="","",'BİLGİ GİRİŞİ'!AR73) ->  | AM59: =IF('BİLGİ GİRİŞİ'!AV73="","",'BİLGİ GİRİŞİ'!AV73) -> 
A60: =IF('BİLGİ GİRİŞİ'!D74="","",'BİLGİ GİRİŞİ'!D74) ->  | B60: =IF('BİLGİ GİRİŞİ'!E74="","",'BİLGİ GİRİŞİ'!E74) ->  | P60: =IF('BİLGİ GİRİŞİ'!W74="","",'BİLGİ GİRİŞİ'!W74) ->  | T60: =IF('BİLGİ GİRİŞİ'!T74="","",'BİLGİ GİRİŞİ'!T74) ->  | X60: =IF('BİLGİ GİRİŞİ'!AB74="","",'BİLGİ GİRİŞİ'!AB74) ->  | AA60: =IF('BİLGİ GİRİŞİ'!AF74="","",'BİLGİ GİRİŞİ'!AF74) ->  | AD60: =IF('BİLGİ GİRİŞİ'!AJ74="","",'BİLGİ GİRİŞİ'!AJ74) ->  | AG60: =IF('BİLGİ GİRİŞİ'!AN74="","",'BİLGİ GİRİŞİ'!AN74) ->  | AJ60: =IF('BİLGİ GİRİŞİ'!AR74="","",'BİLGİ GİRİŞİ'!AR74) ->  | AM60: =IF('BİLGİ GİRİŞİ'!AV74="","",'BİLGİ GİRİŞİ'!AV74) -> 
A61: =IF('BİLGİ GİRİŞİ'!D75="","",'BİLGİ GİRİŞİ'!D75) ->  | B61: =IF('BİLGİ GİRİŞİ'!E75="","",'BİLGİ GİRİŞİ'!E75) ->  | P61: =IF('BİLGİ GİRİŞİ'!W75="","",'BİLGİ GİRİŞİ'!W75) ->  | T61: =IF('BİLGİ GİRİŞİ'!T75="","",'BİLGİ GİRİŞİ'!T75) ->  | X61: =IF('BİLGİ GİRİŞİ'!AB75="","",'BİLGİ GİRİŞİ'!AB75) ->  | AA61: =IF('BİLGİ GİRİŞİ'!AF75="","",'BİLGİ GİRİŞİ'!AF75) ->  | AD61: =IF('BİLGİ GİRİŞİ'!AJ75="","",'BİLGİ GİRİŞİ'!AJ75) ->  | AG61: =IF('BİLGİ GİRİŞİ'!AN75="","",'BİLGİ GİRİŞİ'!AN75) ->  | AJ61: =IF('BİLGİ GİRİŞİ'!AR75="","",'BİLGİ GİRİŞİ'!AR75) ->  | AM61: =IF('BİLGİ GİRİŞİ'!AV75="","",'BİLGİ GİRİŞİ'!AV75) -> 
A62: =IF('BİLGİ GİRİŞİ'!D76="","",'BİLGİ GİRİŞİ'!D76) ->  | B62: =IF('BİLGİ GİRİŞİ'!E76="","",'BİLGİ GİRİŞİ'!E76) ->  | P62: =IF('BİLGİ GİRİŞİ'!W76="","",'BİLGİ GİRİŞİ'!W76) ->  | T62: =IF('BİLGİ GİRİŞİ'!T76="","",'BİLGİ GİRİŞİ'!T76) ->  | X62: =IF('BİLGİ GİRİŞİ'!AB76="","",'BİLGİ GİRİŞİ'!AB76) ->  | AA62: =IF('BİLGİ GİRİŞİ'!AF76="","",'BİLGİ GİRİŞİ'!AF76) ->  | AD62: =IF('BİLGİ GİRİŞİ'!AJ76="","",'BİLGİ GİRİŞİ'!AJ76) ->  | AG62: =IF('BİLGİ GİRİŞİ'!AN76="","",'BİLGİ GİRİŞİ'!AN76) ->  | AJ62: =IF('BİLGİ GİRİŞİ'!AR76="","",'BİLGİ GİRİŞİ'!AR76) ->  | AM62: =IF('BİLGİ GİRİŞİ'!AV76="","",'BİLGİ GİRİŞİ'!AV76) -> 
A63: =IF('BİLGİ GİRİŞİ'!D77="","",'BİLGİ GİRİŞİ'!D77) ->  | B63: =IF('BİLGİ GİRİŞİ'!E77="","",'BİLGİ GİRİŞİ'!E77) ->  | P63: =IF('BİLGİ GİRİŞİ'!W77="","",'BİLGİ GİRİŞİ'!W77) ->  | T63: =IF('BİLGİ GİRİŞİ'!T77="","",'BİLGİ GİRİŞİ'!T77) ->  | X63: =IF('BİLGİ GİRİŞİ'!AB77="","",'BİLGİ GİRİŞİ'!AB77) ->  | AA63: =IF('BİLGİ GİRİŞİ'!AF77="","",'BİLGİ GİRİŞİ'!AF77) ->  | AD63: =IF('BİLGİ GİRİŞİ'!AJ77="","",'BİLGİ GİRİŞİ'!AJ77) ->  | AG63: =IF('BİLGİ GİRİŞİ'!AN77="","",'BİLGİ GİRİŞİ'!AN77) ->  | AJ63: =IF('BİLGİ GİRİŞİ'!AR77="","",'BİLGİ GİRİŞİ'!AR77) ->  | AM63: =IF('BİLGİ GİRİŞİ'!AV77="","",'BİLGİ GİRİŞİ'!AV77) -> 
A64: =IF('BİLGİ GİRİŞİ'!D78="","",'BİLGİ GİRİŞİ'!D78) ->  | B64: =IF('BİLGİ GİRİŞİ'!E78="","",'BİLGİ GİRİŞİ'!E78) ->  | P64: =IF('BİLGİ GİRİŞİ'!W78="","",'BİLGİ GİRİŞİ'!W78) ->  | T64: =IF('BİLGİ GİRİŞİ'!T78="","",'BİLGİ GİRİŞİ'!T78) ->  | X64: =IF('BİLGİ GİRİŞİ'!AB78="","",'BİLGİ GİRİŞİ'!AB78) ->  | AA64: =IF('BİLGİ GİRİŞİ'!AF78="","",'BİLGİ GİRİŞİ'!AF78) ->  | AD64: =IF('BİLGİ GİRİŞİ'!AJ78="","",'BİLGİ GİRİŞİ'!AJ78) ->  | AG64: =IF('BİLGİ GİRİŞİ'!AN78="","",'BİLGİ GİRİŞİ'!AN78) ->  | AJ64: =IF('BİLGİ GİRİŞİ'!AR78="","",'BİLGİ GİRİŞİ'!AR78) ->  | AM64: =IF('BİLGİ GİRİŞİ'!AV78="","",'BİLGİ GİRİŞİ'!AV78) -> 
A65: =IF('BİLGİ GİRİŞİ'!D79="","",'BİLGİ GİRİŞİ'!D79) ->  | B65: =IF('BİLGİ GİRİŞİ'!E79="","",'BİLGİ GİRİŞİ'!E79) ->  | P65: =IF('BİLGİ GİRİŞİ'!W79="","",'BİLGİ GİRİŞİ'!W79) ->  | T65: =IF('BİLGİ GİRİŞİ'!T79="","",'BİLGİ GİRİŞİ'!T79) ->  | X65: =IF('BİLGİ GİRİŞİ'!AB79="","",'BİLGİ GİRİŞİ'!AB79) ->  | AA65: =IF('BİLGİ GİRİŞİ'!AF79="","",'BİLGİ GİRİŞİ'!AF79) ->  | AD65: =IF('BİLGİ GİRİŞİ'!AJ79="","",'BİLGİ GİRİŞİ'!AJ79) ->  | AG65: =IF('BİLGİ GİRİŞİ'!AN79="","",'BİLGİ GİRİŞİ'!AN79) ->  | AJ65: =IF('BİLGİ GİRİŞİ'!AR79="","",'BİLGİ GİRİŞİ'!AR79) ->  | AM65: =IF('BİLGİ GİRİŞİ'!AV79="","",'BİLGİ GİRİŞİ'!AV79) -> 
A66: =IF('BİLGİ GİRİŞİ'!D80="","",'BİLGİ GİRİŞİ'!D80) ->  | B66: =IF('BİLGİ GİRİŞİ'!E80="","",'BİLGİ GİRİŞİ'!E80) ->  | P66: =IF('BİLGİ GİRİŞİ'!W80="","",'BİLGİ GİRİŞİ'!W80) ->  | T66: =IF('BİLGİ GİRİŞİ'!T80="","",'BİLGİ GİRİŞİ'!T80) ->  | X66: =IF('BİLGİ GİRİŞİ'!AB80="","",'BİLGİ GİRİŞİ'!AB80) ->  | AA66: =IF('BİLGİ GİRİŞİ'!AF80="","",'BİLGİ GİRİŞİ'!AF80) ->  | AD66: =IF('BİLGİ GİRİŞİ'!AJ80="","",'BİLGİ GİRİŞİ'!AJ80) ->  | AG66: =IF('BİLGİ GİRİŞİ'!AN80="","",'BİLGİ GİRİŞİ'!AN80) ->  | AJ66: =IF('BİLGİ GİRİŞİ'!AR80="","",'BİLGİ GİRİŞİ'!AR80) ->  | AM66: =IF('BİLGİ GİRİŞİ'!AV80="","",'BİLGİ GİRİŞİ'!AV80) -> 
A67: =IF('BİLGİ GİRİŞİ'!D81="","",'BİLGİ GİRİŞİ'!D81) ->  | B67: =IF('BİLGİ GİRİŞİ'!E81="","",'BİLGİ GİRİŞİ'!E81) ->  | P67: =IF('BİLGİ GİRİŞİ'!W81="","",'BİLGİ GİRİŞİ'!W81) ->  | T67: =IF('BİLGİ GİRİŞİ'!T81="","",'BİLGİ GİRİŞİ'!T81) ->  | X67: =IF('BİLGİ GİRİŞİ'!AB81="","",'BİLGİ GİRİŞİ'!AB81) ->  | AA67: =IF('BİLGİ GİRİŞİ'!AF81="","",'BİLGİ GİRİŞİ'!AF81) ->  | AD67: =IF('BİLGİ GİRİŞİ'!AJ81="","",'BİLGİ GİRİŞİ'!AJ81) ->  | AG67: =IF('BİLGİ GİRİŞİ'!AN81="","",'BİLGİ GİRİŞİ'!AN81) ->  | AJ67: =IF('BİLGİ GİRİŞİ'!AR81="","",'BİLGİ GİRİŞİ'!AR81) ->  | AM67: =IF('BİLGİ GİRİŞİ'!AV81="","",'BİLGİ GİRİŞİ'!AV81) -> 
A68: =IF('BİLGİ GİRİŞİ'!D82="","",'BİLGİ GİRİŞİ'!D82) ->  | B68: =IF('BİLGİ GİRİŞİ'!E82="","",'BİLGİ GİRİŞİ'!E82) ->  | P68: =IF('BİLGİ GİRİŞİ'!W82="","",'BİLGİ GİRİŞİ'!W82) ->  | T68: =IF('BİLGİ GİRİŞİ'!T82="","",'BİLGİ GİRİŞİ'!T82) ->  | X68: =IF('BİLGİ GİRİŞİ'!AB82="","",'BİLGİ GİRİŞİ'!AB82) ->  | AA68: =IF('BİLGİ GİRİŞİ'!AF82="","",'BİLGİ GİRİŞİ'!AF82) ->  | AD68: =IF('BİLGİ GİRİŞİ'!AJ82="","",'BİLGİ GİRİŞİ'!AJ82) ->  | AG68: =IF('BİLGİ GİRİŞİ'!AN82="","",'BİLGİ GİRİŞİ'!AN82) ->  | AJ68: =IF('BİLGİ GİRİŞİ'!AR82="","",'BİLGİ GİRİŞİ'!AR82) ->  | AM68: =IF('BİLGİ GİRİŞİ'!AV82="","",'BİLGİ GİRİŞİ'!AV82) -> 
A69: =IF('BİLGİ GİRİŞİ'!D83="","",'BİLGİ GİRİŞİ'!D83) ->  | B69: =IF('BİLGİ GİRİŞİ'!E83="","",'BİLGİ GİRİŞİ'!E83) ->  | P69: =IF('BİLGİ GİRİŞİ'!W83="","",'BİLGİ GİRİŞİ'!W83) ->  | T69: =IF('BİLGİ GİRİŞİ'!T83="","",'BİLGİ GİRİŞİ'!T83) ->  | X69: =IF('BİLGİ GİRİŞİ'!AB83="","",'BİLGİ GİRİŞİ'!AB83) ->  | AA69: =IF('BİLGİ GİRİŞİ'!AF83="","",'BİLGİ GİRİŞİ'!AF83) ->  | AD69: =IF('BİLGİ GİRİŞİ'!AJ83="","",'BİLGİ GİRİŞİ'!AJ83) ->  | AG69: =IF('BİLGİ GİRİŞİ'!AN83="","",'BİLGİ GİRİŞİ'!AN83) ->  | AJ69: =IF('BİLGİ GİRİŞİ'!AR83="","",'BİLGİ GİRİŞİ'!AR83) ->  | AM69: =IF('BİLGİ GİRİŞİ'!AV83="","",'BİLGİ GİRİŞİ'!AV83) -> 
A70: =IF('BİLGİ GİRİŞİ'!D84="","",'BİLGİ GİRİŞİ'!D84) ->  | B70: =IF('BİLGİ GİRİŞİ'!E84="","",'BİLGİ GİRİŞİ'!E84) ->  | P70: =IF('BİLGİ GİRİŞİ'!W84="","",'BİLGİ GİRİŞİ'!W84) ->  | T70: =IF('BİLGİ GİRİŞİ'!T84="","",'BİLGİ GİRİŞİ'!T84) ->  | X70: =IF('BİLGİ GİRİŞİ'!AB84="","",'BİLGİ GİRİŞİ'!AB84) ->  | AA70: =IF('BİLGİ GİRİŞİ'!AF84="","",'BİLGİ GİRİŞİ'!AF84) ->  | AD70: =IF('BİLGİ GİRİŞİ'!AJ84="","",'BİLGİ GİRİŞİ'!AJ84) ->  | AG70: =IF('BİLGİ GİRİŞİ'!AN84="","",'BİLGİ GİRİŞİ'!AN84) ->  | AJ70: =IF('BİLGİ GİRİŞİ'!AR84="","",'BİLGİ GİRİŞİ'!AR84) ->  | AM70: =IF('BİLGİ GİRİŞİ'!AV84="","",'BİLGİ GİRİŞİ'!AV84) -> 
A71: =IF('BİLGİ GİRİŞİ'!D85="","",'BİLGİ GİRİŞİ'!D85) ->  | B71: =IF('BİLGİ GİRİŞİ'!E85="","",'BİLGİ GİRİŞİ'!E85) ->  | P71: =IF('BİLGİ GİRİŞİ'!W85="","",'BİLGİ GİRİŞİ'!W85) ->  | T71: =IF('BİLGİ GİRİŞİ'!T85="","",'BİLGİ GİRİŞİ'!T85) ->  | X71: =IF('BİLGİ GİRİŞİ'!AB85="","",'BİLGİ GİRİŞİ'!AB85) ->  | AA71: =IF('BİLGİ GİRİŞİ'!AF85="","",'BİLGİ GİRİŞİ'!AF85) ->  | AD71: =IF('BİLGİ GİRİŞİ'!AJ85="","",'BİLGİ GİRİŞİ'!AJ85) ->  | AG71: =IF('BİLGİ GİRİŞİ'!AN85="","",'BİLGİ GİRİŞİ'!AN85) ->  | AJ71: =IF('BİLGİ GİRİŞİ'!AR85="","",'BİLGİ GİRİŞİ'!AR85) ->  | AM71: =IF('BİLGİ GİRİŞİ'!AV85="","",'BİLGİ GİRİŞİ'!AV85) -> 
A72: =IF('BİLGİ GİRİŞİ'!D86="","",'BİLGİ GİRİŞİ'!D86) ->  | B72: =IF('BİLGİ GİRİŞİ'!E86="","",'BİLGİ GİRİŞİ'!E86) ->  | P72: =IF('BİLGİ GİRİŞİ'!W86="","",'BİLGİ GİRİŞİ'!W86) ->  | T72: =IF('BİLGİ GİRİŞİ'!T86="","",'BİLGİ GİRİŞİ'!T86) ->  | X72: =IF('BİLGİ GİRİŞİ'!AB86="","",'BİLGİ GİRİŞİ'!AB86) ->  | AA72: =IF('BİLGİ GİRİŞİ'!AF86="","",'BİLGİ GİRİŞİ'!AF86) ->  | AD72: =IF('BİLGİ GİRİŞİ'!AJ86="","",'BİLGİ GİRİŞİ'!AJ86) ->  | AG72: =IF('BİLGİ GİRİŞİ'!AN86="","",'BİLGİ GİRİŞİ'!AN86) ->  | AJ72: =IF('BİLGİ GİRİŞİ'!AR86="","",'BİLGİ GİRİŞİ'!AR86) ->  | AM72: =IF('BİLGİ GİRİŞİ'!AV86="","",'BİLGİ GİRİŞİ'!AV86) -> 
A73: =IF('BİLGİ GİRİŞİ'!D87="","",'BİLGİ GİRİŞİ'!D87) ->  | B73: =IF('BİLGİ GİRİŞİ'!E87="","",'BİLGİ GİRİŞİ'!E87) ->  | P73: =IF('BİLGİ GİRİŞİ'!W87="","",'BİLGİ GİRİŞİ'!W87) ->  | T73: =IF('BİLGİ GİRİŞİ'!T87="","",'BİLGİ GİRİŞİ'!T87) ->  | X73: =IF('BİLGİ GİRİŞİ'!AB87="","",'BİLGİ GİRİŞİ'!AB87) ->  | AA73: =IF('BİLGİ GİRİŞİ'!AF87="","",'BİLGİ GİRİŞİ'!AF87) ->  | AD73: =IF('BİLGİ GİRİŞİ'!AJ87="","",'BİLGİ GİRİŞİ'!AJ87) ->  | AG73: =IF('BİLGİ GİRİŞİ'!AN87="","",'BİLGİ GİRİŞİ'!AN87) ->  | AJ73: =IF('BİLGİ GİRİŞİ'!AR87="","",'BİLGİ GİRİŞİ'!AR87) ->  | AM73: =IF('BİLGİ GİRİŞİ'!AV87="","",'BİLGİ GİRİŞİ'!AV87) -> 
A74: =IF('BİLGİ GİRİŞİ'!D88="","",'BİLGİ GİRİŞİ'!D88) ->  | B74: =IF('BİLGİ GİRİŞİ'!E88="","",'BİLGİ GİRİŞİ'!E88) ->  | P74: =IF('BİLGİ GİRİŞİ'!W88="","",'BİLGİ GİRİŞİ'!W88) ->  | T74: =IF('BİLGİ GİRİŞİ'!T88="","",'BİLGİ GİRİŞİ'!T88) ->  | X74: =IF('BİLGİ GİRİŞİ'!AB88="","",'BİLGİ GİRİŞİ'!AB88) ->  | AA74: =IF('BİLGİ GİRİŞİ'!AF88="","",'BİLGİ GİRİŞİ'!AF88) ->  | AD74: =IF('BİLGİ GİRİŞİ'!AJ88="","",'BİLGİ GİRİŞİ'!AJ88) ->  | AG74: =IF('BİLGİ GİRİŞİ'!AN88="","",'BİLGİ GİRİŞİ'!AN88) ->  | AJ74: =IF('BİLGİ GİRİŞİ'!AR88="","",'BİLGİ GİRİŞİ'!AR88) ->  | AM74: =IF('BİLGİ GİRİŞİ'!AV88="","",'BİLGİ GİRİŞİ'!AV88) -> 
A75: =IF('BİLGİ GİRİŞİ'!D89="","",'BİLGİ GİRİŞİ'!D89) ->  | B75: =IF('BİLGİ GİRİŞİ'!E89="","",'BİLGİ GİRİŞİ'!E89) ->  | P75: =IF('BİLGİ GİRİŞİ'!W89="","",'BİLGİ GİRİŞİ'!W89) ->  | T75: =IF('BİLGİ GİRİŞİ'!T89="","",'BİLGİ GİRİŞİ'!T89) ->  | X75: =IF('BİLGİ GİRİŞİ'!AB89="","",'BİLGİ GİRİŞİ'!AB89) ->  | AA75: =IF('BİLGİ GİRİŞİ'!AF89="","",'BİLGİ GİRİŞİ'!AF89) ->  | AD75: =IF('BİLGİ GİRİŞİ'!AJ89="","",'BİLGİ GİRİŞİ'!AJ89) ->  | AG75: =IF('BİLGİ GİRİŞİ'!AN89="","",'BİLGİ GİRİŞİ'!AN89) ->  | AJ75: =IF('BİLGİ GİRİŞİ'!AR89="","",'BİLGİ GİRİŞİ'!AR89) ->  | AM75: =IF('BİLGİ GİRİŞİ'!AV89="","",'BİLGİ GİRİŞİ'!AV89) -> 
A76: TOPLAM (KDV Hariç) | X76: =SUM(X16:X75) -> 9000 | AA76: =SUM(AA16:AA75) -> 18000 | AD76: =SUM(AD16:AD75) -> 12000 | AG76: =SUM(AG16:AG75) -> 24000 | AJ76: =SUM(AJ16:AJ75) -> 15000 | AM76: =SUM(AM16:AM75) -> 30000 | AP76: =SUM(AP16:AP75) -> 12000 | AS76: =SUM(AS16:AS75) -> 24000
A78: Piyasa araştırması sonucu yaklaşık maliyet, KDV hariç | S78: =IF(AS76="","",AS76) -> 24000 | Y78: Türk Lirası olarak hesaplanmış olup iş bu cetvel tarafımızca imza altına alınmıştır.
B81: =IF(B84="","",IF('BİLGİ GİRİŞİ'!AB16="","",'BİLGİ GİRİŞİ'!AB16)) -> Piyasa Araştırma Görevlisi | M81: =IF(M84="","",IF('BİLGİ GİRİŞİ'!AH16="","",'BİLGİ GİRİŞİ'!AH16)) -> Piyasa Araştırma Görevlisi | X81: =IF(X84="","",IF('BİLGİ GİRİŞİ'!AN16="","",'BİLGİ GİRİŞİ'!AN16)) ->  | AI81: =IF(AI84="","",IF('BİLGİ GİRİŞİ'!AT16="","",'BİLGİ GİRİŞİ'!AT16)) -> OLUR/UYGUNDUR
AI82: =IF(AI84="","",IF('BİLGİ GİRİŞİ'!O17="","….../….../….…..",'BİLGİ GİRİŞİ'!O17)) -> 2023-03-07
B84: =IF('BİLGİ GİRİŞİ'!AB17="","",'BİLGİ GİRİŞİ'!AB17) -> Ahmet DEMİR | M84: =IF('BİLGİ GİRİŞİ'!AH17="","",'BİLGİ GİRİŞİ'!AH17) -> Ayşe YILDIZ | X84: =IF('BİLGİ GİRİŞİ'!AN17="","",'BİLGİ GİRİŞİ'!AN17) ->  | AI84: =IF('BİLGİ GİRİŞİ'!AT17="","",'BİLGİ GİRİŞİ'!AT17) -> Mustafa AYDIN
B85: =IF(B84="","",IF('BİLGİ GİRİŞİ'!AB18="","",'BİLGİ GİRİŞİ'!AB18)) -> Müdür Yardımcısı 1 | M85: =IF(M84="","",IF('BİLGİ GİRİŞİ'!AH18="","",'BİLGİ GİRİŞİ'!AH18)) -> Öğretmen 1 | X85: =IF(X84="","",IF('BİLGİ GİRİŞİ'!AN18="","",'BİLGİ GİRİŞİ'!AN18)) ->  | AI85: =IF(AI84="","",IF('BİLGİ GİRİŞİ'!AT18="","",'BİLGİ GİRİŞİ'!AT18)) -> Okul Müdürü

Sheet 4
A2: DOĞRUDAN TEMİN ONAY BELGESİ
A4: ALIMI YAPAN İDARENİN ADI | L4: =IF('BİLGİ GİRİŞİ'!O8="","",'BİLGİ GİRİŞİ'!O8) -> Atatürk İlkokulu Müdürlüğü
A5: BELGE TARİH VE SAYISI | L5: =IF('BİLGİ GİRİŞİ'!O18="","…../…../……..",'BİLGİ GİRİŞİ'!O18) -> 2023-03-06 | P5: / | Q5: =IF('BİLGİ GİRİŞİ'!S15="","….......................................",'BİLGİ GİRİŞİ'!S15) -> 456789123
A6: =UPPER(IF('BİLGİ GİRİŞİ'!O8="","",'BİLGİ GİRİŞİ'!O8)) -> ATATÜRK İLKOKULU MÜDÜRLÜĞÜ
A7: HARCAMA YETKİLİSİ MAKAMINA
A8: DOĞRUDAN TEMİN İLE İLGİLİ BİLGİLER
A9: DOĞRUDAN TEMİN NUMARASI | P9: =IF('BİLGİ GİRİŞİ'!O11="","",'BİLGİ GİRİŞİ'!O11) -> 22DT1211930
A10: İŞİN ADI | P10: =IF('BİLGİ GİRİŞİ'!O9="","",'BİLGİ GİRİŞİ'!O9) -> Bilişim Malzemeleri Alımı
A11: TEMİN ŞEKLİ | P11: =IF('BİLGİ GİRİŞİ'!O10="","",'BİLGİ GİRİŞİ'!O10) -> 22/d
A12: İŞİN TÜRÜ | P12: Mal Alımı/Hizmet Alımı/Yapım İşi
A14: KULLANILABİLİR ÖDENEK TUTARI | P14: =IF('BİLGİ GİRİŞİ'!AJ13="","",'BİLGİ GİRİŞİ'!AJ13) -> 45000
A15: YAKLAŞIK MALİYET | P15: =IF('3'!AS76="","",'3'!AS76) -> 24000
A16: YATIRIM/PROJE NUMARASI (Varsa)
A17: BÜTÇE TERTİBİ (Varsa) | P17: =IF('BİLGİ GİRİŞİ'!AJ12="","",'BİLGİ GİRİŞİ'!AJ12) -> 6.98.255.9436.13.67.01.03.05.30.02
A18: FİYAT FARKI VERİLECEKSE ŞARTLARI | P18: Verilmeyecektir.
A19: AVANS VERİLECEKSE ŞARTLARI | P19: Verilmeyecektir.
A20: DOKÜMAN HAZIRLANIP HAZIRLANMAYACAĞI | P20: Hazırlanmayacaktır.
A22: DOĞRUDAN TEMİN İLE İLGİLİ DİĞER AÇIKLAMALAR
A23: …............
A24: ONAY
A25: =CONCATENATE(" ","Yukarıda belirtilen işin Kamu İhale Kanunu'nun ",IF('BİLGİ GİRİŞİ'!O10="",".............................................................................",'BİLGİ GİRİŞİ'!O10)," maddesine göre Doğrudan Temin yoluyla satın alınması hususunu;") -> Yukarıda belirtilen işin Kamu İhale Kanunu'nun 22/d maddesine göre Doğrudan Temin yoluyla satın alınması hususunu;
P28: =IF(P33="","",IF('BİLGİ GİRİŞİ'!AT16="","",'BİLGİ GİRİŞİ'!AT16)) -> OLUR/UYGUNDUR
A29: Olurlarınıza arz ederim. | P29: =IF(P33="","",IF('BİLGİ GİRİŞİ'!O18="","…../…../……..",'BİLGİ GİRİŞİ'!O18)) -> 2023-03-06
A31: =IF(A34="","",IF('BİLGİ GİRİŞİ'!O18="","…../…../……..",'BİLGİ GİRİŞİ'!O18)) -> 2023-03-06
P33: =IF('BİLGİ GİRİŞİ'!AT17="","",'BİLGİ GİRİŞİ'!AT17) -> Mustafa AYDIN
A34: =IF('BİLGİ GİRİŞİ'!AB17="","",'BİLGİ GİRİŞİ'!AB17) -> Ahmet DEMİR | P34: =IF(P33="","",IF('BİLGİ GİRİŞİ'!AT18="","",'BİLGİ GİRİŞİ'!AT18)) -> Okul Müdürü
A35: =IF(A34="","",IF('BİLGİ GİRİŞİ'!AB18="","",'BİLGİ GİRİŞİ'!AB18)) -> Müdür Yardımcısı 1
A38: Ek:İdare Tarafından Hazırlanan Yaklaşık Maliyet Hesap Cetveli

Sheet 5
A2: T.C.
A3: =IF('BİLGİ GİRİŞİ'!O7="","",'BİLGİ GİRİŞİ'!O7) -> BULANIK KAYMAKAMLIĞI
A4: =IF('BİLGİ GİRİŞİ'!O8="","",'BİLGİ GİRİŞİ'!O8) -> Atatürk İlkokulu Müdürlüğü
A6: Sayı | D6: : | E6: =IF('BİLGİ GİRİŞİ'!S15="","",'BİLGİ GİRİŞİ'!S15) -> 456789123 | Z6: =IF('BİLGİ GİRİŞİ'!O19="","…../…../……..",'BİLGİ GİRİŞİ'!O19) -> 2023-03-06
A7: Konu | D7: : | E7: Teklif Vermeye Davet
A9: İLGİLİ GERÇEK/TÜZEL KİŞİLERE
A11: =CONCATENATE(" ","Kurumumuz ihtiyaçlarında kullanılmak üzere aşağıda bilgileri verilen Mal/Hizmet/Yapım İşi, Kamu İhale Kanunu'nun ",IF('BİLGİ GİRİŞİ'!O10="",".............................................................................",'BİLGİ GİRİŞİ'!O10)," maddesine göre Doğrudan Temin yoluyla satın alınacaktır.") -> Kurumumuz ihtiyaçlarında kullanılmak üzere aşağıda bilgileri verilen Mal/Hizmet/Yapım İşi, Kamu İhale Kanunu'nun 22/d maddesine göre Doğrudan Temin yoluyla satın alınacaktır.
A13: =CONCATENATE(" İlgilenmeniz halinde aşağıda bilgileri verilen Mal/Hizmet/Yapım İşi'ne ilişkin, KDV hariç teklifinizi içeren birim fiyat ve toplam fiyatlarının karşılarına yazılarak ", TEXT(IF('BİLGİ GİRİŞİ'!O20="","…../…../……..",'BİLGİ GİRİŞİ'!O20),"gg.aa.yyyy "), " tarihi mesai bitimine kadar Kurumumuza gönderilmesi hususunda;") -> İlgilenmeniz halinde aşağıda bilgileri verilen Mal/Hizmet/Yapım İşi'ne ilişkin, KDV hariç teklifinizi içeren birim fiyat ve toplam fiyatlarının karşılarına yazılarak 08.03.2023 tarihi mesai bitimine kadar Kurumumuza gönderilmesi hususunda;
A16: Gereğini rica ederim/ederiz.
A19: =IF(A20="","",IF('BİLGİ GİRİŞİ'!AH16="","",'BİLGİ GİRİŞİ'!AH16)) -> Piyasa Araştırma Görevlisi | K19: =IF(K20="","",IF('BİLGİ GİRİŞİ'!AN16="","",'BİLGİ GİRİŞİ'!AN16)) ->  | U19: =IF(U20="","",IF('BİLGİ GİRİŞİ'!AB16="","",'BİLGİ GİRİŞİ'!AB16)) -> Piyasa Araştırma Görevlisi
A20: =IF('BİLGİ GİRİŞİ'!AH17="","",'BİLGİ GİRİŞİ'!AH17) -> Ayşe YILDIZ | K20: =IF('BİLGİ GİRİŞİ'!AN17="","",'BİLGİ GİRİŞİ'!AN17) ->  | U20: =IF('BİLGİ GİRİŞİ'!AB17="","",'BİLGİ GİRİŞİ'!AB17) -> Ahmet DEMİR
A21: =IF('BİLGİ GİRİŞİ'!AH18="","",'BİLGİ GİRİŞİ'!AH18) -> Öğretmen 1 | K21: =IF(K20="","",IF('BİLGİ GİRİŞİ'!AN18="","",'BİLGİ GİRİŞİ'!AN18)) ->  | U21: =IF('BİLGİ GİRİŞİ'!AB18="","",'BİLGİ GİRİŞİ'!AB18) -> Müdür Yardımcısı 1
A24: =IF('BİLGİ GİRİŞİ'!O8="","",CONCATENATE(UPPER('BİLGİ GİRİŞİ'!O8),"",UPPER(IF('BİLGİ GİRİŞİ'!O8="","",'BİLGİ GİRİŞİ'!AN8)))) -> ATATÜRK İLKOKULU MÜDÜRLÜĞÜNE
A26: Kurumunuzca satın alınacak Mal/Hizmet/Yapım İşi'ne ilişkin teklifimizi içeren birim fiyatlar ve toplam fiyatlar aşağıya çıkarılmıştır.
A28: Gereğini arz ederim/ederiz.
A30: MAL'IN/HİZMET'İN/YAPIM İŞİ'NİN
A31: S | B31: Kalem/KısımBilgileri | P31: Birimi | T31: Miktarı | X31: Birim Fiyatı | AB31: Toplam Fiyatı
A32: =IF('BİLGİ GİRİŞİ'!D30="","",'BİLGİ GİRİŞİ'!D30) -> 1 | B32: =IF('BİLGİ GİRİŞİ'!E30="","",'BİLGİ GİRİŞİ'!E30) -> AIO (All In One) Masaüstü Bilgisayar | P32: =IF('BİLGİ GİRİŞİ'!W30="","",'BİLGİ GİRİŞİ'!W30) -> Adet | T32: =IF('BİLGİ GİRİŞİ'!T30="","",IF('BİLGİ GİRİŞİ'!$BO$28=1,"1",'BİLGİ GİRİŞİ'!T30)) -> 1
A33: =IF('BİLGİ GİRİŞİ'!D31="","",'BİLGİ GİRİŞİ'!D31) -> 2 | B33: =IF('BİLGİ GİRİŞİ'!E31="","",'BİLGİ GİRİŞİ'!E31) -> Fotokopi Makinesi | P33: =IF('BİLGİ GİRİŞİ'!W31="","",'BİLGİ GİRİŞİ'!W31) -> Adet | T33: =IF('BİLGİ GİRİŞİ'!T31="","",IF('BİLGİ GİRİŞİ'!$BO$28=1,"1",'BİLGİ GİRİŞİ'!T31)) -> 1
A34: =IF('BİLGİ GİRİŞİ'!D32="","",'BİLGİ GİRİŞİ'!D32) -> 3 | B34: =IF('BİLGİ GİRİŞİ'!E32="","",'BİLGİ GİRİŞİ'!E32) -> Projektör | P34: =IF('BİLGİ GİRİŞİ'!W32="","",'BİLGİ GİRİŞİ'!W32) -> Adet | T34: =IF('BİLGİ GİRİŞİ'!T32="","",IF('BİLGİ GİRİŞİ'!$BO$28=1,"1",'BİLGİ GİRİŞİ'!T32)) -> 1
A35: =IF('BİLGİ GİRİŞİ'!D33="","",'BİLGİ GİRİŞİ'!D33) ->  | B35: =IF('BİLGİ GİRİŞİ'!E33="","",'BİLGİ GİRİŞİ'!E33) ->  | P35: =IF('BİLGİ GİRİŞİ'!W33="","",'BİLGİ GİRİŞİ'!W33) ->  | T35: =IF('BİLGİ GİRİŞİ'!T33="","",IF('BİLGİ GİRİŞİ'!$BO$28=1,"1",'BİLGİ GİRİŞİ'!T33)) -> 
A36: =IF('BİLGİ GİRİŞİ'!D34="","",'BİLGİ GİRİŞİ'!D34) ->  | B36: =IF('BİLGİ GİRİŞİ'!E34="","",'BİLGİ GİRİŞİ'!E34) ->  | P36: =IF('BİLGİ GİRİŞİ'!W34="","",'BİLGİ GİRİŞİ'!W34) ->  | T36: =IF('BİLGİ GİRİŞİ'!T34="","",IF('BİLGİ GİRİŞİ'!$BO$28=1,"1",'BİLGİ GİRİŞİ'!T34)) -> 
A37: =IF('BİLGİ GİRİŞİ'!D35="","",'BİLGİ GİRİŞİ'!D35) ->  | B37: =IF('BİLGİ GİRİŞİ'!E35="","",'BİLGİ GİRİŞİ'!E35) ->  | P37: =IF('BİLGİ GİRİŞİ'!W35="","",'BİLGİ GİRİŞİ'!W35) ->  | T37: =IF('BİLGİ GİRİŞİ'!T35="","",IF('BİLGİ GİRİŞİ'!$BO$28=1,"1",'BİLGİ GİRİŞİ'!T35)) -> 
A38: =IF('BİLGİ GİRİŞİ'!D36="","",'BİLGİ GİRİŞİ'!D36) ->  | B38: =IF('BİLGİ GİRİŞİ'!E36="","",'BİLGİ GİRİŞİ'!E36) ->  | P38: =IF('BİLGİ GİRİŞİ'!W36="","",'BİLGİ GİRİŞİ'!W36) ->  | T38: =IF('BİLGİ GİRİŞİ'!T36="","",IF('BİLGİ GİRİŞİ'!$BO$28=1,"1",'BİLGİ GİRİŞİ'!T36)) -> 
A39: =IF('BİLGİ GİRİŞİ'!D37="","",'BİLGİ GİRİŞİ'!D37) ->  | B39: =IF('BİLGİ GİRİŞİ'!E37="","",'BİLGİ GİRİŞİ'!E37) ->  | P39: =IF('BİLGİ GİRİŞİ'!W37="","",'BİLGİ GİRİŞİ'!W37) ->  | T39: =IF('BİLGİ GİRİŞİ'!T37="","",IF('BİLGİ GİRİŞİ'!$BO$28=1,"1",'BİLGİ GİRİŞİ'!T37)) -> 
A40: =IF('BİLGİ GİRİŞİ'!D38="","",'BİLGİ GİRİŞİ'!D38) ->  | B40: =IF('BİLGİ GİRİŞİ'!E38="","",'BİLGİ GİRİŞİ'!E38) ->  | P40: =IF('BİLGİ GİRİŞİ'!W38="","",'BİLGİ GİRİŞİ'!W38) ->  | T40: =IF('BİLGİ GİRİŞİ'!T38="","",IF('BİLGİ GİRİŞİ'!$BO$28=1,"1",'BİLGİ GİRİŞİ'!T38)) -> 
A41: =IF('BİLGİ GİRİŞİ'!D39="","",'BİLGİ GİRİŞİ'!D39) ->  | B41: =IF('BİLGİ GİRİŞİ'!E39="","",'BİLGİ GİRİŞİ'!E39) ->  | P41: =IF('BİLGİ GİRİŞİ'!W39="","",'BİLGİ GİRİŞİ'!W39) ->  | T41: =IF('BİLGİ GİRİŞİ'!T39="","",IF('BİLGİ GİRİŞİ'!$BO$28=1,"1",'BİLGİ GİRİŞİ'!T39)) -> 
A42: =IF('BİLGİ GİRİŞİ'!D40="","",'BİLGİ GİRİŞİ'!D40) ->  | B42: =IF('BİLGİ GİRİŞİ'!E40="","",'BİLGİ GİRİŞİ'!E40) ->  | P42: =IF('BİLGİ GİRİŞİ'!W40="","",'BİLGİ GİRİŞİ'!W40) ->  | T42: =IF('BİLGİ GİRİŞİ'!T40="","",IF('BİLGİ GİRİŞİ'!$BO$28=1,"1",'BİLGİ GİRİŞİ'!T40)) -> 
A43: =IF('BİLGİ GİRİŞİ'!D41="","",'BİLGİ GİRİŞİ'!D41) ->  | B43: =IF('BİLGİ GİRİŞİ'!E41="","",'BİLGİ GİRİŞİ'!E41) ->  | P43: =IF('BİLGİ GİRİŞİ'!W41="","",'BİLGİ GİRİŞİ'!W41) ->  | T43: =IF('BİLGİ GİRİŞİ'!T41="","",IF('BİLGİ GİRİŞİ'!$BO$28=1,"1",'BİLGİ GİRİŞİ'!T41)) -> 
A44: =IF('BİLGİ GİRİŞİ'!D42="","",'BİLGİ GİRİŞİ'!D42) ->  | B44: =IF('BİLGİ GİRİŞİ'!E42="","",'BİLGİ GİRİŞİ'!E42) ->  | P44: =IF('BİLGİ GİRİŞİ'!W42="","",'BİLGİ GİRİŞİ'!W42) ->  | T44: =IF('BİLGİ GİRİŞİ'!T42="","",IF('BİLGİ GİRİŞİ'!$BO$28=1,"1",'BİLGİ GİRİŞİ'!T42)) -> 
A45: =IF('BİLGİ GİRİŞİ'!D43="","",'BİLGİ GİRİŞİ'!D43) ->  | B45: =IF('BİLGİ GİRİŞİ'!E43="","",'BİLGİ GİRİŞİ'!E43) ->  | P45: =IF('BİLGİ GİRİŞİ'!W43="","",'BİLGİ GİRİŞİ'!W43) ->  | T45: =IF('BİLGİ GİRİŞİ'!T43="","",IF('BİLGİ GİRİŞİ'!$BO$28=1,"1",'BİLGİ GİRİŞİ'!T43)) -> 
A46: =IF('BİLGİ GİRİŞİ'!D44="","",'BİLGİ GİRİŞİ'!D44) ->  | B46: =IF('BİLGİ GİRİŞİ'!E44="","",'BİLGİ GİRİŞİ'!E44) ->  | P46: =IF('BİLGİ GİRİŞİ'!W44="","",'BİLGİ GİRİŞİ'!W44) ->  | T46: =IF('BİLGİ GİRİŞİ'!T44="","",IF('BİLGİ GİRİŞİ'!$BO$28=1,"1",'BİLGİ GİRİŞİ'!T44)) -> 
A47: =IF('BİLGİ GİRİŞİ'!D45="","",'BİLGİ GİRİŞİ'!D45) ->  | B47: =IF('BİLGİ GİRİŞİ'!E45="","",'BİLGİ GİRİŞİ'!E45) ->  | P47: =IF('BİLGİ GİRİŞİ'!W45="","",'BİLGİ GİRİŞİ'!W45) ->  | T47: =IF('BİLGİ GİRİŞİ'!T45="","",IF('BİLGİ GİRİŞİ'!$BO$28=1,"1",'BİLGİ GİRİŞİ'!T45)) -> 
A48: =IF('BİLGİ GİRİŞİ'!D46="","",'BİLGİ GİRİŞİ'!D46) ->  | B48: =IF('BİLGİ GİRİŞİ'!E46="","",'BİLGİ GİRİŞİ'!E46) ->  | P48: =IF('BİLGİ GİRİŞİ'!W46="","",'BİLGİ GİRİŞİ'!W46) ->  | T48: =IF('BİLGİ GİRİŞİ'!T46="","",IF('BİLGİ GİRİŞİ'!$BO$28=1,"1",'BİLGİ GİRİŞİ'!T46)) -> 
A49: =IF('BİLGİ GİRİŞİ'!D47="","",'BİLGİ GİRİŞİ'!D47) ->  | B49: =IF('BİLGİ GİRİŞİ'!E47="","",'BİLGİ GİRİŞİ'!E47) ->  | P49: =IF('BİLGİ GİRİŞİ'!W47="","",'BİLGİ GİRİŞİ'!W47) ->  | T49: =IF('BİLGİ GİRİŞİ'!T47="","",IF('BİLGİ GİRİŞİ'!$BO$28=1,"1",'BİLGİ GİRİŞİ'!T47)) -> 
A50: =IF('BİLGİ GİRİŞİ'!D48="","",'BİLGİ GİRİŞİ'!D48) ->  | B50: =IF('BİLGİ GİRİŞİ'!E48="","",'BİLGİ GİRİŞİ'!E48) ->  | P50: =IF('BİLGİ GİRİŞİ'!W48="","",'BİLGİ GİRİŞİ'!W48) ->  | T50: =IF('BİLGİ GİRİŞİ'!T48="","",IF('BİLGİ GİRİŞİ'!$BO$28=1,"1",'BİLGİ GİRİŞİ'!T48)) -> 
A51: =IF('BİLGİ GİRİŞİ'!D49="","",'BİLGİ GİRİŞİ'!D49) ->  | B51: =IF('BİLGİ GİRİŞİ'!E49="","",'BİLGİ GİRİŞİ'!E49) ->  | P51: =IF('BİLGİ GİRİŞİ'!W49="","",'BİLGİ GİRİŞİ'!W49) ->  | T51: =IF('BİLGİ GİRİŞİ'!T49="","",IF('BİLGİ GİRİŞİ'!$BO$28=1,"1",'BİLGİ GİRİŞİ'!T49)) -> 
A52: =IF('BİLGİ GİRİŞİ'!D50="","",'BİLGİ GİRİŞİ'!D50) ->  | B52: =IF('BİLGİ GİRİŞİ'!E50="","",'BİLGİ GİRİŞİ'!E50) ->  | P52: =IF('BİLGİ GİRİŞİ'!W50="","",'BİLGİ GİRİŞİ'!W50) ->  | T52: =IF('BİLGİ GİRİŞİ'!T50="","",IF('BİLGİ GİRİŞİ'!$BO$28=1,"1",'BİLGİ GİRİŞİ'!T50)) -> 
A53: =IF('BİLGİ GİRİŞİ'!D51="","",'BİLGİ GİRİŞİ'!D51) ->  | B53: =IF('BİLGİ GİRİŞİ'!E51="","",'BİLGİ GİRİŞİ'!E51) ->  | P53: =IF('BİLGİ GİRİŞİ'!W51="","",'BİLGİ GİRİŞİ'!W51) ->  | T53: =IF('BİLGİ GİRİŞİ'!T51="","",IF('BİLGİ GİRİŞİ'!$BO$28=1,"1",'BİLGİ GİRİŞİ'!T51)) -> 
A54: =IF('BİLGİ GİRİŞİ'!D52="","",'BİLGİ GİRİŞİ'!D52) ->  | B54: =IF('BİLGİ GİRİŞİ'!E52="","",'BİLGİ GİRİŞİ'!E52) ->  | P54: =IF('BİLGİ GİRİŞİ'!W52="","",'BİLGİ GİRİŞİ'!W52) ->  | T54: =IF('BİLGİ GİRİŞİ'!T52="","",IF('BİLGİ GİRİŞİ'!$BO$28=1,"1",'BİLGİ GİRİŞİ'!T52)) -> 
A55: =IF('BİLGİ GİRİŞİ'!D53="","",'BİLGİ GİRİŞİ'!D53) ->  | B55: =IF('BİLGİ GİRİŞİ'!E53="","",'BİLGİ GİRİŞİ'!E53) ->  | P55: =IF('BİLGİ GİRİŞİ'!W53="","",'BİLGİ GİRİŞİ'!W53) ->  | T55: =IF('BİLGİ GİRİŞİ'!T53="","",IF('BİLGİ GİRİŞİ'!$BO$28=1,"1",'BİLGİ GİRİŞİ'!T53)) -> 
A56: =IF('BİLGİ GİRİŞİ'!D54="","",'BİLGİ GİRİŞİ'!D54) ->  | B56: =IF('BİLGİ GİRİŞİ'!E54="","",'BİLGİ GİRİŞİ'!E54) ->  | P56: =IF('BİLGİ GİRİŞİ'!W54="","",'BİLGİ GİRİŞİ'!W54) ->  | T56: =IF('BİLGİ GİRİŞİ'!T54="","",IF('BİLGİ GİRİŞİ'!$BO$28=1,"1",'BİLGİ GİRİŞİ'!T54)) -> 
A57: =IF('BİLGİ GİRİŞİ'!D55="","",'BİLGİ GİRİŞİ'!D55) ->  | B57: =IF('BİLGİ GİRİŞİ'!E55="","",'BİLGİ GİRİŞİ'!E55) ->  | P57: =IF('BİLGİ GİRİŞİ'!W55="","",'BİLGİ GİRİŞİ'!W55) ->  | T57: =IF('BİLGİ GİRİŞİ'!T55="","",IF('BİLGİ GİRİŞİ'!$BO$28=1,"1",'BİLGİ GİRİŞİ'!T55)) -> 
A58: =IF('BİLGİ GİRİŞİ'!D56="","",'BİLGİ GİRİŞİ'!D56) ->  | B58: =IF('BİLGİ GİRİŞİ'!E56="","",'BİLGİ GİRİŞİ'!E56) ->  | P58: =IF('BİLGİ GİRİŞİ'!W56="","",'BİLGİ GİRİŞİ'!W56) ->  | T58: =IF('BİLGİ GİRİŞİ'!T56="","",IF('BİLGİ GİRİŞİ'!$BO$28=1,"1",'BİLGİ GİRİŞİ'!T56)) -> 
A59: =IF('BİLGİ GİRİŞİ'!D57="","",'BİLGİ GİRİŞİ'!D57) ->  | B59: =IF('BİLGİ GİRİŞİ'!E57="","",'BİLGİ GİRİŞİ'!E57) ->  | P59: =IF('BİLGİ GİRİŞİ'!W57="","",'BİLGİ GİRİŞİ'!W57) ->  | T59: =IF('BİLGİ GİRİŞİ'!T57="","",IF('BİLGİ GİRİŞİ'!$BO$28=1,"1",'BİLGİ GİRİŞİ'!T57)) -> 
A60: =IF('BİLGİ GİRİŞİ'!D58="","",'BİLGİ GİRİŞİ'!D58) ->  | B60: =IF('BİLGİ GİRİŞİ'!E58="","",'BİLGİ GİRİŞİ'!E58) ->  | P60: =IF('BİLGİ GİRİŞİ'!W58="","",'BİLGİ GİRİŞİ'!W58) ->  | T60: =IF('BİLGİ GİRİŞİ'!T58="","",IF('BİLGİ GİRİŞİ'!$BO$28=1,"1",'BİLGİ GİRİŞİ'!T58)) -> 
A61: =IF('BİLGİ GİRİŞİ'!D59="","",'BİLGİ GİRİŞİ'!D59) ->  | B61: =IF('BİLGİ GİRİŞİ'!E59="","",'BİLGİ GİRİŞİ'!E59) ->  | P61: =IF('BİLGİ GİRİŞİ'!W59="","",'BİLGİ GİRİŞİ'!W59) ->  | T61: =IF('BİLGİ GİRİŞİ'!T59="","",IF('BİLGİ GİRİŞİ'!$BO$28=1,"1",'BİLGİ GİRİŞİ'!T59)) -> 
A62: =IF('BİLGİ GİRİŞİ'!D60="","",'BİLGİ GİRİŞİ'!D60) ->  | B62: =IF('BİLGİ GİRİŞİ'!E60="","",'BİLGİ GİRİŞİ'!E60) ->  | P62: =IF('BİLGİ GİRİŞİ'!W60="","",'BİLGİ GİRİŞİ'!W60) ->  | T62: =IF('BİLGİ GİRİŞİ'!T60="","",IF('BİLGİ GİRİŞİ'!$BO$28=1,"1",'BİLGİ GİRİŞİ'!T60)) -> 
A63: =IF('BİLGİ GİRİŞİ'!D61="","",'BİLGİ GİRİŞİ'!D61) ->  | B63: =IF('BİLGİ GİRİŞİ'!E61="","",'BİLGİ GİRİŞİ'!E61) ->  | P63: =IF('BİLGİ GİRİŞİ'!W61="","",'BİLGİ GİRİŞİ'!W61) ->  | T63: =IF('BİLGİ GİRİŞİ'!T61="","",IF('BİLGİ GİRİŞİ'!$BO$28=1,"1",'BİLGİ GİRİŞİ'!T61)) -> 
A64: =IF('BİLGİ GİRİŞİ'!D62="","",'BİLGİ GİRİŞİ'!D62) ->  | B64: =IF('BİLGİ GİRİŞİ'!E62="","",'BİLGİ GİRİŞİ'!E62) ->  | P64: =IF('BİLGİ GİRİŞİ'!W62="","",'BİLGİ GİRİŞİ'!W62) ->  | T64: =IF('BİLGİ GİRİŞİ'!T62="","",IF('BİLGİ GİRİŞİ'!$BO$28=1,"1",'BİLGİ GİRİŞİ'!T62)) -> 
A65: =IF('BİLGİ GİRİŞİ'!D63="","",'BİLGİ GİRİŞİ'!D63) ->  | B65: =IF('BİLGİ GİRİŞİ'!E63="","",'BİLGİ GİRİŞİ'!E63) ->  | P65: =IF('BİLGİ GİRİŞİ'!W63="","",'BİLGİ GİRİŞİ'!W63) ->  | T65: =IF('BİLGİ GİRİŞİ'!T63="","",IF('BİLGİ GİRİŞİ'!$BO$28=1,"1",'BİLGİ GİRİŞİ'!T63)) -> 
A66: =IF('BİLGİ GİRİŞİ'!D64="","",'BİLGİ GİRİŞİ'!D64) ->  | B66: =IF('BİLGİ GİRİŞİ'!E64="","",'BİLGİ GİRİŞİ'!E64) ->  | P66: =IF('BİLGİ GİRİŞİ'!W64="","",'BİLGİ GİRİŞİ'!W64) ->  | T66: =IF('BİLGİ GİRİŞİ'!T64="","",IF('BİLGİ GİRİŞİ'!$BO$28=1,"1",'BİLGİ GİRİŞİ'!T64)) -> 
A67: =IF('BİLGİ GİRİŞİ'!D65="","",'BİLGİ GİRİŞİ'!D65) ->  | B67: =IF('BİLGİ GİRİŞİ'!E65="","",'BİLGİ GİRİŞİ'!E65) ->  | P67: =IF('BİLGİ GİRİŞİ'!W65="","",'BİLGİ GİRİŞİ'!W65) ->  | T67: =IF('BİLGİ GİRİŞİ'!T65="","",IF('BİLGİ GİRİŞİ'!$BO$28=1,"1",'BİLGİ GİRİŞİ'!T65)) -> 
A68: =IF('BİLGİ GİRİŞİ'!D66="","",'BİLGİ GİRİŞİ'!D66) ->  | B68: =IF('BİLGİ GİRİŞİ'!E66="","",'BİLGİ GİRİŞİ'!E66) ->  | P68: =IF('BİLGİ GİRİŞİ'!W66="","",'BİLGİ GİRİŞİ'!W66) ->  | T68: =IF('BİLGİ GİRİŞİ'!T66="","",IF('BİLGİ GİRİŞİ'!$BO$28=1,"1",'BİLGİ GİRİŞİ'!T66)) -> 
A69: =IF('BİLGİ GİRİŞİ'!D67="","",'BİLGİ GİRİŞİ'!D67) ->  | B69: =IF('BİLGİ GİRİŞİ'!E67="","",'BİLGİ GİRİŞİ'!E67) ->  | P69: =IF('BİLGİ GİRİŞİ'!W67="","",'BİLGİ GİRİŞİ'!W67) ->  | T69: =IF('BİLGİ GİRİŞİ'!T67="","",IF('BİLGİ GİRİŞİ'!$BO$28=1,"1",'BİLGİ GİRİŞİ'!T67)) -> 
A70: =IF('BİLGİ GİRİŞİ'!D68="","",'BİLGİ GİRİŞİ'!D68) ->  | B70: =IF('BİLGİ GİRİŞİ'!E68="","",'BİLGİ GİRİŞİ'!E68) ->  | P70: =IF('BİLGİ GİRİŞİ'!W68="","",'BİLGİ GİRİŞİ'!W68) ->  | T70: =IF('BİLGİ GİRİŞİ'!T68="","",IF('BİLGİ GİRİŞİ'!$BO$28=1,"1",'BİLGİ GİRİŞİ'!T68)) -> 
A71: =IF('BİLGİ GİRİŞİ'!D69="","",'BİLGİ GİRİŞİ'!D69) ->  | B71: =IF('BİLGİ GİRİŞİ'!E69="","",'BİLGİ GİRİŞİ'!E69) ->  | P71: =IF('BİLGİ GİRİŞİ'!W69="","",'BİLGİ GİRİŞİ'!W69) ->  | T71: =IF('BİLGİ GİRİŞİ'!T69="","",IF('BİLGİ GİRİŞİ'!$BO$28=1,"1",'BİLGİ GİRİŞİ'!T69)) -> 
A72: =IF('BİLGİ GİRİŞİ'!D70="","",'BİLGİ GİRİŞİ'!D70) ->  | B72: =IF('BİLGİ GİRİŞİ'!E70="","",'BİLGİ GİRİŞİ'!E70) ->  | P72: =IF('BİLGİ GİRİŞİ'!W70="","",'BİLGİ GİRİŞİ'!W70) ->  | T72: =IF('BİLGİ GİRİŞİ'!T70="","",IF('BİLGİ GİRİŞİ'!$BO$28=1,"1",'BİLGİ GİRİŞİ'!T70)) -> 
A73: =IF('BİLGİ GİRİŞİ'!D71="","",'BİLGİ GİRİŞİ'!D71) ->  | B73: =IF('BİLGİ GİRİŞİ'!E71="","",'BİLGİ GİRİŞİ'!E71) ->  | P73: =IF('BİLGİ GİRİŞİ'!W71="","",'BİLGİ GİRİŞİ'!W71) ->  | T73: =IF('BİLGİ GİRİŞİ'!T71="","",IF('BİLGİ GİRİŞİ'!$BO$28=1,"1",'BİLGİ GİRİŞİ'!T71)) -> 
A74: =IF('BİLGİ GİRİŞİ'!D72="","",'BİLGİ GİRİŞİ'!D72) ->  | B74: =IF('BİLGİ GİRİŞİ'!E72="","",'BİLGİ GİRİŞİ'!E72) ->  | P74: =IF('BİLGİ GİRİŞİ'!W72="","",'BİLGİ GİRİŞİ'!W72) ->  | T74: =IF('BİLGİ GİRİŞİ'!T72="","",IF('BİLGİ GİRİŞİ'!$BO$28=1,"1",'BİLGİ GİRİŞİ'!T72)) -> 
A75: =IF('BİLGİ GİRİŞİ'!D73="","",'BİLGİ GİRİŞİ'!D73) ->  | B75: =IF('BİLGİ GİRİŞİ'!E73="","",'BİLGİ GİRİŞİ'!E73) ->  | P75: =IF('BİLGİ GİRİŞİ'!W73="","",'BİLGİ GİRİŞİ'!W73) ->  | T75: =IF('BİLGİ GİRİŞİ'!T73="","",IF('BİLGİ GİRİŞİ'!$BO$28=1,"1",'BİLGİ GİRİŞİ'!T73)) -> 
A76: =IF('BİLGİ GİRİŞİ'!D74="","",'BİLGİ GİRİŞİ'!D74) ->  | B76: =IF('BİLGİ GİRİŞİ'!E74="","",'BİLGİ GİRİŞİ'!E74) ->  | P76: =IF('BİLGİ GİRİŞİ'!W74="","",'BİLGİ GİRİŞİ'!W74) ->  | T76: =IF('BİLGİ GİRİŞİ'!T74="","",IF('BİLGİ GİRİŞİ'!$BO$28=1,"1",'BİLGİ GİRİŞİ'!T74)) -> 
A77: =IF('BİLGİ GİRİŞİ'!D75="","",'BİLGİ GİRİŞİ'!D75) ->  | B77: =IF('BİLGİ GİRİŞİ'!E75="","",'BİLGİ GİRİŞİ'!E75) ->  | P77: =IF('BİLGİ GİRİŞİ'!W75="","",'BİLGİ GİRİŞİ'!W75) ->  | T77: =IF('BİLGİ GİRİŞİ'!T75="","",IF('BİLGİ GİRİŞİ'!$BO$28=1,"1",'BİLGİ GİRİŞİ'!T75)) -> 
A78: =IF('BİLGİ GİRİŞİ'!D76="","",'BİLGİ GİRİŞİ'!D76) ->  | B78: =IF('BİLGİ GİRİŞİ'!E76="","",'BİLGİ GİRİŞİ'!E76) ->  | P78: =IF('BİLGİ GİRİŞİ'!W76="","",'BİLGİ GİRİŞİ'!W76) ->  | T78: =IF('BİLGİ GİRİŞİ'!T76="","",IF('BİLGİ GİRİŞİ'!$BO$28=1,"1",'BİLGİ GİRİŞİ'!T76)) -> 
A79: =IF('BİLGİ GİRİŞİ'!D77="","",'BİLGİ GİRİŞİ'!D77) ->  | B79: =IF('BİLGİ GİRİŞİ'!E77="","",'BİLGİ GİRİŞİ'!E77) ->  | P79: =IF('BİLGİ GİRİŞİ'!W77="","",'BİLGİ GİRİŞİ'!W77) ->  | T79: =IF('BİLGİ GİRİŞİ'!T77="","",IF('BİLGİ GİRİŞİ'!$BO$28=1,"1",'BİLGİ GİRİŞİ'!T77)) -> 
A80: =IF('BİLGİ GİRİŞİ'!D78="","",'BİLGİ GİRİŞİ'!D78) ->  | B80: =IF('BİLGİ GİRİŞİ'!E78="","",'BİLGİ GİRİŞİ'!E78) ->  | P80: =IF('BİLGİ GİRİŞİ'!W78="","",'BİLGİ GİRİŞİ'!W78) ->  | T80: =IF('BİLGİ GİRİŞİ'!T78="","",IF('BİLGİ GİRİŞİ'!$BO$28=1,"1",'BİLGİ GİRİŞİ'!T78)) -> 
A81: =IF('BİLGİ GİRİŞİ'!D79="","",'BİLGİ GİRİŞİ'!D79) ->  | B81: =IF('BİLGİ GİRİŞİ'!E79="","",'BİLGİ GİRİŞİ'!E79) ->  | P81: =IF('BİLGİ GİRİŞİ'!W79="","",'BİLGİ GİRİŞİ'!W79) ->  | T81: =IF('BİLGİ GİRİŞİ'!T79="","",IF('BİLGİ GİRİŞİ'!$BO$28=1,"1",'BİLGİ GİRİŞİ'!T79)) -> 
A82: =IF('BİLGİ GİRİŞİ'!D80="","",'BİLGİ GİRİŞİ'!D80) ->  | B82: =IF('BİLGİ GİRİŞİ'!E80="","",'BİLGİ GİRİŞİ'!E80) ->  | P82: =IF('BİLGİ GİRİŞİ'!W80="","",'BİLGİ GİRİŞİ'!W80) ->  | T82: =IF('BİLGİ GİRİŞİ'!T80="","",IF('BİLGİ GİRİŞİ'!$BO$28=1,"1",'BİLGİ GİRİŞİ'!T80)) -> 
A83: =IF('BİLGİ GİRİŞİ'!D81="","",'BİLGİ GİRİŞİ'!D81) ->  | B83: =IF('BİLGİ GİRİŞİ'!E81="","",'BİLGİ GİRİŞİ'!E81) ->  | P83: =IF('BİLGİ GİRİŞİ'!W81="","",'BİLGİ GİRİŞİ'!W81) ->  | T83: =IF('BİLGİ GİRİŞİ'!T81="","",IF('BİLGİ GİRİŞİ'!$BO$28=1,"1",'BİLGİ GİRİŞİ'!T81)) -> 
A84: =IF('BİLGİ GİRİŞİ'!D82="","",'BİLGİ GİRİŞİ'!D82) ->  | B84: =IF('BİLGİ GİRİŞİ'!E82="","",'BİLGİ GİRİŞİ'!E82) ->  | P84: =IF('BİLGİ GİRİŞİ'!W82="","",'BİLGİ GİRİŞİ'!W82) ->  | T84: =IF('BİLGİ GİRİŞİ'!T82="","",IF('BİLGİ GİRİŞİ'!$BO$28=1,"1",'BİLGİ GİRİŞİ'!T82)) -> 
A85: =IF('BİLGİ GİRİŞİ'!D83="","",'BİLGİ GİRİŞİ'!D83) ->  | B85: =IF('BİLGİ GİRİŞİ'!E83="","",'BİLGİ GİRİŞİ'!E83) ->  | P85: =IF('BİLGİ GİRİŞİ'!W83="","",'BİLGİ GİRİŞİ'!W83) ->  | T85: =IF('BİLGİ GİRİŞİ'!T83="","",IF('BİLGİ GİRİŞİ'!$BO$28=1,"1",'BİLGİ GİRİŞİ'!T83)) -> 
A86: =IF('BİLGİ GİRİŞİ'!D84="","",'BİLGİ GİRİŞİ'!D84) ->  | B86: =IF('BİLGİ GİRİŞİ'!E84="","",'BİLGİ GİRİŞİ'!E84) ->  | P86: =IF('BİLGİ GİRİŞİ'!W84="","",'BİLGİ GİRİŞİ'!W84) ->  | T86: =IF('BİLGİ GİRİŞİ'!T84="","",IF('BİLGİ GİRİŞİ'!$BO$28=1,"1",'BİLGİ GİRİŞİ'!T84)) -> 
A87: =IF('BİLGİ GİRİŞİ'!D85="","",'BİLGİ GİRİŞİ'!D85) ->  | B87: =IF('BİLGİ GİRİŞİ'!E85="","",'BİLGİ GİRİŞİ'!E85) ->  | P87: =IF('BİLGİ GİRİŞİ'!W85="","",'BİLGİ GİRİŞİ'!W85) ->  | T87: =IF('BİLGİ GİRİŞİ'!T85="","",IF('BİLGİ GİRİŞİ'!$BO$28=1,"1",'BİLGİ GİRİŞİ'!T85)) -> 
A88: =IF('BİLGİ GİRİŞİ'!D86="","",'BİLGİ GİRİŞİ'!D86) ->  | B88: =IF('BİLGİ GİRİŞİ'!E86="","",'BİLGİ GİRİŞİ'!E86) ->  | P88: =IF('BİLGİ GİRİŞİ'!W86="","",'BİLGİ GİRİŞİ'!W86) ->  | T88: =IF('BİLGİ GİRİŞİ'!T86="","",IF('BİLGİ GİRİŞİ'!$BO$28=1,"1",'BİLGİ GİRİŞİ'!T86)) -> 
A89: =IF('BİLGİ GİRİŞİ'!D87="","",'BİLGİ GİRİŞİ'!D87) ->  | B89: =IF('BİLGİ GİRİŞİ'!E87="","",'BİLGİ GİRİŞİ'!E87) ->  | P89: =IF('BİLGİ GİRİŞİ'!W87="","",'BİLGİ GİRİŞİ'!W87) ->  | T89: =IF('BİLGİ GİRİŞİ'!T87="","",IF('BİLGİ GİRİŞİ'!$BO$28=1,"1",'BİLGİ GİRİŞİ'!T87)) -> 
A90: =IF('BİLGİ GİRİŞİ'!D88="","",'BİLGİ GİRİŞİ'!D88) ->  | B90: =IF('BİLGİ GİRİŞİ'!E88="","",'BİLGİ GİRİŞİ'!E88) ->  | P90: =IF('BİLGİ GİRİŞİ'!W88="","",'BİLGİ GİRİŞİ'!W88) ->  | T90: =IF('BİLGİ GİRİŞİ'!T88="","",IF('BİLGİ GİRİŞİ'!$BO$28=1,"1",'BİLGİ GİRİŞİ'!T88)) -> 
A91: =IF('BİLGİ GİRİŞİ'!D89="","",'BİLGİ GİRİŞİ'!D89) ->  | B91: =IF('BİLGİ GİRİŞİ'!E89="","",'BİLGİ GİRİŞİ'!E89) ->  | P91: =IF('BİLGİ GİRİŞİ'!W89="","",'BİLGİ GİRİŞİ'!W89) ->  | T91: =IF('BİLGİ GİRİŞİ'!T89="","",IF('BİLGİ GİRİŞİ'!$BO$28=1,"1",'BİLGİ GİRİŞİ'!T89)) -> 
A92: TOPLAM (KDV Hariç)
U94: KİŞİ/FİRMA KAŞE/İMZA

Sheet 6
A2: İdarenin Adı | K2: : | L2: =IF('BİLGİ GİRİŞİ'!O8="","",'BİLGİ GİRİŞİ'!O8) -> Atatürk İlkokulu Müdürlüğü
A3: Doğrudan Temin Numarası | K3: : | L3: =IF('BİLGİ GİRİŞİ'!O11="","",'BİLGİ GİRİŞİ'!O11) -> 22DT1211930
A4: Mal/Hizmet/Yapım Adı, Niteliği | K4: : | L4: =IF('BİLGİ GİRİŞİ'!O9="","",'BİLGİ GİRİŞİ'!O9) -> Bilişim Malzemeleri Alımı
A5: Alım/Görevlendirme Onay Tarihi/sayısı | K5: : | L5: =IF('BİLGİ GİRİŞİ'!O15="","",'BİLGİ GİRİŞİ'!O15) -> 2023-03-06 | P5: / | Q5: =IF('BİLGİ GİRİŞİ'!S15="","",'BİLGİ GİRİŞİ'!S15) -> 456789123
A8: İDARİ ŞARTLAR
A9: =IF('BİLGİ GİRİŞİ'!D166="","",'BİLGİ GİRİŞİ'!D166) -> 1 | B9: =IF(C9="","","-") -> - | C9: =IF('BİLGİ GİRİŞİ'!E166="","",'BİLGİ GİRİŞİ'!E166) -> Bu bent boş bırakılmıştır.
A10: =IF('BİLGİ GİRİŞİ'!D167="","",'BİLGİ GİRİŞİ'!D167) ->  | B10: =IF(C10="","","-") ->  | C10: =IF('BİLGİ GİRİŞİ'!E167="","",'BİLGİ GİRİŞİ'!E167) -> 
A11: =IF('BİLGİ GİRİŞİ'!D168="","",'BİLGİ GİRİŞİ'!D168) ->  | C11: =IF('BİLGİ GİRİŞİ'!E168="","",'BİLGİ GİRİŞİ'!E168) -> 
A12: =IF('BİLGİ GİRİŞİ'!D169="","",'BİLGİ GİRİŞİ'!D169) ->  | C12: =IF('BİLGİ GİRİŞİ'!E169="","",'BİLGİ GİRİŞİ'!E169) -> 
A13: =IF('BİLGİ GİRİŞİ'!D170="","",'BİLGİ GİRİŞİ'!D170) ->  | C13: =IF('BİLGİ GİRİŞİ'!E170="","",'BİLGİ GİRİŞİ'!E170) -> 
A14: =IF('BİLGİ GİRİŞİ'!D171="","",'BİLGİ GİRİŞİ'!D171) ->  | C14: =IF('BİLGİ GİRİŞİ'!E171="","",'BİLGİ GİRİŞİ'!E171) -> 
A15: =IF('BİLGİ GİRİŞİ'!D172="","",'BİLGİ GİRİŞİ'!D172) ->  | C15: =IF('BİLGİ GİRİŞİ'!E172="","",'BİLGİ GİRİŞİ'!E172) -> 
A16: =IF('BİLGİ GİRİŞİ'!D173="","",'BİLGİ GİRİŞİ'!D173) ->  | C16: =IF('BİLGİ GİRİŞİ'!E173="","",'BİLGİ GİRİŞİ'!E173) -> 
A17: =IF('BİLGİ GİRİŞİ'!D174="","",'BİLGİ GİRİŞİ'!D174) ->  | B17: =IF(C17="","","-") ->  | C17: =IF('BİLGİ GİRİŞİ'!E174="","",'BİLGİ GİRİŞİ'!E174) -> 
A18: =IF('BİLGİ GİRİŞİ'!D175="","",'BİLGİ GİRİŞİ'!D175) ->  | B18: =IF(C18="","","-") ->  | C18: =IF('BİLGİ GİRİŞİ'!E175="","",'BİLGİ GİRİŞİ'!E175) -> 
A19: =IF('BİLGİ GİRİŞİ'!D176="","",'BİLGİ GİRİŞİ'!D176) ->  | B19: =IF(C19="","","-") ->  | C19: =IF('BİLGİ GİRİŞİ'!E176="","",'BİLGİ GİRİŞİ'!E176) -> 
A20: =IF('BİLGİ GİRİŞİ'!D177="","",'BİLGİ GİRİŞİ'!D177) ->  | C20: =IF('BİLGİ GİRİŞİ'!E177="","",'BİLGİ GİRİŞİ'!E177) -> 
A21: =IF('BİLGİ GİRİŞİ'!D178="","",'BİLGİ GİRİŞİ'!D178) ->  | C21: =IF('BİLGİ GİRİŞİ'!E178="","",'BİLGİ GİRİŞİ'!E178) -> 
A22: =IF('BİLGİ GİRİŞİ'!D179="","",'BİLGİ GİRİŞİ'!D179) ->  | C22: =IF('BİLGİ GİRİŞİ'!E179="","",'BİLGİ GİRİŞİ'!E179) -> 
A23: =IF('BİLGİ GİRİŞİ'!D180="","",'BİLGİ GİRİŞİ'!D180) ->  | C23: =IF('BİLGİ GİRİŞİ'!E180="","",'BİLGİ GİRİŞİ'!E180) -> 
A25: TEKNİK ŞARTLAR
A26: =IF('BİLGİ GİRİŞİ'!D183="","",'BİLGİ GİRİŞİ'!D183) -> 1 | B26: =IF(C26="","","-") -> - | C26: =IF('BİLGİ GİRİŞİ'!E183="","",'BİLGİ GİRİŞİ'!E183) -> Bu bent boş bırakılmıştır.
A27: =IF('BİLGİ GİRİŞİ'!D184="","",'BİLGİ GİRİŞİ'!D184) ->  | C27: =IF('BİLGİ GİRİŞİ'!E184="","",'BİLGİ GİRİŞİ'!E184) -> 
A28: =IF('BİLGİ GİRİŞİ'!D185="","",'BİLGİ GİRİŞİ'!D185) ->  | C28: =IF('BİLGİ GİRİŞİ'!E185="","",'BİLGİ GİRİŞİ'!E185) -> 
A29: =IF('BİLGİ GİRİŞİ'!D186="","",'BİLGİ GİRİŞİ'!D186) ->  | C29: =IF('BİLGİ GİRİŞİ'!E186="","",'BİLGİ GİRİŞİ'!E186) -> 
A30: =IF('BİLGİ GİRİŞİ'!D187="","",'BİLGİ GİRİŞİ'!D187) ->  | C30: =IF('BİLGİ GİRİŞİ'!E187="","",'BİLGİ GİRİŞİ'!E187) -> 
A31: =IF('BİLGİ GİRİŞİ'!D188="","",'BİLGİ GİRİŞİ'!D188) ->  | C31: =IF('BİLGİ GİRİŞİ'!E188="","",'BİLGİ GİRİŞİ'!E188) -> 
A32: =IF('BİLGİ GİRİŞİ'!D189="","",'BİLGİ GİRİŞİ'!D189) ->  | C32: =IF('BİLGİ GİRİŞİ'!E189="","",'BİLGİ GİRİŞİ'!E189) -> 
A33: =IF('BİLGİ GİRİŞİ'!D190="","",'BİLGİ GİRİŞİ'!D190) ->  | C33: =IF('BİLGİ GİRİŞİ'!E190="","",'BİLGİ GİRİŞİ'!E190) -> 
A34: =IF('BİLGİ GİRİŞİ'!D191="","",'BİLGİ GİRİŞİ'!D191) ->  | C34: =IF('BİLGİ GİRİŞİ'!E191="","",'BİLGİ GİRİŞİ'!E191) -> 
A35: =IF('BİLGİ GİRİŞİ'!D192="","",'BİLGİ GİRİŞİ'!D192) ->  | C35: =IF('BİLGİ GİRİŞİ'!E192="","",'BİLGİ GİRİŞİ'!E192) -> 
A36: =IF('BİLGİ GİRİŞİ'!D193="","",'BİLGİ GİRİŞİ'!D193) ->  | C36: =IF('BİLGİ GİRİŞİ'!E193="","",'BİLGİ GİRİŞİ'!E193) -> 
A37: =IF('BİLGİ GİRİŞİ'!D194="","",'BİLGİ GİRİŞİ'!D194) ->  | C37: =IF('BİLGİ GİRİŞİ'!E194="","",'BİLGİ GİRİŞİ'!E194) -> 
A38: =IF('BİLGİ GİRİŞİ'!D195="","",'BİLGİ GİRİŞİ'!D195) ->  | C38: =IF('BİLGİ GİRİŞİ'!E195="","",'BİLGİ GİRİŞİ'!E195) -> 
A39: =IF('BİLGİ GİRİŞİ'!D196="","",'BİLGİ GİRİŞİ'!D196) ->  | C39: =IF('BİLGİ GİRİŞİ'!E196="","",'BİLGİ GİRİŞİ'!E196) -> 
A40: =IF('BİLGİ GİRİŞİ'!D197="","",'BİLGİ GİRİŞİ'!D197) ->  | C40: =IF('BİLGİ GİRİŞİ'!E197="","",'BİLGİ GİRİŞİ'!E197) -> 
A41: =IF('BİLGİ GİRİŞİ'!D198="","",'BİLGİ GİRİŞİ'!D198) ->  | C41: =IF('BİLGİ GİRİŞİ'!E198="","",'BİLGİ GİRİŞİ'!E198) -> 
A42: =IF('BİLGİ GİRİŞİ'!D199="","",'BİLGİ GİRİŞİ'!D199) ->  | C42: =IF('BİLGİ GİRİŞİ'!E199="","",'BİLGİ GİRİŞİ'!E199) -> 
A43: =IF('BİLGİ GİRİŞİ'!D200="","",'BİLGİ GİRİŞİ'!D200) ->  | C43: =IF('BİLGİ GİRİŞİ'!E200="","",'BİLGİ GİRİŞİ'!E200) -> 
A44: =IF('BİLGİ GİRİŞİ'!D201="","",'BİLGİ GİRİŞİ'!D201) ->  | C44: =IF('BİLGİ GİRİŞİ'!E201="","",'BİLGİ GİRİŞİ'!E201) -> 
A45: =IF('BİLGİ GİRİŞİ'!D202="","",'BİLGİ GİRİŞİ'!D202) ->  | C45: =IF('BİLGİ GİRİŞİ'!E202="","",'BİLGİ GİRİŞİ'!E202) -> 

Sheet 7
A2: PİYASA FİYAT ARAŞTIRMA TUTANAĞI
A4: İdarenin Adı | K4: : | L4: =IF('BİLGİ GİRİŞİ'!O8="","",'BİLGİ GİRİŞİ'!O8) -> Atatürk İlkokulu Müdürlüğü | AQ4: =IF('BİLGİ GİRİŞİ'!O22="","…../…../……..",'BİLGİ GİRİŞİ'!O22) -> 2023-03-08
A5: Doğrudan Temin Numarası | K5: : | L5: =IF('BİLGİ GİRİŞİ'!O11="","",'BİLGİ GİRİŞİ'!O11) -> 22DT1211930
A6: İş'in Adı, Türü | K6: : | L6: =IF('BİLGİ GİRİŞİ'!O9="","",'BİLGİ GİRİŞİ'!O9) -> Bilişim Malzemeleri Alımı
A7: Alım/Görevlendirme Onay Tarihi/sayısı | K7: : | L7: =IF('BİLGİ GİRİŞİ'!O15="","",'BİLGİ GİRİŞİ'!O15) -> 2023-03-06 | P7: / | Q7: =IF('BİLGİ GİRİŞİ'!S15="","",'BİLGİ GİRİŞİ'!S15) -> 456789123
A9: MAL'IN/HİZMET'İN/YAPIM İŞİ'NİN | X9: TEKLİF VEREN GERÇEK/TÜZEL KİŞİLER VE TEKLİF FİYATLARI
A10: S | B10: Kalem/KısımBilgileri | P10: Birimi | T10: Miktarı | X10: =IF('BİLGİ GİRİŞİ'!AB95="","",'BİLGİ GİRİŞİ'!AB95) -> A GERÇEK/TÜZEL KİŞİSİ | AF10: =IF('BİLGİ GİRİŞİ'!AJ95="","",'BİLGİ GİRİŞİ'!AJ95) -> B GERÇEK/TÜZEL KİŞİSİ | AN10: =IF('BİLGİ GİRİŞİ'!AR95="","",'BİLGİ GİRİŞİ'!AR95) -> D GERÇEK/TÜZEL KİŞİSİ
X11: Birim Fiyat | AB11: Toplam Fiyat | AF11: Birim Fiyat | AJ11: Toplam Fiyat | AN11: Birim Fiyat | AR11: Toplam Fiyat
A12: =IF('BİLGİ GİRİŞİ'!D30="","",'BİLGİ GİRİŞİ'!D30) -> 1 | B12: =IF('BİLGİ GİRİŞİ'!E30="","",'BİLGİ GİRİŞİ'!E30) -> AIO (All In One) Masaüstü Bilgisayar | P12: =IF('BİLGİ GİRİŞİ'!W30="","",'BİLGİ GİRİŞİ'!W30) -> Adet | T12: =IF('BİLGİ GİRİŞİ'!T30="","",'BİLGİ GİRİŞİ'!T30) -> 2 | X12: =IF('BİLGİ GİRİŞİ'!AB97="","",'BİLGİ GİRİŞİ'!AB97) -> 3000 | AB12: =IF('BİLGİ GİRİŞİ'!AF97="","",'BİLGİ GİRİŞİ'!AF97) -> 6000 | AF12: =IF('BİLGİ GİRİŞİ'!AJ97="","",'BİLGİ GİRİŞİ'!AJ97) -> 4000 | AJ12: =IF('BİLGİ GİRİŞİ'!AN97="","",'BİLGİ GİRİŞİ'!AN97) -> 8000 | AN12: =IF('BİLGİ GİRİŞİ'!AR97="","",'BİLGİ GİRİŞİ'!AR97) -> 5000 | AR12: =IF('BİLGİ GİRİŞİ'!AV97="","",'BİLGİ GİRİŞİ'!AV97) -> 10000
A13: =IF('BİLGİ GİRİŞİ'!D31="","",'BİLGİ GİRİŞİ'!D31) -> 2 | B13: =IF('BİLGİ GİRİŞİ'!E31="","",'BİLGİ GİRİŞİ'!E31) -> Fotokopi Makinesi | P13: =IF('BİLGİ GİRİŞİ'!W31="","",'BİLGİ GİRİŞİ'!W31) -> Adet | T13: =IF('BİLGİ GİRİŞİ'!T31="","",'BİLGİ GİRİŞİ'!T31) -> 2 | X13: =IF('BİLGİ GİRİŞİ'!AB98="","",'BİLGİ GİRİŞİ'!AB98) -> 4000 | AB13: =IF('BİLGİ GİRİŞİ'!AF98="","",'BİLGİ GİRİŞİ'!AF98) -> 8000 | AF13: =IF('BİLGİ GİRİŞİ'!AJ98="","",'BİLGİ GİRİŞİ'!AJ98) -> 5000 | AJ13: =IF('BİLGİ GİRİŞİ'!AN98="","",'BİLGİ GİRİŞİ'!AN98) -> 10000 | AN13: =IF('BİLGİ GİRİŞİ'!AR98="","",'BİLGİ GİRİŞİ'!AR98) -> 6000 | AR13: =IF('BİLGİ GİRİŞİ'!AV98="","",'BİLGİ GİRİŞİ'!AV98) -> 12000
A14: =IF('BİLGİ GİRİŞİ'!D32="","",'BİLGİ GİRİŞİ'!D32) -> 3 | B14: =IF('BİLGİ GİRİŞİ'!E32="","",'BİLGİ GİRİŞİ'!E32) -> Projektör | P14: =IF('BİLGİ GİRİŞİ'!W32="","",'BİLGİ GİRİŞİ'!W32) -> Adet | T14: =IF('BİLGİ GİRİŞİ'!T32="","",'BİLGİ GİRİŞİ'!T32) -> 2 | X14: =IF('BİLGİ GİRİŞİ'!AB99="","",'BİLGİ GİRİŞİ'!AB99) -> 5000 | AB14: =IF('BİLGİ GİRİŞİ'!AF99="","",'BİLGİ GİRİŞİ'!AF99) -> 10000 | AF14: =IF('BİLGİ GİRİŞİ'!AJ99="","",'BİLGİ GİRİŞİ'!AJ99) -> 6000 | AJ14: =IF('BİLGİ GİRİŞİ'!AN99="","",'BİLGİ GİRİŞİ'!AN99) -> 12000 | AN14: =IF('BİLGİ GİRİŞİ'!AR99="","",'BİLGİ GİRİŞİ'!AR99) -> 7000 | AR14: =IF('BİLGİ GİRİŞİ'!AV99="","",'BİLGİ GİRİŞİ'!AV99) -> 14000
A15: =IF('BİLGİ GİRİŞİ'!D33="","",'BİLGİ GİRİŞİ'!D33) ->  | B15: =IF('BİLGİ GİRİŞİ'!E33="","",'BİLGİ GİRİŞİ'!E33) ->  | P15: =IF('BİLGİ GİRİŞİ'!W33="","",'BİLGİ GİRİŞİ'!W33) ->  | T15: =IF('BİLGİ GİRİŞİ'!T33="","",'BİLGİ GİRİŞİ'!T33) ->  | X15: =IF('BİLGİ GİRİŞİ'!AB100="","",'BİLGİ GİRİŞİ'!AB100) ->  | AB15: =IF('BİLGİ GİRİŞİ'!AF100="","",'BİLGİ GİRİŞİ'!AF100) ->  | AF15: =IF('BİLGİ GİRİŞİ'!AJ100="","",'BİLGİ GİRİŞİ'!AJ100) ->  | AJ15: =IF('BİLGİ GİRİŞİ'!AN100="","",'BİLGİ GİRİŞİ'!AN100) ->  | AN15: =IF('BİLGİ GİRİŞİ'!AR100="","",'BİLGİ GİRİŞİ'!AR100) ->  | AR15: =IF('BİLGİ GİRİŞİ'!AV100="","",'BİLGİ GİRİŞİ'!AV100) -> 
A16: =IF('BİLGİ GİRİŞİ'!D34="","",'BİLGİ GİRİŞİ'!D34) ->  | B16: =IF('BİLGİ GİRİŞİ'!E34="","",'BİLGİ GİRİŞİ'!E34) ->  | P16: =IF('BİLGİ GİRİŞİ'!W34="","",'BİLGİ GİRİŞİ'!W34) ->  | T16: =IF('BİLGİ GİRİŞİ'!T34="","",'BİLGİ GİRİŞİ'!T34) ->  | X16: =IF('BİLGİ GİRİŞİ'!AB101="","",'BİLGİ GİRİŞİ'!AB101) ->  | AB16: =IF('BİLGİ GİRİŞİ'!AF101="","",'BİLGİ GİRİŞİ'!AF101) ->  | AF16: =IF('BİLGİ GİRİŞİ'!AJ101="","",'BİLGİ GİRİŞİ'!AJ101) ->  | AJ16: =IF('BİLGİ GİRİŞİ'!AN101="","",'BİLGİ GİRİŞİ'!AN101) ->  | AN16: =IF('BİLGİ GİRİŞİ'!AR101="","",'BİLGİ GİRİŞİ'!AR101) ->  | AR16: =IF('BİLGİ GİRİŞİ'!AV101="","",'BİLGİ GİRİŞİ'!AV101) -> 
A17: =IF('BİLGİ GİRİŞİ'!D35="","",'BİLGİ GİRİŞİ'!D35) ->  | B17: =IF('BİLGİ GİRİŞİ'!E35="","",'BİLGİ GİRİŞİ'!E35) ->  | P17: =IF('BİLGİ GİRİŞİ'!W35="","",'BİLGİ GİRİŞİ'!W35) ->  | T17: =IF('BİLGİ GİRİŞİ'!T35="","",'BİLGİ GİRİŞİ'!T35) ->  | X17: =IF('BİLGİ GİRİŞİ'!AB102="","",'BİLGİ GİRİŞİ'!AB102) ->  | AB17: =IF('BİLGİ GİRİŞİ'!AF102="","",'BİLGİ GİRİŞİ'!AF102) ->  | AF17: =IF('BİLGİ GİRİŞİ'!AJ102="","",'BİLGİ GİRİŞİ'!AJ102) ->  | AJ17: =IF('BİLGİ GİRİŞİ'!AN102="","",'BİLGİ GİRİŞİ'!AN102) ->  | AN17: =IF('BİLGİ GİRİŞİ'!AR102="","",'BİLGİ GİRİŞİ'!AR102) ->  | AR17: =IF('BİLGİ GİRİŞİ'!AV102="","",'BİLGİ GİRİŞİ'!AV102) -> 
A18: =IF('BİLGİ GİRİŞİ'!D36="","",'BİLGİ GİRİŞİ'!D36) ->  | B18: =IF('BİLGİ GİRİŞİ'!E36="","",'BİLGİ GİRİŞİ'!E36) ->  | P18: =IF('BİLGİ GİRİŞİ'!W36="","",'BİLGİ GİRİŞİ'!W36) ->  | T18: =IF('BİLGİ GİRİŞİ'!T36="","",'BİLGİ GİRİŞİ'!T36) ->  | X18: =IF('BİLGİ GİRİŞİ'!AB103="","",'BİLGİ GİRİŞİ'!AB103) ->  | AB18: =IF('BİLGİ GİRİŞİ'!AF103="","",'BİLGİ GİRİŞİ'!AF103) ->  | AF18: =IF('BİLGİ GİRİŞİ'!AJ103="","",'BİLGİ GİRİŞİ'!AJ103) ->  | AJ18: =IF('BİLGİ GİRİŞİ'!AN103="","",'BİLGİ GİRİŞİ'!AN103) ->  | AN18: =IF('BİLGİ GİRİŞİ'!AR103="","",'BİLGİ GİRİŞİ'!AR103) ->  | AR18: =IF('BİLGİ GİRİŞİ'!AV103="","",'BİLGİ GİRİŞİ'!AV103) -> 
A19: =IF('BİLGİ GİRİŞİ'!D37="","",'BİLGİ GİRİŞİ'!D37) ->  | B19: =IF('BİLGİ GİRİŞİ'!E37="","",'BİLGİ GİRİŞİ'!E37) ->  | P19: =IF('BİLGİ GİRİŞİ'!W37="","",'BİLGİ GİRİŞİ'!W37) ->  | T19: =IF('BİLGİ GİRİŞİ'!T37="","",'BİLGİ GİRİŞİ'!T37) ->  | X19: =IF('BİLGİ GİRİŞİ'!AB104="","",'BİLGİ GİRİŞİ'!AB104) ->  | AB19: =IF('BİLGİ GİRİŞİ'!AF104="","",'BİLGİ GİRİŞİ'!AF104) ->  | AF19: =IF('BİLGİ GİRİŞİ'!AJ104="","",'BİLGİ GİRİŞİ'!AJ104) ->  | AJ19: =IF('BİLGİ GİRİŞİ'!AN104="","",'BİLGİ GİRİŞİ'!AN104) ->  | AN19: =IF('BİLGİ GİRİŞİ'!AR104="","",'BİLGİ GİRİŞİ'!AR104) ->  | AR19: =IF('BİLGİ GİRİŞİ'!AV104="","",'BİLGİ GİRİŞİ'!AV104) -> 
A20: =IF('BİLGİ GİRİŞİ'!D38="","",'BİLGİ GİRİŞİ'!D38) ->  | B20: =IF('BİLGİ GİRİŞİ'!E38="","",'BİLGİ GİRİŞİ'!E38) ->  | P20: =IF('BİLGİ GİRİŞİ'!W38="","",'BİLGİ GİRİŞİ'!W38) ->  | T20: =IF('BİLGİ GİRİŞİ'!T38="","",'BİLGİ GİRİŞİ'!T38) ->  | X20: =IF('BİLGİ GİRİŞİ'!AB105="","",'BİLGİ GİRİŞİ'!AB105) ->  | AB20: =IF('BİLGİ GİRİŞİ'!AF105="","",'BİLGİ GİRİŞİ'!AF105) ->  | AF20: =IF('BİLGİ GİRİŞİ'!AJ105="","",'BİLGİ GİRİŞİ'!AJ105) ->  | AJ20: =IF('BİLGİ GİRİŞİ'!AN105="","",'BİLGİ GİRİŞİ'!AN105) ->  | AN20: =IF('BİLGİ GİRİŞİ'!AR105="","",'BİLGİ GİRİŞİ'!AR105) ->  | AR20: =IF('BİLGİ GİRİŞİ'!AV105="","",'BİLGİ GİRİŞİ'!AV105) -> 
A21: =IF('BİLGİ GİRİŞİ'!D39="","",'BİLGİ GİRİŞİ'!D39) ->  | B21: =IF('BİLGİ GİRİŞİ'!E39="","",'BİLGİ GİRİŞİ'!E39) ->  | P21: =IF('BİLGİ GİRİŞİ'!W39="","",'BİLGİ GİRİŞİ'!W39) ->  | T21: =IF('BİLGİ GİRİŞİ'!T39="","",'BİLGİ GİRİŞİ'!T39) ->  | X21: =IF('BİLGİ GİRİŞİ'!AB106="","",'BİLGİ GİRİŞİ'!AB106) ->  | AB21: =IF('BİLGİ GİRİŞİ'!AF106="","",'BİLGİ GİRİŞİ'!AF106) ->  | AF21: =IF('BİLGİ GİRİŞİ'!AJ106="","",'BİLGİ GİRİŞİ'!AJ106) ->  | AJ21: =IF('BİLGİ GİRİŞİ'!AN106="","",'BİLGİ GİRİŞİ'!AN106) ->  | AN21: =IF('BİLGİ GİRİŞİ'!AR106="","",'BİLGİ GİRİŞİ'!AR106) ->  | AR21: =IF('BİLGİ GİRİŞİ'!AV106="","",'BİLGİ GİRİŞİ'!AV106) -> 
A22: =IF('BİLGİ GİRİŞİ'!D40="","",'BİLGİ GİRİŞİ'!D40) ->  | B22: =IF('BİLGİ GİRİŞİ'!E40="","",'BİLGİ GİRİŞİ'!E40) ->  | P22: =IF('BİLGİ GİRİŞİ'!W40="","",'BİLGİ GİRİŞİ'!W40) ->  | T22: =IF('BİLGİ GİRİŞİ'!T40="","",'BİLGİ GİRİŞİ'!T40) ->  | X22: =IF('BİLGİ GİRİŞİ'!AB107="","",'BİLGİ GİRİŞİ'!AB107) ->  | AB22: =IF('BİLGİ GİRİŞİ'!AF107="","",'BİLGİ GİRİŞİ'!AF107) ->  | AF22: =IF('BİLGİ GİRİŞİ'!AJ107="","",'BİLGİ GİRİŞİ'!AJ107) ->  | AJ22: =IF('BİLGİ GİRİŞİ'!AN107="","",'BİLGİ GİRİŞİ'!AN107) ->  | AN22: =IF('BİLGİ GİRİŞİ'!AR107="","",'BİLGİ GİRİŞİ'!AR107) ->  | AR22: =IF('BİLGİ GİRİŞİ'!AV107="","",'BİLGİ GİRİŞİ'!AV107) -> 
A23: =IF('BİLGİ GİRİŞİ'!D41="","",'BİLGİ GİRİŞİ'!D41) ->  | B23: =IF('BİLGİ GİRİŞİ'!E41="","",'BİLGİ GİRİŞİ'!E41) ->  | P23: =IF('BİLGİ GİRİŞİ'!W41="","",'BİLGİ GİRİŞİ'!W41) ->  | T23: =IF('BİLGİ GİRİŞİ'!T41="","",'BİLGİ GİRİŞİ'!T41) ->  | X23: =IF('BİLGİ GİRİŞİ'!AB108="","",'BİLGİ GİRİŞİ'!AB108) ->  | AB23: =IF('BİLGİ GİRİŞİ'!AF108="","",'BİLGİ GİRİŞİ'!AF108) ->  | AF23: =IF('BİLGİ GİRİŞİ'!AJ108="","",'BİLGİ GİRİŞİ'!AJ108) ->  | AJ23: =IF('BİLGİ GİRİŞİ'!AN108="","",'BİLGİ GİRİŞİ'!AN108) ->  | AN23: =IF('BİLGİ GİRİŞİ'!AR108="","",'BİLGİ GİRİŞİ'!AR108) ->  | AR23: =IF('BİLGİ GİRİŞİ'!AV108="","",'BİLGİ GİRİŞİ'!AV108) -> 
A24: =IF('BİLGİ GİRİŞİ'!D42="","",'BİLGİ GİRİŞİ'!D42) ->  | B24: =IF('BİLGİ GİRİŞİ'!E42="","",'BİLGİ GİRİŞİ'!E42) ->  | P24: =IF('BİLGİ GİRİŞİ'!W42="","",'BİLGİ GİRİŞİ'!W42) ->  | T24: =IF('BİLGİ GİRİŞİ'!T42="","",'BİLGİ GİRİŞİ'!T42) ->  | X24: =IF('BİLGİ GİRİŞİ'!AB109="","",'BİLGİ GİRİŞİ'!AB109) ->  | AB24: =IF('BİLGİ GİRİŞİ'!AF109="","",'BİLGİ GİRİŞİ'!AF109) ->  | AF24: =IF('BİLGİ GİRİŞİ'!AJ109="","",'BİLGİ GİRİŞİ'!AJ109) ->  | AJ24: =IF('BİLGİ GİRİŞİ'!AN109="","",'BİLGİ GİRİŞİ'!AN109) ->  | AN24: =IF('BİLGİ GİRİŞİ'!AR109="","",'BİLGİ GİRİŞİ'!AR109) ->  | AR24: =IF('BİLGİ GİRİŞİ'!AV109="","",'BİLGİ GİRİŞİ'!AV109) -> 
A25: =IF('BİLGİ GİRİŞİ'!D43="","",'BİLGİ GİRİŞİ'!D43) ->  | B25: =IF('BİLGİ GİRİŞİ'!E43="","",'BİLGİ GİRİŞİ'!E43) ->  | P25: =IF('BİLGİ GİRİŞİ'!W43="","",'BİLGİ GİRİŞİ'!W43) ->  | T25: =IF('BİLGİ GİRİŞİ'!T43="","",'BİLGİ GİRİŞİ'!T43) ->  | X25: =IF('BİLGİ GİRİŞİ'!AB110="","",'BİLGİ GİRİŞİ'!AB110) ->  | AB25: =IF('BİLGİ GİRİŞİ'!AF110="","",'BİLGİ GİRİŞİ'!AF110) ->  | AF25: =IF('BİLGİ GİRİŞİ'!AJ110="","",'BİLGİ GİRİŞİ'!AJ110) ->  | AJ25: =IF('BİLGİ GİRİŞİ'!AN110="","",'BİLGİ GİRİŞİ'!AN110) ->  | AN25: =IF('BİLGİ GİRİŞİ'!AR110="","",'BİLGİ GİRİŞİ'!AR110) ->  | AR25: =IF('BİLGİ GİRİŞİ'!AV110="","",'BİLGİ GİRİŞİ'!AV110) -> 
A26: =IF('BİLGİ GİRİŞİ'!D44="","",'BİLGİ GİRİŞİ'!D44) ->  | B26: =IF('BİLGİ GİRİŞİ'!E44="","",'BİLGİ GİRİŞİ'!E44) ->  | P26: =IF('BİLGİ GİRİŞİ'!W44="","",'BİLGİ GİRİŞİ'!W44) ->  | T26: =IF('BİLGİ GİRİŞİ'!T44="","",'BİLGİ GİRİŞİ'!T44) ->  | X26: =IF('BİLGİ GİRİŞİ'!AB111="","",'BİLGİ GİRİŞİ'!AB111) ->  | AB26: =IF('BİLGİ GİRİŞİ'!AF111="","",'BİLGİ GİRİŞİ'!AF111) ->  | AF26: =IF('BİLGİ GİRİŞİ'!AJ111="","",'BİLGİ GİRİŞİ'!AJ111) ->  | AJ26: =IF('BİLGİ GİRİŞİ'!AN111="","",'BİLGİ GİRİŞİ'!AN111) ->  | AN26: =IF('BİLGİ GİRİŞİ'!AR111="","",'BİLGİ GİRİŞİ'!AR111) ->  | AR26: =IF('BİLGİ GİRİŞİ'!AV111="","",'BİLGİ GİRİŞİ'!AV111) -> 
A27: =IF('BİLGİ GİRİŞİ'!D45="","",'BİLGİ GİRİŞİ'!D45) ->  | B27: =IF('BİLGİ GİRİŞİ'!E45="","",'BİLGİ GİRİŞİ'!E45) ->  | P27: =IF('BİLGİ GİRİŞİ'!W45="","",'BİLGİ GİRİŞİ'!W45) ->  | T27: =IF('BİLGİ GİRİŞİ'!T45="","",'BİLGİ GİRİŞİ'!T45) ->  | X27: =IF('BİLGİ GİRİŞİ'!AB112="","",'BİLGİ GİRİŞİ'!AB112) ->  | AB27: =IF('BİLGİ GİRİŞİ'!AF112="","",'BİLGİ GİRİŞİ'!AF112) ->  | AF27: =IF('BİLGİ GİRİŞİ'!AJ112="","",'BİLGİ GİRİŞİ'!AJ112) ->  | AJ27: =IF('BİLGİ GİRİŞİ'!AN112="","",'BİLGİ GİRİŞİ'!AN112) ->  | AN27: =IF('BİLGİ GİRİŞİ'!AR112="","",'BİLGİ GİRİŞİ'!AR112) ->  | AR27: =IF('BİLGİ GİRİŞİ'!AV112="","",'BİLGİ GİRİŞİ'!AV112) -> 
A28: =IF('BİLGİ GİRİŞİ'!D46="","",'BİLGİ GİRİŞİ'!D46) ->  | B28: =IF('BİLGİ GİRİŞİ'!E46="","",'BİLGİ GİRİŞİ'!E46) ->  | P28: =IF('BİLGİ GİRİŞİ'!W46="","",'BİLGİ GİRİŞİ'!W46) ->  | T28: =IF('BİLGİ GİRİŞİ'!T46="","",'BİLGİ GİRİŞİ'!T46) ->  | X28: =IF('BİLGİ GİRİŞİ'!AB113="","",'BİLGİ GİRİŞİ'!AB113) ->  | AB28: =IF('BİLGİ GİRİŞİ'!AF113="","",'BİLGİ GİRİŞİ'!AF113) ->  | AF28: =IF('BİLGİ GİRİŞİ'!AJ113="","",'BİLGİ GİRİŞİ'!AJ113) ->  | AJ28: =IF('BİLGİ GİRİŞİ'!AN113="","",'BİLGİ GİRİŞİ'!AN113) ->  | AN28: =IF('BİLGİ GİRİŞİ'!AR113="","",'BİLGİ GİRİŞİ'!AR113) ->  | AR28: =IF('BİLGİ GİRİŞİ'!AV113="","",'BİLGİ GİRİŞİ'!AV113) -> 
A29: =IF('BİLGİ GİRİŞİ'!D47="","",'BİLGİ GİRİŞİ'!D47) ->  | B29: =IF('BİLGİ GİRİŞİ'!E47="","",'BİLGİ GİRİŞİ'!E47) ->  | P29: =IF('BİLGİ GİRİŞİ'!W47="","",'BİLGİ GİRİŞİ'!W47) ->  | T29: =IF('BİLGİ GİRİŞİ'!T47="","",'BİLGİ GİRİŞİ'!T47) ->  | X29: =IF('BİLGİ GİRİŞİ'!AB114="","",'BİLGİ GİRİŞİ'!AB114) ->  | AB29: =IF('BİLGİ GİRİŞİ'!AF114="","",'BİLGİ GİRİŞİ'!AF114) ->  | AF29: =IF('BİLGİ GİRİŞİ'!AJ114="","",'BİLGİ GİRİŞİ'!AJ114) ->  | AJ29: =IF('BİLGİ GİRİŞİ'!AN114="","",'BİLGİ GİRİŞİ'!AN114) ->  | AN29: =IF('BİLGİ GİRİŞİ'!AR114="","",'BİLGİ GİRİŞİ'!AR114) ->  | AR29: =IF('BİLGİ GİRİŞİ'!AV114="","",'BİLGİ GİRİŞİ'!AV114) -> 
A30: =IF('BİLGİ GİRİŞİ'!D48="","",'BİLGİ GİRİŞİ'!D48) ->  | B30: =IF('BİLGİ GİRİŞİ'!E48="","",'BİLGİ GİRİŞİ'!E48) ->  | P30: =IF('BİLGİ GİRİŞİ'!W48="","",'BİLGİ GİRİŞİ'!W48) ->  | T30: =IF('BİLGİ GİRİŞİ'!T48="","",'BİLGİ GİRİŞİ'!T48) ->  | X30: =IF('BİLGİ GİRİŞİ'!AB115="","",'BİLGİ GİRİŞİ'!AB115) ->  | AB30: =IF('BİLGİ GİRİŞİ'!AF115="","",'BİLGİ GİRİŞİ'!AF115) ->  | AF30: =IF('BİLGİ GİRİŞİ'!AJ115="","",'BİLGİ GİRİŞİ'!AJ115) ->  | AJ30: =IF('BİLGİ GİRİŞİ'!AN115="","",'BİLGİ GİRİŞİ'!AN115) ->  | AN30: =IF('BİLGİ GİRİŞİ'!AR115="","",'BİLGİ GİRİŞİ'!AR115) ->  | AR30: =IF('BİLGİ GİRİŞİ'!AV115="","",'BİLGİ GİRİŞİ'!AV115) -> 
A31: =IF('BİLGİ GİRİŞİ'!D49="","",'BİLGİ GİRİŞİ'!D49) ->  | B31: =IF('BİLGİ GİRİŞİ'!E49="","",'BİLGİ GİRİŞİ'!E49) ->  | P31: =IF('BİLGİ GİRİŞİ'!W49="","",'BİLGİ GİRİŞİ'!W49) ->  | T31: =IF('BİLGİ GİRİŞİ'!T49="","",'BİLGİ GİRİŞİ'!T49) ->  | X31: =IF('BİLGİ GİRİŞİ'!AB116="","",'BİLGİ GİRİŞİ'!AB116) ->  | AB31: =IF('BİLGİ GİRİŞİ'!AF116="","",'BİLGİ GİRİŞİ'!AF116) ->  | AF31: =IF('BİLGİ GİRİŞİ'!AJ116="","",'BİLGİ GİRİŞİ'!AJ116) ->  | AJ31: =IF('BİLGİ GİRİŞİ'!AN116="","",'BİLGİ GİRİŞİ'!AN116) ->  | AN31: =IF('BİLGİ GİRİŞİ'!AR116="","",'BİLGİ GİRİŞİ'!AR116) ->  | AR31: =IF('BİLGİ GİRİŞİ'!AV116="","",'BİLGİ GİRİŞİ'!AV116) -> 
A32: =IF('BİLGİ GİRİŞİ'!D50="","",'BİLGİ GİRİŞİ'!D50) ->  | B32: =IF('BİLGİ GİRİŞİ'!E50="","",'BİLGİ GİRİŞİ'!E50) ->  | P32: =IF('BİLGİ GİRİŞİ'!W50="","",'BİLGİ GİRİŞİ'!W50) ->  | T32: =IF('BİLGİ GİRİŞİ'!T50="","",'BİLGİ GİRİŞİ'!T50) ->  | X32: =IF('BİLGİ GİRİŞİ'!AB117="","",'BİLGİ GİRİŞİ'!AB117) ->  | AB32: =IF('BİLGİ GİRİŞİ'!AF117="","",'BİLGİ GİRİŞİ'!AF117) ->  | AF32: =IF('BİLGİ GİRİŞİ'!AJ117="","",'BİLGİ GİRİŞİ'!AJ117) ->  | AJ32: =IF('BİLGİ GİRİŞİ'!AN117="","",'BİLGİ GİRİŞİ'!AN117) ->  | AN32: =IF('BİLGİ GİRİŞİ'!AR117="","",'BİLGİ GİRİŞİ'!AR117) ->  | AR32: =IF('BİLGİ GİRİŞİ'!AV117="","",'BİLGİ GİRİŞİ'!AV117) -> 
A33: =IF('BİLGİ GİRİŞİ'!D51="","",'BİLGİ GİRİŞİ'!D51) ->  | B33: =IF('BİLGİ GİRİŞİ'!E51="","",'BİLGİ GİRİŞİ'!E51) ->  | P33: =IF('BİLGİ GİRİŞİ'!W51="","",'BİLGİ GİRİŞİ'!W51) ->  | T33: =IF('BİLGİ GİRİŞİ'!T51="","",'BİLGİ GİRİŞİ'!T51) ->  | X33: =IF('BİLGİ GİRİŞİ'!AB118="","",'BİLGİ GİRİŞİ'!AB118) ->  | AB33: =IF('BİLGİ GİRİŞİ'!AF118="","",'BİLGİ GİRİŞİ'!AF118) ->  | AF33: =IF('BİLGİ GİRİŞİ'!AJ118="","",'BİLGİ GİRİŞİ'!AJ118) ->  | AJ33: =IF('BİLGİ GİRİŞİ'!AN118="","",'BİLGİ GİRİŞİ'!AN118) ->  | AN33: =IF('BİLGİ GİRİŞİ'!AR118="","",'BİLGİ GİRİŞİ'!AR118) ->  | AR33: =IF('BİLGİ GİRİŞİ'!AV118="","",'BİLGİ GİRİŞİ'!AV118) -> 
A34: =IF('BİLGİ GİRİŞİ'!D52="","",'BİLGİ GİRİŞİ'!D52) ->  | B34: =IF('BİLGİ GİRİŞİ'!E52="","",'BİLGİ GİRİŞİ'!E52) ->  | P34: =IF('BİLGİ GİRİŞİ'!W52="","",'BİLGİ GİRİŞİ'!W52) ->  | T34: =IF('BİLGİ GİRİŞİ'!T52="","",'BİLGİ GİRİŞİ'!T52) ->  | X34: =IF('BİLGİ GİRİŞİ'!AB119="","",'BİLGİ GİRİŞİ'!AB119) ->  | AB34: =IF('BİLGİ GİRİŞİ'!AF119="","",'BİLGİ GİRİŞİ'!AF119) ->  | AF34: =IF('BİLGİ GİRİŞİ'!AJ119="","",'BİLGİ GİRİŞİ'!AJ119) ->  | AJ34: =IF('BİLGİ GİRİŞİ'!AN119="","",'BİLGİ GİRİŞİ'!AN119) ->  | AN34: =IF('BİLGİ GİRİŞİ'!AR119="","",'BİLGİ GİRİŞİ'!AR119) ->  | AR34: =IF('BİLGİ GİRİŞİ'!AV119="","",'BİLGİ GİRİŞİ'!AV119) -> 
A35: =IF('BİLGİ GİRİŞİ'!D53="","",'BİLGİ GİRİŞİ'!D53) ->  | B35: =IF('BİLGİ GİRİŞİ'!E53="","",'BİLGİ GİRİŞİ'!E53) ->  | P35: =IF('BİLGİ GİRİŞİ'!W53="","",'BİLGİ GİRİŞİ'!W53) ->  | T35: =IF('BİLGİ GİRİŞİ'!T53="","",'BİLGİ GİRİŞİ'!T53) ->  | X35: =IF('BİLGİ GİRİŞİ'!AB120="","",'BİLGİ GİRİŞİ'!AB120) ->  | AB35: =IF('BİLGİ GİRİŞİ'!AF120="","",'BİLGİ GİRİŞİ'!AF120) ->  | AF35: =IF('BİLGİ GİRİŞİ'!AJ120="","",'BİLGİ GİRİŞİ'!AJ120) ->  | AJ35: =IF('BİLGİ GİRİŞİ'!AN120="","",'BİLGİ GİRİŞİ'!AN120) ->  | AN35: =IF('BİLGİ GİRİŞİ'!AR120="","",'BİLGİ GİRİŞİ'!AR120) ->  | AR35: =IF('BİLGİ GİRİŞİ'!AV120="","",'BİLGİ GİRİŞİ'!AV120) -> 
A36: =IF('BİLGİ GİRİŞİ'!D54="","",'BİLGİ GİRİŞİ'!D54) ->  | B36: =IF('BİLGİ GİRİŞİ'!E54="","",'BİLGİ GİRİŞİ'!E54) ->  | P36: =IF('BİLGİ GİRİŞİ'!W54="","",'BİLGİ GİRİŞİ'!W54) ->  | T36: =IF('BİLGİ GİRİŞİ'!T54="","",'BİLGİ GİRİŞİ'!T54) ->  | X36: =IF('BİLGİ GİRİŞİ'!AB121="","",'BİLGİ GİRİŞİ'!AB121) ->  | AB36: =IF('BİLGİ GİRİŞİ'!AF121="","",'BİLGİ GİRİŞİ'!AF121) ->  | AF36: =IF('BİLGİ GİRİŞİ'!AJ121="","",'BİLGİ GİRİŞİ'!AJ121) ->  | AJ36: =IF('BİLGİ GİRİŞİ'!AN121="","",'BİLGİ GİRİŞİ'!AN121) ->  | AN36: =IF('BİLGİ GİRİŞİ'!AR121="","",'BİLGİ GİRİŞİ'!AR121) ->  | AR36: =IF('BİLGİ GİRİŞİ'!AV121="","",'BİLGİ GİRİŞİ'!AV121) -> 
A37: =IF('BİLGİ GİRİŞİ'!D55="","",'BİLGİ GİRİŞİ'!D55) ->  | B37: =IF('BİLGİ GİRİŞİ'!E55="","",'BİLGİ GİRİŞİ'!E55) ->  | P37: =IF('BİLGİ GİRİŞİ'!W55="","",'BİLGİ GİRİŞİ'!W55) ->  | T37: =IF('BİLGİ GİRİŞİ'!T55="","",'BİLGİ GİRİŞİ'!T55) ->  | X37: =IF('BİLGİ GİRİŞİ'!AB122="","",'BİLGİ GİRİŞİ'!AB122) ->  | AB37: =IF('BİLGİ GİRİŞİ'!AF122="","",'BİLGİ GİRİŞİ'!AF122) ->  | AF37: =IF('BİLGİ GİRİŞİ'!AJ122="","",'BİLGİ GİRİŞİ'!AJ122) ->  | AJ37: =IF('BİLGİ GİRİŞİ'!AN122="","",'BİLGİ GİRİŞİ'!AN122) ->  | AN37: =IF('BİLGİ GİRİŞİ'!AR122="","",'BİLGİ GİRİŞİ'!AR122) ->  | AR37: =IF('BİLGİ GİRİŞİ'!AV122="","",'BİLGİ GİRİŞİ'!AV122) -> 
A38: =IF('BİLGİ GİRİŞİ'!D56="","",'BİLGİ GİRİŞİ'!D56) ->  | B38: =IF('BİLGİ GİRİŞİ'!E56="","",'BİLGİ GİRİŞİ'!E56) ->  | P38: =IF('BİLGİ GİRİŞİ'!W56="","",'BİLGİ GİRİŞİ'!W56) ->  | T38: =IF('BİLGİ GİRİŞİ'!T56="","",'BİLGİ GİRİŞİ'!T56) ->  | X38: =IF('BİLGİ GİRİŞİ'!AB123="","",'BİLGİ GİRİŞİ'!AB123) ->  | AB38: =IF('BİLGİ GİRİŞİ'!AF123="","",'BİLGİ GİRİŞİ'!AF123) ->  | AF38: =IF('BİLGİ GİRİŞİ'!AJ123="","",'BİLGİ GİRİŞİ'!AJ123) ->  | AJ38: =IF('BİLGİ GİRİŞİ'!AN123="","",'BİLGİ GİRİŞİ'!AN123) ->  | AN38: =IF('BİLGİ GİRİŞİ'!AR123="","",'BİLGİ GİRİŞİ'!AR123) ->  | AR38: =IF('BİLGİ GİRİŞİ'!AV123="","",'BİLGİ GİRİŞİ'!AV123) -> 
A39: =IF('BİLGİ GİRİŞİ'!D57="","",'BİLGİ GİRİŞİ'!D57) ->  | B39: =IF('BİLGİ GİRİŞİ'!E57="","",'BİLGİ GİRİŞİ'!E57) ->  | P39: =IF('BİLGİ GİRİŞİ'!W57="","",'BİLGİ GİRİŞİ'!W57) ->  | T39: =IF('BİLGİ GİRİŞİ'!T57="","",'BİLGİ GİRİŞİ'!T57) ->  | X39: =IF('BİLGİ GİRİŞİ'!AB124="","",'BİLGİ GİRİŞİ'!AB124) ->  | AB39: =IF('BİLGİ GİRİŞİ'!AF124="","",'BİLGİ GİRİŞİ'!AF124) ->  | AF39: =IF('BİLGİ GİRİŞİ'!AJ124="","",'BİLGİ GİRİŞİ'!AJ124) ->  | AJ39: =IF('BİLGİ GİRİŞİ'!AN124="","",'BİLGİ GİRİŞİ'!AN124) ->  | AN39: =IF('BİLGİ GİRİŞİ'!AR124="","",'BİLGİ GİRİŞİ'!AR124) ->  | AR39: =IF('BİLGİ GİRİŞİ'!AV124="","",'BİLGİ GİRİŞİ'!AV124) -> 
A40: =IF('BİLGİ GİRİŞİ'!D58="","",'BİLGİ GİRİŞİ'!D58) ->  | B40: =IF('BİLGİ GİRİŞİ'!E58="","",'BİLGİ GİRİŞİ'!E58) ->  | P40: =IF('BİLGİ GİRİŞİ'!W58="","",'BİLGİ GİRİŞİ'!W58) ->  | T40: =IF('BİLGİ GİRİŞİ'!T58="","",'BİLGİ GİRİŞİ'!T58) ->  | X40: =IF('BİLGİ GİRİŞİ'!AB125="","",'BİLGİ GİRİŞİ'!AB125) ->  | AB40: =IF('BİLGİ GİRİŞİ'!AF125="","",'BİLGİ GİRİŞİ'!AF125) ->  | AF40: =IF('BİLGİ GİRİŞİ'!AJ125="","",'BİLGİ GİRİŞİ'!AJ125) ->  | AJ40: =IF('BİLGİ GİRİŞİ'!AN125="","",'BİLGİ GİRİŞİ'!AN125) ->  | AN40: =IF('BİLGİ GİRİŞİ'!AR125="","",'BİLGİ GİRİŞİ'!AR125) ->  | AR40: =IF('BİLGİ GİRİŞİ'!AV125="","",'BİLGİ GİRİŞİ'!AV125) -> 
A41: =IF('BİLGİ GİRİŞİ'!D59="","",'BİLGİ GİRİŞİ'!D59) ->  | B41: =IF('BİLGİ GİRİŞİ'!E59="","",'BİLGİ GİRİŞİ'!E59) ->  | P41: =IF('BİLGİ GİRİŞİ'!W59="","",'BİLGİ GİRİŞİ'!W59) ->  | T41: =IF('BİLGİ GİRİŞİ'!T59="","",'BİLGİ GİRİŞİ'!T59) ->  | X41: =IF('BİLGİ GİRİŞİ'!AB126="","",'BİLGİ GİRİŞİ'!AB126) ->  | AB41: =IF('BİLGİ GİRİŞİ'!AF126="","",'BİLGİ GİRİŞİ'!AF126) ->  | AF41: =IF('BİLGİ GİRİŞİ'!AJ126="","",'BİLGİ GİRİŞİ'!AJ126) ->  | AJ41: =IF('BİLGİ GİRİŞİ'!AN126="","",'BİLGİ GİRİŞİ'!AN126) ->  | AN41: =IF('BİLGİ GİRİŞİ'!AR126="","",'BİLGİ GİRİŞİ'!AR126) ->  | AR41: =IF('BİLGİ GİRİŞİ'!AV126="","",'BİLGİ GİRİŞİ'!AV126) -> 
A42: =IF('BİLGİ GİRİŞİ'!D60="","",'BİLGİ GİRİŞİ'!D60) ->  | B42: =IF('BİLGİ GİRİŞİ'!E60="","",'BİLGİ GİRİŞİ'!E60) ->  | P42: =IF('BİLGİ GİRİŞİ'!W60="","",'BİLGİ GİRİŞİ'!W60) ->  | T42: =IF('BİLGİ GİRİŞİ'!T60="","",'BİLGİ GİRİŞİ'!T60) ->  | X42: =IF('BİLGİ GİRİŞİ'!AB127="","",'BİLGİ GİRİŞİ'!AB127) ->  | AB42: =IF('BİLGİ GİRİŞİ'!AF127="","",'BİLGİ GİRİŞİ'!AF127) ->  | AF42: =IF('BİLGİ GİRİŞİ'!AJ127="","",'BİLGİ GİRİŞİ'!AJ127) ->  | AJ42: =IF('BİLGİ GİRİŞİ'!AN127="","",'BİLGİ GİRİŞİ'!AN127) ->  | AN42: =IF('BİLGİ GİRİŞİ'!AR127="","",'BİLGİ GİRİŞİ'!AR127) ->  | AR42: =IF('BİLGİ GİRİŞİ'!AV127="","",'BİLGİ GİRİŞİ'!AV127) -> 
A43: =IF('BİLGİ GİRİŞİ'!D61="","",'BİLGİ GİRİŞİ'!D61) ->  | B43: =IF('BİLGİ GİRİŞİ'!E61="","",'BİLGİ GİRİŞİ'!E61) ->  | P43: =IF('BİLGİ GİRİŞİ'!W61="","",'BİLGİ GİRİŞİ'!W61) ->  | T43: =IF('BİLGİ GİRİŞİ'!T61="","",'BİLGİ GİRİŞİ'!T61) ->  | X43: =IF('BİLGİ GİRİŞİ'!AB128="","",'BİLGİ GİRİŞİ'!AB128) ->  | AB43: =IF('BİLGİ GİRİŞİ'!AF128="","",'BİLGİ GİRİŞİ'!AF128) ->  | AF43: =IF('BİLGİ GİRİŞİ'!AJ128="","",'BİLGİ GİRİŞİ'!AJ128) ->  | AJ43: =IF('BİLGİ GİRİŞİ'!AN128="","",'BİLGİ GİRİŞİ'!AN128) ->  | AN43: =IF('BİLGİ GİRİŞİ'!AR128="","",'BİLGİ GİRİŞİ'!AR128) ->  | AR43: =IF('BİLGİ GİRİŞİ'!AV128="","",'BİLGİ GİRİŞİ'!AV128) -> 
A44: =IF('BİLGİ GİRİŞİ'!D62="","",'BİLGİ GİRİŞİ'!D62) ->  | B44: =IF('BİLGİ GİRİŞİ'!E62="","",'BİLGİ GİRİŞİ'!E62) ->  | P44: =IF('BİLGİ GİRİŞİ'!W62="","",'BİLGİ GİRİŞİ'!W62) ->  | T44: =IF('BİLGİ GİRİŞİ'!T62="","",'BİLGİ GİRİŞİ'!T62) ->  | X44: =IF('BİLGİ GİRİŞİ'!AB129="","",'BİLGİ GİRİŞİ'!AB129) ->  | AB44: =IF('BİLGİ GİRİŞİ'!AF129="","",'BİLGİ GİRİŞİ'!AF129) ->  | AF44: =IF('BİLGİ GİRİŞİ'!AJ129="","",'BİLGİ GİRİŞİ'!AJ129) ->  | AJ44: =IF('BİLGİ GİRİŞİ'!AN129="","",'BİLGİ GİRİŞİ'!AN129) ->  | AN44: =IF('BİLGİ GİRİŞİ'!AR129="","",'BİLGİ GİRİŞİ'!AR129) ->  | AR44: =IF('BİLGİ GİRİŞİ'!AV129="","",'BİLGİ GİRİŞİ'!AV129) -> 
A45: =IF('BİLGİ GİRİŞİ'!D63="","",'BİLGİ GİRİŞİ'!D63) ->  | B45: =IF('BİLGİ GİRİŞİ'!E63="","",'BİLGİ GİRİŞİ'!E63) ->  | P45: =IF('BİLGİ GİRİŞİ'!W63="","",'BİLGİ GİRİŞİ'!W63) ->  | T45: =IF('BİLGİ GİRİŞİ'!T63="","",'BİLGİ GİRİŞİ'!T63) ->  | X45: =IF('BİLGİ GİRİŞİ'!AB130="","",'BİLGİ GİRİŞİ'!AB130) ->  | AB45: =IF('BİLGİ GİRİŞİ'!AF130="","",'BİLGİ GİRİŞİ'!AF130) ->  | AF45: =IF('BİLGİ GİRİŞİ'!AJ130="","",'BİLGİ GİRİŞİ'!AJ130) ->  | AJ45: =IF('BİLGİ GİRİŞİ'!AN130="","",'BİLGİ GİRİŞİ'!AN130) ->  | AN45: =IF('BİLGİ GİRİŞİ'!AR130="","",'BİLGİ GİRİŞİ'!AR130) ->  | AR45: =IF('BİLGİ GİRİŞİ'!AV130="","",'BİLGİ GİRİŞİ'!AV130) -> 
A46: =IF('BİLGİ GİRİŞİ'!D64="","",'BİLGİ GİRİŞİ'!D64) ->  | B46: =IF('BİLGİ GİRİŞİ'!E64="","",'BİLGİ GİRİŞİ'!E64) ->  | P46: =IF('BİLGİ GİRİŞİ'!W64="","",'BİLGİ GİRİŞİ'!W64) ->  | T46: =IF('BİLGİ GİRİŞİ'!T64="","",'BİLGİ GİRİŞİ'!T64) ->  | X46: =IF('BİLGİ GİRİŞİ'!AB131="","",'BİLGİ GİRİŞİ'!AB131) ->  | AB46: =IF('BİLGİ GİRİŞİ'!AF131="","",'BİLGİ GİRİŞİ'!AF131) ->  | AF46: =IF('BİLGİ GİRİŞİ'!AJ131="","",'BİLGİ GİRİŞİ'!AJ131) ->  | AJ46: =IF('BİLGİ GİRİŞİ'!AN131="","",'BİLGİ GİRİŞİ'!AN131) ->  | AN46: =IF('BİLGİ GİRİŞİ'!AR131="","",'BİLGİ GİRİŞİ'!AR131) ->  | AR46: =IF('BİLGİ GİRİŞİ'!AV131="","",'BİLGİ GİRİŞİ'!AV131) -> 
A47: =IF('BİLGİ GİRİŞİ'!D65="","",'BİLGİ GİRİŞİ'!D65) ->  | B47: =IF('BİLGİ GİRİŞİ'!E65="","",'BİLGİ GİRİŞİ'!E65) ->  | P47: =IF('BİLGİ GİRİŞİ'!W65="","",'BİLGİ GİRİŞİ'!W65) ->  | T47: =IF('BİLGİ GİRİŞİ'!T65="","",'BİLGİ GİRİŞİ'!T65) ->  | X47: =IF('BİLGİ GİRİŞİ'!AB132="","",'BİLGİ GİRİŞİ'!AB132) ->  | AB47: =IF('BİLGİ GİRİŞİ'!AF132="","",'BİLGİ GİRİŞİ'!AF132) ->  | AF47: =IF('BİLGİ GİRİŞİ'!AJ132="","",'BİLGİ GİRİŞİ'!AJ132) ->  | AJ47: =IF('BİLGİ GİRİŞİ'!AN132="","",'BİLGİ GİRİŞİ'!AN132) ->  | AN47: =IF('BİLGİ GİRİŞİ'!AR132="","",'BİLGİ GİRİŞİ'!AR132) ->  | AR47: =IF('BİLGİ GİRİŞİ'!AV132="","",'BİLGİ GİRİŞİ'!AV132) -> 
A48: =IF('BİLGİ GİRİŞİ'!D66="","",'BİLGİ GİRİŞİ'!D66) ->  | B48: =IF('BİLGİ GİRİŞİ'!E66="","",'BİLGİ GİRİŞİ'!E66) ->  | P48: =IF('BİLGİ GİRİŞİ'!W66="","",'BİLGİ GİRİŞİ'!W66) ->  | T48: =IF('BİLGİ GİRİŞİ'!T66="","",'BİLGİ GİRİŞİ'!T66) ->  | X48: =IF('BİLGİ GİRİŞİ'!AB133="","",'BİLGİ GİRİŞİ'!AB133) ->  | AB48: =IF('BİLGİ GİRİŞİ'!AF133="","",'BİLGİ GİRİŞİ'!AF133) ->  | AF48: =IF('BİLGİ GİRİŞİ'!AJ133="","",'BİLGİ GİRİŞİ'!AJ133) ->  | AJ48: =IF('BİLGİ GİRİŞİ'!AN133="","",'BİLGİ GİRİŞİ'!AN133) ->  | AN48: =IF('BİLGİ GİRİŞİ'!AR133="","",'BİLGİ GİRİŞİ'!AR133) ->  | AR48: =IF('BİLGİ GİRİŞİ'!AV133="","",'BİLGİ GİRİŞİ'!AV133) -> 
A49: =IF('BİLGİ GİRİŞİ'!D67="","",'BİLGİ GİRİŞİ'!D67) ->  | B49: =IF('BİLGİ GİRİŞİ'!E67="","",'BİLGİ GİRİŞİ'!E67) ->  | P49: =IF('BİLGİ GİRİŞİ'!W67="","",'BİLGİ GİRİŞİ'!W67) ->  | T49: =IF('BİLGİ GİRİŞİ'!T67="","",'BİLGİ GİRİŞİ'!T67) ->  | X49: =IF('BİLGİ GİRİŞİ'!AB134="","",'BİLGİ GİRİŞİ'!AB134) ->  | AB49: =IF('BİLGİ GİRİŞİ'!AF134="","",'BİLGİ GİRİŞİ'!AF134) ->  | AF49: =IF('BİLGİ GİRİŞİ'!AJ134="","",'BİLGİ GİRİŞİ'!AJ134) ->  | AJ49: =IF('BİLGİ GİRİŞİ'!AN134="","",'BİLGİ GİRİŞİ'!AN134) ->  | AN49: =IF('BİLGİ GİRİŞİ'!AR134="","",'BİLGİ GİRİŞİ'!AR134) ->  | AR49: =IF('BİLGİ GİRİŞİ'!AV134="","",'BİLGİ GİRİŞİ'!AV134) -> 
A50: =IF('BİLGİ GİRİŞİ'!D68="","",'BİLGİ GİRİŞİ'!D68) ->  | B50: =IF('BİLGİ GİRİŞİ'!E68="","",'BİLGİ GİRİŞİ'!E68) ->  | P50: =IF('BİLGİ GİRİŞİ'!W68="","",'BİLGİ GİRİŞİ'!W68) ->  | T50: =IF('BİLGİ GİRİŞİ'!T68="","",'BİLGİ GİRİŞİ'!T68) ->  | X50: =IF('BİLGİ GİRİŞİ'!AB135="","",'BİLGİ GİRİŞİ'!AB135) ->  | AB50: =IF('BİLGİ GİRİŞİ'!AF135="","",'BİLGİ GİRİŞİ'!AF135) ->  | AF50: =IF('BİLGİ GİRİŞİ'!AJ135="","",'BİLGİ GİRİŞİ'!AJ135) ->  | AJ50: =IF('BİLGİ GİRİŞİ'!AN135="","",'BİLGİ GİRİŞİ'!AN135) ->  | AN50: =IF('BİLGİ GİRİŞİ'!AR135="","",'BİLGİ GİRİŞİ'!AR135) ->  | AR50: =IF('BİLGİ GİRİŞİ'!AV135="","",'BİLGİ GİRİŞİ'!AV135) -> 
A51: =IF('BİLGİ GİRİŞİ'!D69="","",'BİLGİ GİRİŞİ'!D69) ->  | B51: =IF('BİLGİ GİRİŞİ'!E69="","",'BİLGİ GİRİŞİ'!E69) ->  | P51: =IF('BİLGİ GİRİŞİ'!W69="","",'BİLGİ GİRİŞİ'!W69) ->  | T51: =IF('BİLGİ GİRİŞİ'!T69="","",'BİLGİ GİRİŞİ'!T69) ->  | X51: =IF('BİLGİ GİRİŞİ'!AB136="","",'BİLGİ GİRİŞİ'!AB136) ->  | AB51: =IF('BİLGİ GİRİŞİ'!AF136="","",'BİLGİ GİRİŞİ'!AF136) ->  | AF51: =IF('BİLGİ GİRİŞİ'!AJ136="","",'BİLGİ GİRİŞİ'!AJ136) ->  | AJ51: =IF('BİLGİ GİRİŞİ'!AN136="","",'BİLGİ GİRİŞİ'!AN136) ->  | AN51: =IF('BİLGİ GİRİŞİ'!AR136="","",'BİLGİ GİRİŞİ'!AR136) ->  | AR51: =IF('BİLGİ GİRİŞİ'!AV136="","",'BİLGİ GİRİŞİ'!AV136) -> 
A52: =IF('BİLGİ GİRİŞİ'!D70="","",'BİLGİ GİRİŞİ'!D70) ->  | B52: =IF('BİLGİ GİRİŞİ'!E70="","",'BİLGİ GİRİŞİ'!E70) ->  | P52: =IF('BİLGİ GİRİŞİ'!W70="","",'BİLGİ GİRİŞİ'!W70) ->  | T52: =IF('BİLGİ GİRİŞİ'!T70="","",'BİLGİ GİRİŞİ'!T70) ->  | X52: =IF('BİLGİ GİRİŞİ'!AB137="","",'BİLGİ GİRİŞİ'!AB137) ->  | AB52: =IF('BİLGİ GİRİŞİ'!AF137="","",'BİLGİ GİRİŞİ'!AF137) ->  | AF52: =IF('BİLGİ GİRİŞİ'!AJ137="","",'BİLGİ GİRİŞİ'!AJ137) ->  | AJ52: =IF('BİLGİ GİRİŞİ'!AN137="","",'BİLGİ GİRİŞİ'!AN137) ->  | AN52: =IF('BİLGİ GİRİŞİ'!AR137="","",'BİLGİ GİRİŞİ'!AR137) ->  | AR52: =IF('BİLGİ GİRİŞİ'!AV137="","",'BİLGİ GİRİŞİ'!AV137) -> 
A53: =IF('BİLGİ GİRİŞİ'!D71="","",'BİLGİ GİRİŞİ'!D71) ->  | B53: =IF('BİLGİ GİRİŞİ'!E71="","",'BİLGİ GİRİŞİ'!E71) ->  | P53: =IF('BİLGİ GİRİŞİ'!W71="","",'BİLGİ GİRİŞİ'!W71) ->  | T53: =IF('BİLGİ GİRİŞİ'!T71="","",'BİLGİ GİRİŞİ'!T71) ->  | X53: =IF('BİLGİ GİRİŞİ'!AB138="","",'BİLGİ GİRİŞİ'!AB138) ->  | AB53: =IF('BİLGİ GİRİŞİ'!AF138="","",'BİLGİ GİRİŞİ'!AF138) ->  | AF53: =IF('BİLGİ GİRİŞİ'!AJ138="","",'BİLGİ GİRİŞİ'!AJ138) ->  | AJ53: =IF('BİLGİ GİRİŞİ'!AN138="","",'BİLGİ GİRİŞİ'!AN138) ->  | AN53: =IF('BİLGİ GİRİŞİ'!AR138="","",'BİLGİ GİRİŞİ'!AR138) ->  | AR53: =IF('BİLGİ GİRİŞİ'!AV138="","",'BİLGİ GİRİŞİ'!AV138) -> 
A54: =IF('BİLGİ GİRİŞİ'!D72="","",'BİLGİ GİRİŞİ'!D72) ->  | B54: =IF('BİLGİ GİRİŞİ'!E72="","",'BİLGİ GİRİŞİ'!E72) ->  | P54: =IF('BİLGİ GİRİŞİ'!W72="","",'BİLGİ GİRİŞİ'!W72) ->  | T54: =IF('BİLGİ GİRİŞİ'!T72="","",'BİLGİ GİRİŞİ'!T72) ->  | X54: =IF('BİLGİ GİRİŞİ'!AB139="","",'BİLGİ GİRİŞİ'!AB139) ->  | AB54: =IF('BİLGİ GİRİŞİ'!AF139="","",'BİLGİ GİRİŞİ'!AF139) ->  | AF54: =IF('BİLGİ GİRİŞİ'!AJ139="","",'BİLGİ GİRİŞİ'!AJ139) ->  | AJ54: =IF('BİLGİ GİRİŞİ'!AN139="","",'BİLGİ GİRİŞİ'!AN139) ->  | AN54: =IF('BİLGİ GİRİŞİ'!AR139="","",'BİLGİ GİRİŞİ'!AR139) ->  | AR54: =IF('BİLGİ GİRİŞİ'!AV139="","",'BİLGİ GİRİŞİ'!AV139) -> 
A55: =IF('BİLGİ GİRİŞİ'!D73="","",'BİLGİ GİRİŞİ'!D73) ->  | B55: =IF('BİLGİ GİRİŞİ'!E73="","",'BİLGİ GİRİŞİ'!E73) ->  | P55: =IF('BİLGİ GİRİŞİ'!W73="","",'BİLGİ GİRİŞİ'!W73) ->  | T55: =IF('BİLGİ GİRİŞİ'!T73="","",'BİLGİ GİRİŞİ'!T73) ->  | X55: =IF('BİLGİ GİRİŞİ'!AB140="","",'BİLGİ GİRİŞİ'!AB140) ->  | AB55: =IF('BİLGİ GİRİŞİ'!AF140="","",'BİLGİ GİRİŞİ'!AF140) ->  | AF55: =IF('BİLGİ GİRİŞİ'!AJ140="","",'BİLGİ GİRİŞİ'!AJ140) ->  | AJ55: =IF('BİLGİ GİRİŞİ'!AN140="","",'BİLGİ GİRİŞİ'!AN140) ->  | AN55: =IF('BİLGİ GİRİŞİ'!AR140="","",'BİLGİ GİRİŞİ'!AR140) ->  | AR55: =IF('BİLGİ GİRİŞİ'!AV140="","",'BİLGİ GİRİŞİ'!AV140) -> 
A56: =IF('BİLGİ GİRİŞİ'!D74="","",'BİLGİ GİRİŞİ'!D74) ->  | B56: =IF('BİLGİ GİRİŞİ'!E74="","",'BİLGİ GİRİŞİ'!E74) ->  | P56: =IF('BİLGİ GİRİŞİ'!W74="","",'BİLGİ GİRİŞİ'!W74) ->  | T56: =IF('BİLGİ GİRİŞİ'!T74="","",'BİLGİ GİRİŞİ'!T74) ->  | X56: =IF('BİLGİ GİRİŞİ'!AB141="","",'BİLGİ GİRİŞİ'!AB141) ->  | AB56: =IF('BİLGİ GİRİŞİ'!AF141="","",'BİLGİ GİRİŞİ'!AF141) ->  | AF56: =IF('BİLGİ GİRİŞİ'!AJ141="","",'BİLGİ GİRİŞİ'!AJ141) ->  | AJ56: =IF('BİLGİ GİRİŞİ'!AN141="","",'BİLGİ GİRİŞİ'!AN141) ->  | AN56: =IF('BİLGİ GİRİŞİ'!AR141="","",'BİLGİ GİRİŞİ'!AR141) ->  | AR56: =IF('BİLGİ GİRİŞİ'!AV141="","",'BİLGİ GİRİŞİ'!AV141) -> 
A57: =IF('BİLGİ GİRİŞİ'!D75="","",'BİLGİ GİRİŞİ'!D75) ->  | B57: =IF('BİLGİ GİRİŞİ'!E75="","",'BİLGİ GİRİŞİ'!E75) ->  | P57: =IF('BİLGİ GİRİŞİ'!W75="","",'BİLGİ GİRİŞİ'!W75) ->  | T57: =IF('BİLGİ GİRİŞİ'!T75="","",'BİLGİ GİRİŞİ'!T75) ->  | X57: =IF('BİLGİ GİRİŞİ'!AB142="","",'BİLGİ GİRİŞİ'!AB142) ->  | AB57: =IF('BİLGİ GİRİŞİ'!AF142="","",'BİLGİ GİRİŞİ'!AF142) ->  | AF57: =IF('BİLGİ GİRİŞİ'!AJ142="","",'BİLGİ GİRİŞİ'!AJ142) ->  | AJ57: =IF('BİLGİ GİRİŞİ'!AN142="","",'BİLGİ GİRİŞİ'!AN142) ->  | AN57: =IF('BİLGİ GİRİŞİ'!AR142="","",'BİLGİ GİRİŞİ'!AR142) ->  | AR57: =IF('BİLGİ GİRİŞİ'!AV142="","",'BİLGİ GİRİŞİ'!AV142) -> 
A58: =IF('BİLGİ GİRİŞİ'!D76="","",'BİLGİ GİRİŞİ'!D76) ->  | B58: =IF('BİLGİ GİRİŞİ'!E76="","",'BİLGİ GİRİŞİ'!E76) ->  | P58: =IF('BİLGİ GİRİŞİ'!W76="","",'BİLGİ GİRİŞİ'!W76) ->  | T58: =IF('BİLGİ GİRİŞİ'!T76="","",'BİLGİ GİRİŞİ'!T76) ->  | X58: =IF('BİLGİ GİRİŞİ'!AB143="","",'BİLGİ GİRİŞİ'!AB143) ->  | AB58: =IF('BİLGİ GİRİŞİ'!AF143="","",'BİLGİ GİRİŞİ'!AF143) ->  | AF58: =IF('BİLGİ GİRİŞİ'!AJ143="","",'BİLGİ GİRİŞİ'!AJ143) ->  | AJ58: =IF('BİLGİ GİRİŞİ'!AN143="","",'BİLGİ GİRİŞİ'!AN143) ->  | AN58: =IF('BİLGİ GİRİŞİ'!AR143="","",'BİLGİ GİRİŞİ'!AR143) ->  | AR58: =IF('BİLGİ GİRİŞİ'!AV143="","",'BİLGİ GİRİŞİ'!AV143) -> 
A59: =IF('BİLGİ GİRİŞİ'!D77="","",'BİLGİ GİRİŞİ'!D77) ->  | B59: =IF('BİLGİ GİRİŞİ'!E77="","",'BİLGİ GİRİŞİ'!E77) ->  | P59: =IF('BİLGİ GİRİŞİ'!W77="","",'BİLGİ GİRİŞİ'!W77) ->  | T59: =IF('BİLGİ GİRİŞİ'!T77="","",'BİLGİ GİRİŞİ'!T77) ->  | X59: =IF('BİLGİ GİRİŞİ'!AB144="","",'BİLGİ GİRİŞİ'!AB144) ->  | AB59: =IF('BİLGİ GİRİŞİ'!AF144="","",'BİLGİ GİRİŞİ'!AF144) ->  | AF59: =IF('BİLGİ GİRİŞİ'!AJ144="","",'BİLGİ GİRİŞİ'!AJ144) ->  | AJ59: =IF('BİLGİ GİRİŞİ'!AN144="","",'BİLGİ GİRİŞİ'!AN144) ->  | AN59: =IF('BİLGİ GİRİŞİ'!AR144="","",'BİLGİ GİRİŞİ'!AR144) ->  | AR59: =IF('BİLGİ GİRİŞİ'!AV144="","",'BİLGİ GİRİŞİ'!AV144) -> 
A60: =IF('BİLGİ GİRİŞİ'!D78="","",'BİLGİ GİRİŞİ'!D78) ->  | B60: =IF('BİLGİ GİRİŞİ'!E78="","",'BİLGİ GİRİŞİ'!E78) ->  | P60: =IF('BİLGİ GİRİŞİ'!W78="","",'BİLGİ GİRİŞİ'!W78) ->  | T60: =IF('BİLGİ GİRİŞİ'!T78="","",'BİLGİ GİRİŞİ'!T78) ->  | X60: =IF('BİLGİ GİRİŞİ'!AB145="","",'BİLGİ GİRİŞİ'!AB145) ->  | AB60: =IF('BİLGİ GİRİŞİ'!AF145="","",'BİLGİ GİRİŞİ'!AF145) ->  | AF60: =IF('BİLGİ GİRİŞİ'!AJ145="","",'BİLGİ GİRİŞİ'!AJ145) ->  | AJ60: =IF('BİLGİ GİRİŞİ'!AN145="","",'BİLGİ GİRİŞİ'!AN145) ->  | AN60: =IF('BİLGİ GİRİŞİ'!AR145="","",'BİLGİ GİRİŞİ'!AR145) ->  | AR60: =IF('BİLGİ GİRİŞİ'!AV145="","",'BİLGİ GİRİŞİ'!AV145) -> 
A61: =IF('BİLGİ GİRİŞİ'!D79="","",'BİLGİ GİRİŞİ'!D79) ->  | B61: =IF('BİLGİ GİRİŞİ'!E79="","",'BİLGİ GİRİŞİ'!E79) ->  | P61: =IF('BİLGİ GİRİŞİ'!W79="","",'BİLGİ GİRİŞİ'!W79) ->  | T61: =IF('BİLGİ GİRİŞİ'!T79="","",'BİLGİ GİRİŞİ'!T79) ->  | X61: =IF('BİLGİ GİRİŞİ'!AB146="","",'BİLGİ GİRİŞİ'!AB146) ->  | AB61: =IF('BİLGİ GİRİŞİ'!AF146="","",'BİLGİ GİRİŞİ'!AF146) ->  | AF61: =IF('BİLGİ GİRİŞİ'!AJ146="","",'BİLGİ GİRİŞİ'!AJ146) ->  | AJ61: =IF('BİLGİ GİRİŞİ'!AN146="","",'BİLGİ GİRİŞİ'!AN146) ->  | AN61: =IF('BİLGİ GİRİŞİ'!AR146="","",'BİLGİ GİRİŞİ'!AR146) ->  | AR61: =IF('BİLGİ GİRİŞİ'!AV146="","",'BİLGİ GİRİŞİ'!AV146) -> 
A62: =IF('BİLGİ GİRİŞİ'!D80="","",'BİLGİ GİRİŞİ'!D80) ->  | B62: =IF('BİLGİ GİRİŞİ'!E80="","",'BİLGİ GİRİŞİ'!E80) ->  | P62: =IF('BİLGİ GİRİŞİ'!W80="","",'BİLGİ GİRİŞİ'!W80) ->  | T62: =IF('BİLGİ GİRİŞİ'!T80="","",'BİLGİ GİRİŞİ'!T80) ->  | X62: =IF('BİLGİ GİRİŞİ'!AB147="","",'BİLGİ GİRİŞİ'!AB147) ->  | AB62: =IF('BİLGİ GİRİŞİ'!AF147="","",'BİLGİ GİRİŞİ'!AF147) ->  | AF62: =IF('BİLGİ GİRİŞİ'!AJ147="","",'BİLGİ GİRİŞİ'!AJ147) ->  | AJ62: =IF('BİLGİ GİRİŞİ'!AN147="","",'BİLGİ GİRİŞİ'!AN147) ->  | AN62: =IF('BİLGİ GİRİŞİ'!AR147="","",'BİLGİ GİRİŞİ'!AR147) ->  | AR62: =IF('BİLGİ GİRİŞİ'!AV147="","",'BİLGİ GİRİŞİ'!AV147) -> 
A63: =IF('BİLGİ GİRİŞİ'!D81="","",'BİLGİ GİRİŞİ'!D81) ->  | B63: =IF('BİLGİ GİRİŞİ'!E81="","",'BİLGİ GİRİŞİ'!E81) ->  | P63: =IF('BİLGİ GİRİŞİ'!W81="","",'BİLGİ GİRİŞİ'!W81) ->  | T63: =IF('BİLGİ GİRİŞİ'!T81="","",'BİLGİ GİRİŞİ'!T81) ->  | X63: =IF('BİLGİ GİRİŞİ'!AB148="","",'BİLGİ GİRİŞİ'!AB148) ->  | AB63: =IF('BİLGİ GİRİŞİ'!AF148="","",'BİLGİ GİRİŞİ'!AF148) ->  | AF63: =IF('BİLGİ GİRİŞİ'!AJ148="","",'BİLGİ GİRİŞİ'!AJ148) ->  | AJ63: =IF('BİLGİ GİRİŞİ'!AN148="","",'BİLGİ GİRİŞİ'!AN148) ->  | AN63: =IF('BİLGİ GİRİŞİ'!AR148="","",'BİLGİ GİRİŞİ'!AR148) ->  | AR63: =IF('BİLGİ GİRİŞİ'!AV148="","",'BİLGİ GİRİŞİ'!AV148) -> 
A64: =IF('BİLGİ GİRİŞİ'!D82="","",'BİLGİ GİRİŞİ'!D82) ->  | B64: =IF('BİLGİ GİRİŞİ'!E82="","",'BİLGİ GİRİŞİ'!E82) ->  | P64: =IF('BİLGİ GİRİŞİ'!W82="","",'BİLGİ GİRİŞİ'!W82) ->  | T64: =IF('BİLGİ GİRİŞİ'!T82="","",'BİLGİ GİRİŞİ'!T82) ->  | X64: =IF('BİLGİ GİRİŞİ'!AB149="","",'BİLGİ GİRİŞİ'!AB149) ->  | AB64: =IF('BİLGİ GİRİŞİ'!AF149="","",'BİLGİ GİRİŞİ'!AF149) ->  | AF64: =IF('BİLGİ GİRİŞİ'!AJ149="","",'BİLGİ GİRİŞİ'!AJ149) ->  | AJ64: =IF('BİLGİ GİRİŞİ'!AN149="","",'BİLGİ GİRİŞİ'!AN149) ->  | AN64: =IF('BİLGİ GİRİŞİ'!AR149="","",'BİLGİ GİRİŞİ'!AR149) ->  | AR64: =IF('BİLGİ GİRİŞİ'!AV149="","",'BİLGİ GİRİŞİ'!AV149) -> 
A65: =IF('BİLGİ GİRİŞİ'!D83="","",'BİLGİ GİRİŞİ'!D83) ->  | B65: =IF('BİLGİ GİRİŞİ'!E83="","",'BİLGİ GİRİŞİ'!E83) ->  | P65: =IF('BİLGİ GİRİŞİ'!W83="","",'BİLGİ GİRİŞİ'!W83) ->  | T65: =IF('BİLGİ GİRİŞİ'!T83="","",'BİLGİ GİRİŞİ'!T83) ->  | X65: =IF('BİLGİ GİRİŞİ'!AB150="","",'BİLGİ GİRİŞİ'!AB150) ->  | AB65: =IF('BİLGİ GİRİŞİ'!AF150="","",'BİLGİ GİRİŞİ'!AF150) ->  | AF65: =IF('BİLGİ GİRİŞİ'!AJ150="","",'BİLGİ GİRİŞİ'!AJ150) ->  | AJ65: =IF('BİLGİ GİRİŞİ'!AN150="","",'BİLGİ GİRİŞİ'!AN150) ->  | AN65: =IF('BİLGİ GİRİŞİ'!AR150="","",'BİLGİ GİRİŞİ'!AR150) ->  | AR65: =IF('BİLGİ GİRİŞİ'!AV150="","",'BİLGİ GİRİŞİ'!AV150) -> 
A66: =IF('BİLGİ GİRİŞİ'!D84="","",'BİLGİ GİRİŞİ'!D84) ->  | B66: =IF('BİLGİ GİRİŞİ'!E84="","",'BİLGİ GİRİŞİ'!E84) ->  | P66: =IF('BİLGİ GİRİŞİ'!W84="","",'BİLGİ GİRİŞİ'!W84) ->  | T66: =IF('BİLGİ GİRİŞİ'!T84="","",'BİLGİ GİRİŞİ'!T84) ->  | X66: =IF('BİLGİ GİRİŞİ'!AB151="","",'BİLGİ GİRİŞİ'!AB151) ->  | AB66: =IF('BİLGİ GİRİŞİ'!AF151="","",'BİLGİ GİRİŞİ'!AF151) ->  | AF66: =IF('BİLGİ GİRİŞİ'!AJ151="","",'BİLGİ GİRİŞİ'!AJ151) ->  | AJ66: =IF('BİLGİ GİRİŞİ'!AN151="","",'BİLGİ GİRİŞİ'!AN151) ->  | AN66: =IF('BİLGİ GİRİŞİ'!AR151="","",'BİLGİ GİRİŞİ'!AR151) ->  | AR66: =IF('BİLGİ GİRİŞİ'!AV151="","",'BİLGİ GİRİŞİ'!AV151) -> 
A67: =IF('BİLGİ GİRİŞİ'!D85="","",'BİLGİ GİRİŞİ'!D85) ->  | B67: =IF('BİLGİ GİRİŞİ'!E85="","",'BİLGİ GİRİŞİ'!E85) ->  | P67: =IF('BİLGİ GİRİŞİ'!W85="","",'BİLGİ GİRİŞİ'!W85) ->  | T67: =IF('BİLGİ GİRİŞİ'!T85="","",'BİLGİ GİRİŞİ'!T85) ->  | X67: =IF('BİLGİ GİRİŞİ'!AB152="","",'BİLGİ GİRİŞİ'!AB152) ->  | AB67: =IF('BİLGİ GİRİŞİ'!AF152="","",'BİLGİ GİRİŞİ'!AF152) ->  | AF67: =IF('BİLGİ GİRİŞİ'!AJ152="","",'BİLGİ GİRİŞİ'!AJ152) ->  | AJ67: =IF('BİLGİ GİRİŞİ'!AN152="","",'BİLGİ GİRİŞİ'!AN152) ->  | AN67: =IF('BİLGİ GİRİŞİ'!AR152="","",'BİLGİ GİRİŞİ'!AR152) ->  | AR67: =IF('BİLGİ GİRİŞİ'!AV152="","",'BİLGİ GİRİŞİ'!AV152) -> 
A68: =IF('BİLGİ GİRİŞİ'!D86="","",'BİLGİ GİRİŞİ'!D86) ->  | B68: =IF('BİLGİ GİRİŞİ'!E86="","",'BİLGİ GİRİŞİ'!E86) ->  | P68: =IF('BİLGİ GİRİŞİ'!W86="","",'BİLGİ GİRİŞİ'!W86) ->  | T68: =IF('BİLGİ GİRİŞİ'!T86="","",'BİLGİ GİRİŞİ'!T86) ->  | X68: =IF('BİLGİ GİRİŞİ'!AB153="","",'BİLGİ GİRİŞİ'!AB153) ->  | AB68: =IF('BİLGİ GİRİŞİ'!AF153="","",'BİLGİ GİRİŞİ'!AF153) ->  | AF68: =IF('BİLGİ GİRİŞİ'!AJ153="","",'BİLGİ GİRİŞİ'!AJ153) ->  | AJ68: =IF('BİLGİ GİRİŞİ'!AN153="","",'BİLGİ GİRİŞİ'!AN153) ->  | AN68: =IF('BİLGİ GİRİŞİ'!AR153="","",'BİLGİ GİRİŞİ'!AR153) ->  | AR68: =IF('BİLGİ GİRİŞİ'!AV153="","",'BİLGİ GİRİŞİ'!AV153) -> 
A69: =IF('BİLGİ GİRİŞİ'!D87="","",'BİLGİ GİRİŞİ'!D87) ->  | B69: =IF('BİLGİ GİRİŞİ'!E87="","",'BİLGİ GİRİŞİ'!E87) ->  | P69: =IF('BİLGİ GİRİŞİ'!W87="","",'BİLGİ GİRİŞİ'!W87) ->  | T69: =IF('BİLGİ GİRİŞİ'!T87="","",'BİLGİ GİRİŞİ'!T87) ->  | X69: =IF('BİLGİ GİRİŞİ'!AB154="","",'BİLGİ GİRİŞİ'!AB154) ->  | AB69: =IF('BİLGİ GİRİŞİ'!AF154="","",'BİLGİ GİRİŞİ'!AF154) ->  | AF69: =IF('BİLGİ GİRİŞİ'!AJ154="","",'BİLGİ GİRİŞİ'!AJ154) ->  | AJ69: =IF('BİLGİ GİRİŞİ'!AN154="","",'BİLGİ GİRİŞİ'!AN154) ->  | AN69: =IF('BİLGİ GİRİŞİ'!AR154="","",'BİLGİ GİRİŞİ'!AR154) ->  | AR69: =IF('BİLGİ GİRİŞİ'!AV154="","",'BİLGİ GİRİŞİ'!AV154) -> 
A70: =IF('BİLGİ GİRİŞİ'!D88="","",'BİLGİ GİRİŞİ'!D88) ->  | B70: =IF('BİLGİ GİRİŞİ'!E88="","",'BİLGİ GİRİŞİ'!E88) ->  | P70: =IF('BİLGİ GİRİŞİ'!W88="","",'BİLGİ GİRİŞİ'!W88) ->  | T70: =IF('BİLGİ GİRİŞİ'!T88="","",'BİLGİ GİRİŞİ'!T88) ->  | X70: =IF('BİLGİ GİRİŞİ'!AB155="","",'BİLGİ GİRİŞİ'!AB155) ->  | AB70: =IF('BİLGİ GİRİŞİ'!AF155="","",'BİLGİ GİRİŞİ'!AF155) ->  | AF70: =IF('BİLGİ GİRİŞİ'!AJ155="","",'BİLGİ GİRİŞİ'!AJ155) ->  | AJ70: =IF('BİLGİ GİRİŞİ'!AN155="","",'BİLGİ GİRİŞİ'!AN155) ->  | AN70: =IF('BİLGİ GİRİŞİ'!AR155="","",'BİLGİ GİRİŞİ'!AR155) ->  | AR70: =IF('BİLGİ GİRİŞİ'!AV155="","",'BİLGİ GİRİŞİ'!AV155) -> 
A71: =IF('BİLGİ GİRİŞİ'!D89="","",'BİLGİ GİRİŞİ'!D89) ->  | B71: =IF('BİLGİ GİRİŞİ'!E89="","",'BİLGİ GİRİŞİ'!E89) ->  | P71: =IF('BİLGİ GİRİŞİ'!W89="","",'BİLGİ GİRİŞİ'!W89) ->  | T71: =IF('BİLGİ GİRİŞİ'!T89="","",'BİLGİ GİRİŞİ'!T89) ->  | X71: =IF('BİLGİ GİRİŞİ'!AB156="","",'BİLGİ GİRİŞİ'!AB156) ->  | AB71: =IF('BİLGİ GİRİŞİ'!AF156="","",'BİLGİ GİRİŞİ'!AF156) ->  | AF71: =IF('BİLGİ GİRİŞİ'!AJ156="","",'BİLGİ GİRİŞİ'!AJ156) ->  | AJ71: =IF('BİLGİ GİRİŞİ'!AN156="","",'BİLGİ GİRİŞİ'!AN156) ->  | AN71: =IF('BİLGİ GİRİŞİ'!AR156="","",'BİLGİ GİRİŞİ'!AR156) ->  | AR71: =IF('BİLGİ GİRİŞİ'!AV156="","",'BİLGİ GİRİŞİ'!AV156) -> 
A72: TOPLAM | X72: =SUM(X12:X71) -> 12000 | AB72: =SUM(AB12:AB71) -> 24000 | AF72: =SUM(AF12:AF71) -> 15000 | AJ72: =SUM(AJ12:AJ71) -> 30000 | AN72: =SUM(AN12:AN71) -> 18000 | AR72: =SUM(AR12:AR71) -> 36000
A74: EN UYGUN (DÜŞÜK) TEKLİFİ VEREN VE TEKLİFİ UYGUN GÖRÜLEN GERÇEK/TÜZEL KİŞİ
A75: ADI | X75: GERÇEK/TÜZEL KİŞİ'NİN ADRESİ | AN75: TEKLİF ETTİĞİ FİYAT
A76: =IF('BİLGİ GİRİŞİ'!D161="","",'BİLGİ GİRİŞİ'!D161) -> A GERÇEK/TÜZEL KİŞİSİ | X76: =IF('BİLGİ GİRİŞİ'!T161="","",'BİLGİ GİRİŞİ'!T161) -> Bulanık/MUŞ | AN76: =IF('BİLGİ GİRİŞİ'!AF161="","",'BİLGİ GİRİŞİ'!AF161) -> 24000
A78: =CONCATENATE(" Kamu İhale Kanunu'nun ",IF('BİLGİ GİRİŞİ'!O10="",".............................................................................",'BİLGİ GİRİŞİ'!O10)," maddesine göre Doğrudan Temin yoluyla satın alınacak Mal/Hizmet/Yapım İşi'ne ilişkin yapılan piyasa araştırması sonucu gerçek/tüzel kişilerce teklif edilen fiyatlar"&" tarafımızca değerlendirilmiş olup Ma'ın/Hizmet'in/Yapım İşi'nin, yukarıda bilgileri verilen ve teklifi uygun görülen gerçek/tüzel kişiden alınması uygun görülmüştür. "& TEXT(IF('BİLGİ GİRİŞİ'!O22="","…../…../……..",'BİLGİ GİRİŞİ'!O22),"gg.aa.yyyy ")) -> Kamu İhale Kanunu'nun 22/d maddesine göre Doğrudan Temin yoluyla satın alınacak Mal/Hizmet/Yapım İşi'ne ilişkin yapılan piyasa araştırması sonucu gerçek/tüzel kişilerce teklif edilen fiyatlar tarafımızca değerlendirilmiş olup Ma'ın/Hizmet'in/Yapım İşi'nin, yukarıda bilgileri verilen ve teklifi uygun görülen gerçek/tüzel kişiden alınması uygun görülmüştür. 08.03.2023
AF82: =IF(AF86="","",IF('BİLGİ GİRİŞİ'!AB16="","",'BİLGİ GİRİŞİ'!AB16)) -> Piyasa Araştırma Görevlisi
A83: =IF(A86="","",IF('BİLGİ GİRİŞİ'!AH16="","",'BİLGİ GİRİŞİ'!AH16)) -> Piyasa Araştırma Görevlisi | P83: =IF(P86="","",IF('BİLGİ GİRİŞİ'!AN16="","",'BİLGİ GİRİŞİ'!AN16)) -> 
A86: =IF('BİLGİ GİRİŞİ'!AH17="","",'BİLGİ GİRİŞİ'!AH17) -> Ayşe YILDIZ | P86: =IF('BİLGİ GİRİŞİ'!AN17="","",'BİLGİ GİRİŞİ'!AN17) ->  | AF86: =IF('BİLGİ GİRİŞİ'!AB17="","",'BİLGİ GİRİŞİ'!AB17) -> Ahmet DEMİR
A87: =IF('BİLGİ GİRİŞİ'!AH18="","",'BİLGİ GİRİŞİ'!AH18) -> Öğretmen 1 | P87: =IF(P86="","",IF('BİLGİ GİRİŞİ'!AN18="","",'BİLGİ GİRİŞİ'!AN18)) ->  | AF87: =IF('BİLGİ GİRİŞİ'!AB18="","",'BİLGİ GİRİŞİ'!AB18) -> Müdür Yardımcısı 1

Sheet 8
A2: İdarenin Adı | K2: : | L2: =IF('BİLGİ GİRİŞİ'!O8="","",'BİLGİ GİRİŞİ'!O8) -> Atatürk İlkokulu Müdürlüğü
A3: Doğrudan Temin Numarası | K3: : | L3: =IF('BİLGİ GİRİŞİ'!O11="","",'BİLGİ GİRİŞİ'!O11) -> 22DT1211930
A4: Mal/Hizmet/Yapım Adı, Niteliği | K4: : | L4: =IF('BİLGİ GİRİŞİ'!O9="","",'BİLGİ GİRİŞİ'!O9) -> Bilişim Malzemeleri Alımı
A5: Alım/Görevlendirme Onay Tarihi/sayısı | K5: : | L5: =IF('BİLGİ GİRİŞİ'!O15="","",'BİLGİ GİRİŞİ'!O15) -> 2023-03-06 | P5: / | Q5: =IF('BİLGİ GİRİŞİ'!S15="","",'BİLGİ GİRİŞİ'!S15) -> 456789123
A6: MUAYENE VE KABUL TUTANAĞI (DOĞRUDAN TEMİN SONUÇ ONAY BELGESİ)
A8: MAL'IN/HİZMET'İN/YAPIM İŞİ'NİN
A9: S | B9: Kalem/KısımBilgileri | X9: Birimi | AB9: Miktarı
A10: =IF('BİLGİ GİRİŞİ'!D30="","",'BİLGİ GİRİŞİ'!D30) -> 1 | B10: =IF('BİLGİ GİRİŞİ'!E30="","",'BİLGİ GİRİŞİ'!E30) -> AIO (All In One) Masaüstü Bilgisayar | X10: =IF('BİLGİ GİRİŞİ'!W30="","",'BİLGİ GİRİŞİ'!W30) -> Adet | AB10: =IF('BİLGİ GİRİŞİ'!T30="","",'BİLGİ GİRİŞİ'!T30) -> 2
A11: =IF('BİLGİ GİRİŞİ'!D31="","",'BİLGİ GİRİŞİ'!D31) -> 2 | B11: =IF('BİLGİ GİRİŞİ'!E31="","",'BİLGİ GİRİŞİ'!E31) -> Fotokopi Makinesi | X11: =IF('BİLGİ GİRİŞİ'!W31="","",'BİLGİ GİRİŞİ'!W31) -> Adet | AB11: =IF('BİLGİ GİRİŞİ'!T31="","",'BİLGİ GİRİŞİ'!T31) -> 2
A12: =IF('BİLGİ GİRİŞİ'!D32="","",'BİLGİ GİRİŞİ'!D32) -> 3 | B12: =IF('BİLGİ GİRİŞİ'!E32="","",'BİLGİ GİRİŞİ'!E32) -> Projektör | X12: =IF('BİLGİ GİRİŞİ'!W32="","",'BİLGİ GİRİŞİ'!W32) -> Adet | AB12: =IF('BİLGİ GİRİŞİ'!T32="","",'BİLGİ GİRİŞİ'!T32) -> 2
A13: =IF('BİLGİ GİRİŞİ'!D33="","",'BİLGİ GİRİŞİ'!D33) ->  | B13: =IF('BİLGİ GİRİŞİ'!E33="","",'BİLGİ GİRİŞİ'!E33) ->  | X13: =IF('BİLGİ GİRİŞİ'!W33="","",'BİLGİ GİRİŞİ'!W33) ->  | AB13: =IF('BİLGİ GİRİŞİ'!T33="","",'BİLGİ GİRİŞİ'!T33) -> 
A14: =IF('BİLGİ GİRİŞİ'!D34="","",'BİLGİ GİRİŞİ'!D34) ->  | B14: =IF('BİLGİ GİRİŞİ'!E34="","",'BİLGİ GİRİŞİ'!E34) ->  | X14: =IF('BİLGİ GİRİŞİ'!W34="","",'BİLGİ GİRİŞİ'!W34) ->  | AB14: =IF('BİLGİ GİRİŞİ'!T34="","",'BİLGİ GİRİŞİ'!T34) -> 
A15: =IF('BİLGİ GİRİŞİ'!D35="","",'BİLGİ GİRİŞİ'!D35) ->  | B15: =IF('BİLGİ GİRİŞİ'!E35="","",'BİLGİ GİRİŞİ'!E35) ->  | X15: =IF('BİLGİ GİRİŞİ'!W35="","",'BİLGİ GİRİŞİ'!W35) ->  | AB15: =IF('BİLGİ GİRİŞİ'!T35="","",'BİLGİ GİRİŞİ'!T35) -> 
A16: =IF('BİLGİ GİRİŞİ'!D36="","",'BİLGİ GİRİŞİ'!D36) ->  | B16: =IF('BİLGİ GİRİŞİ'!E36="","",'BİLGİ GİRİŞİ'!E36) ->  | X16: =IF('BİLGİ GİRİŞİ'!W36="","",'BİLGİ GİRİŞİ'!W36) ->  | AB16: =IF('BİLGİ GİRİŞİ'!T36="","",'BİLGİ GİRİŞİ'!T36) -> 
A17: =IF('BİLGİ GİRİŞİ'!D37="","",'BİLGİ GİRİŞİ'!D37) ->  | B17: =IF('BİLGİ GİRİŞİ'!E37="","",'BİLGİ GİRİŞİ'!E37) ->  | X17: =IF('BİLGİ GİRİŞİ'!W37="","",'BİLGİ GİRİŞİ'!W37) ->  | AB17: =IF('BİLGİ GİRİŞİ'!T37="","",'BİLGİ GİRİŞİ'!T37) -> 
A18: =IF('BİLGİ GİRİŞİ'!D38="","",'BİLGİ GİRİŞİ'!D38) ->  | B18: =IF('BİLGİ GİRİŞİ'!E38="","",'BİLGİ GİRİŞİ'!E38) ->  | X18: =IF('BİLGİ GİRİŞİ'!W38="","",'BİLGİ GİRİŞİ'!W38) ->  | AB18: =IF('BİLGİ GİRİŞİ'!T38="","",'BİLGİ GİRİŞİ'!T38) -> 
A19: =IF('BİLGİ GİRİŞİ'!D39="","",'BİLGİ GİRİŞİ'!D39) ->  | B19: =IF('BİLGİ GİRİŞİ'!E39="","",'BİLGİ GİRİŞİ'!E39) ->  | X19: =IF('BİLGİ GİRİŞİ'!W39="","",'BİLGİ GİRİŞİ'!W39) ->  | AB19: =IF('BİLGİ GİRİŞİ'!T39="","",'BİLGİ GİRİŞİ'!T39) -> 
A20: =IF('BİLGİ GİRİŞİ'!D40="","",'BİLGİ GİRİŞİ'!D40) ->  | B20: =IF('BİLGİ GİRİŞİ'!E40="","",'BİLGİ GİRİŞİ'!E40) ->  | X20: =IF('BİLGİ GİRİŞİ'!W40="","",'BİLGİ GİRİŞİ'!W40) ->  | AB20: =IF('BİLGİ GİRİŞİ'!T40="","",'BİLGİ GİRİŞİ'!T40) -> 
A21: =IF('BİLGİ GİRİŞİ'!D41="","",'BİLGİ GİRİŞİ'!D41) ->  | B21: =IF('BİLGİ GİRİŞİ'!E41="","",'BİLGİ GİRİŞİ'!E41) ->  | X21: =IF('BİLGİ GİRİŞİ'!W41="","",'BİLGİ GİRİŞİ'!W41) ->  | AB21: =IF('BİLGİ GİRİŞİ'!T41="","",'BİLGİ GİRİŞİ'!T41) -> 
A22: =IF('BİLGİ GİRİŞİ'!D42="","",'BİLGİ GİRİŞİ'!D42) ->  | B22: =IF('BİLGİ GİRİŞİ'!E42="","",'BİLGİ GİRİŞİ'!E42) ->  | X22: =IF('BİLGİ GİRİŞİ'!W42="","",'BİLGİ GİRİŞİ'!W42) ->  | AB22: =IF('BİLGİ GİRİŞİ'!T42="","",'BİLGİ GİRİŞİ'!T42) -> 
A23: =IF('BİLGİ GİRİŞİ'!D43="","",'BİLGİ GİRİŞİ'!D43) ->  | B23: =IF('BİLGİ GİRİŞİ'!E43="","",'BİLGİ GİRİŞİ'!E43) ->  | X23: =IF('BİLGİ GİRİŞİ'!W43="","",'BİLGİ GİRİŞİ'!W43) ->  | AB23: =IF('BİLGİ GİRİŞİ'!T43="","",'BİLGİ GİRİŞİ'!T43) -> 
A24: =IF('BİLGİ GİRİŞİ'!D44="","",'BİLGİ GİRİŞİ'!D44) ->  | B24: =IF('BİLGİ GİRİŞİ'!E44="","",'BİLGİ GİRİŞİ'!E44) ->  | X24: =IF('BİLGİ GİRİŞİ'!W44="","",'BİLGİ GİRİŞİ'!W44) ->  | AB24: =IF('BİLGİ GİRİŞİ'!T44="","",'BİLGİ GİRİŞİ'!T44) -> 
A25: =IF('BİLGİ GİRİŞİ'!D45="","",'BİLGİ GİRİŞİ'!D45) ->  | B25: =IF('BİLGİ GİRİŞİ'!E45="","",'BİLGİ GİRİŞİ'!E45) ->  | X25: =IF('BİLGİ GİRİŞİ'!W45="","",'BİLGİ GİRİŞİ'!W45) ->  | AB25: =IF('BİLGİ GİRİŞİ'!T45="","",'BİLGİ GİRİŞİ'!T45) -> 
A26: =IF('BİLGİ GİRİŞİ'!D46="","",'BİLGİ GİRİŞİ'!D46) ->  | B26: =IF('BİLGİ GİRİŞİ'!E46="","",'BİLGİ GİRİŞİ'!E46) ->  | X26: =IF('BİLGİ GİRİŞİ'!W46="","",'BİLGİ GİRİŞİ'!W46) ->  | AB26: =IF('BİLGİ GİRİŞİ'!T46="","",'BİLGİ GİRİŞİ'!T46) -> 
A27: =IF('BİLGİ GİRİŞİ'!D47="","",'BİLGİ GİRİŞİ'!D47) ->  | B27: =IF('BİLGİ GİRİŞİ'!E47="","",'BİLGİ GİRİŞİ'!E47) ->  | X27: =IF('BİLGİ GİRİŞİ'!W47="","",'BİLGİ GİRİŞİ'!W47) ->  | AB27: =IF('BİLGİ GİRİŞİ'!T47="","",'BİLGİ GİRİŞİ'!T47) -> 
A28: =IF('BİLGİ GİRİŞİ'!D48="","",'BİLGİ GİRİŞİ'!D48) ->  | B28: =IF('BİLGİ GİRİŞİ'!E48="","",'BİLGİ GİRİŞİ'!E48) ->  | X28: =IF('BİLGİ GİRİŞİ'!W48="","",'BİLGİ GİRİŞİ'!W48) ->  | AB28: =IF('BİLGİ GİRİŞİ'!T48="","",'BİLGİ GİRİŞİ'!T48) -> 
A29: =IF('BİLGİ GİRİŞİ'!D49="","",'BİLGİ GİRİŞİ'!D49) ->  | B29: =IF('BİLGİ GİRİŞİ'!E49="","",'BİLGİ GİRİŞİ'!E49) ->  | X29: =IF('BİLGİ GİRİŞİ'!W49="","",'BİLGİ GİRİŞİ'!W49) ->  | AB29: =IF('BİLGİ GİRİŞİ'!T49="","",'BİLGİ GİRİŞİ'!T49) -> 
A30: =IF('BİLGİ GİRİŞİ'!D50="","",'BİLGİ GİRİŞİ'!D50) ->  | B30: =IF('BİLGİ GİRİŞİ'!E50="","",'BİLGİ GİRİŞİ'!E50) ->  | X30: =IF('BİLGİ GİRİŞİ'!W50="","",'BİLGİ GİRİŞİ'!W50) ->  | AB30: =IF('BİLGİ GİRİŞİ'!T50="","",'BİLGİ GİRİŞİ'!T50) -> 
A31: =IF('BİLGİ GİRİŞİ'!D51="","",'BİLGİ GİRİŞİ'!D51) ->  | B31: =IF('BİLGİ GİRİŞİ'!E51="","",'BİLGİ GİRİŞİ'!E51) ->  | X31: =IF('BİLGİ GİRİŞİ'!W51="","",'BİLGİ GİRİŞİ'!W51) ->  | AB31: =IF('BİLGİ GİRİŞİ'!T51="","",'BİLGİ GİRİŞİ'!T51) -> 
A32: =IF('BİLGİ GİRİŞİ'!D52="","",'BİLGİ GİRİŞİ'!D52) ->  | B32: =IF('BİLGİ GİRİŞİ'!E52="","",'BİLGİ GİRİŞİ'!E52) ->  | X32: =IF('BİLGİ GİRİŞİ'!W52="","",'BİLGİ GİRİŞİ'!W52) ->  | AB32: =IF('BİLGİ GİRİŞİ'!T52="","",'BİLGİ GİRİŞİ'!T52) -> 
A33: =IF('BİLGİ GİRİŞİ'!D53="","",'BİLGİ GİRİŞİ'!D53) ->  | B33: =IF('BİLGİ GİRİŞİ'!E53="","",'BİLGİ GİRİŞİ'!E53) ->  | X33: =IF('BİLGİ GİRİŞİ'!W53="","",'BİLGİ GİRİŞİ'!W53) ->  | AB33: =IF('BİLGİ GİRİŞİ'!T53="","",'BİLGİ GİRİŞİ'!T53) -> 
A34: =IF('BİLGİ GİRİŞİ'!D54="","",'BİLGİ GİRİŞİ'!D54) ->  | B34: =IF('BİLGİ GİRİŞİ'!E54="","",'BİLGİ GİRİŞİ'!E54) ->  | X34: =IF('BİLGİ GİRİŞİ'!W54="","",'BİLGİ GİRİŞİ'!W54) ->  | AB34: =IF('BİLGİ GİRİŞİ'!T54="","",'BİLGİ GİRİŞİ'!T54) -> 
A35: =IF('BİLGİ GİRİŞİ'!D55="","",'BİLGİ GİRİŞİ'!D55) ->  | B35: =IF('BİLGİ GİRİŞİ'!E55="","",'BİLGİ GİRİŞİ'!E55) ->  | X35: =IF('BİLGİ GİRİŞİ'!W55="","",'BİLGİ GİRİŞİ'!W55) ->  | AB35: =IF('BİLGİ GİRİŞİ'!T55="","",'BİLGİ GİRİŞİ'!T55) -> 
A36: =IF('BİLGİ GİRİŞİ'!D56="","",'BİLGİ GİRİŞİ'!D56) ->  | B36: =IF('BİLGİ GİRİŞİ'!E56="","",'BİLGİ GİRİŞİ'!E56) ->  | X36: =IF('BİLGİ GİRİŞİ'!W56="","",'BİLGİ GİRİŞİ'!W56) ->  | AB36: =IF('BİLGİ GİRİŞİ'!T56="","",'BİLGİ GİRİŞİ'!T56) -> 
A37: =IF('BİLGİ GİRİŞİ'!D57="","",'BİLGİ GİRİŞİ'!D57) ->  | B37: =IF('BİLGİ GİRİŞİ'!E57="","",'BİLGİ GİRİŞİ'!E57) ->  | X37: =IF('BİLGİ GİRİŞİ'!W57="","",'BİLGİ GİRİŞİ'!W57) ->  | AB37: =IF('BİLGİ GİRİŞİ'!T57="","",'BİLGİ GİRİŞİ'!T57) -> 
A38: =IF('BİLGİ GİRİŞİ'!D58="","",'BİLGİ GİRİŞİ'!D58) ->  | B38: =IF('BİLGİ GİRİŞİ'!E58="","",'BİLGİ GİRİŞİ'!E58) ->  | X38: =IF('BİLGİ GİRİŞİ'!W58="","",'BİLGİ GİRİŞİ'!W58) ->  | AB38: =IF('BİLGİ GİRİŞİ'!T58="","",'BİLGİ GİRİŞİ'!T58) -> 
A39: =IF('BİLGİ GİRİŞİ'!D59="","",'BİLGİ GİRİŞİ'!D59) ->  | B39: =IF('BİLGİ GİRİŞİ'!E59="","",'BİLGİ GİRİŞİ'!E59) ->  | X39: =IF('BİLGİ GİRİŞİ'!W59="","",'BİLGİ GİRİŞİ'!W59) ->  | AB39: =IF('BİLGİ GİRİŞİ'!T59="","",'BİLGİ GİRİŞİ'!T59) -> 
A40: =IF('BİLGİ GİRİŞİ'!D60="","",'BİLGİ GİRİŞİ'!D60) ->  | B40: =IF('BİLGİ GİRİŞİ'!E60="","",'BİLGİ GİRİŞİ'!E60) ->  | X40: =IF('BİLGİ GİRİŞİ'!W60="","",'BİLGİ GİRİŞİ'!W60) ->  | AB40: =IF('BİLGİ GİRİŞİ'!T60="","",'BİLGİ GİRİŞİ'!T60) -> 
A41: =IF('BİLGİ GİRİŞİ'!D61="","",'BİLGİ GİRİŞİ'!D61) ->  | B41: =IF('BİLGİ GİRİŞİ'!E61="","",'BİLGİ GİRİŞİ'!E61) ->  | X41: =IF('BİLGİ GİRİŞİ'!W61="","",'BİLGİ GİRİŞİ'!W61) ->  | AB41: =IF('BİLGİ GİRİŞİ'!T61="","",'BİLGİ GİRİŞİ'!T61) -> 
A42: =IF('BİLGİ GİRİŞİ'!D62="","",'BİLGİ GİRİŞİ'!D62) ->  | B42: =IF('BİLGİ GİRİŞİ'!E62="","",'BİLGİ GİRİŞİ'!E62) ->  | X42: =IF('BİLGİ GİRİŞİ'!W62="","",'BİLGİ GİRİŞİ'!W62) ->  | AB42: =IF('BİLGİ GİRİŞİ'!T62="","",'BİLGİ GİRİŞİ'!T62) -> 
A43: =IF('BİLGİ GİRİŞİ'!D63="","",'BİLGİ GİRİŞİ'!D63) ->  | B43: =IF('BİLGİ GİRİŞİ'!E63="","",'BİLGİ GİRİŞİ'!E63) ->  | X43: =IF('BİLGİ GİRİŞİ'!W63="","",'BİLGİ GİRİŞİ'!W63) ->  | AB43: =IF('BİLGİ GİRİŞİ'!T63="","",'BİLGİ GİRİŞİ'!T63) -> 
A44: =IF('BİLGİ GİRİŞİ'!D64="","",'BİLGİ GİRİŞİ'!D64) ->  | B44: =IF('BİLGİ GİRİŞİ'!E64="","",'BİLGİ GİRİŞİ'!E64) ->  | X44: =IF('BİLGİ GİRİŞİ'!W64="","",'BİLGİ GİRİŞİ'!W64) ->  | AB44: =IF('BİLGİ GİRİŞİ'!T64="","",'BİLGİ GİRİŞİ'!T64) -> 
A45: =IF('BİLGİ GİRİŞİ'!D65="","",'BİLGİ GİRİŞİ'!D65) ->  | B45: =IF('BİLGİ GİRİŞİ'!E65="","",'BİLGİ GİRİŞİ'!E65) ->  | X45: =IF('BİLGİ GİRİŞİ'!W65="","",'BİLGİ GİRİŞİ'!W65) ->  | AB45: =IF('BİLGİ GİRİŞİ'!T65="","",'BİLGİ GİRİŞİ'!T65) -> 
A46: =IF('BİLGİ GİRİŞİ'!D66="","",'BİLGİ GİRİŞİ'!D66) ->  | B46: =IF('BİLGİ GİRİŞİ'!E66="","",'BİLGİ GİRİŞİ'!E66) ->  | X46: =IF('BİLGİ GİRİŞİ'!W66="","",'BİLGİ GİRİŞİ'!W66) ->  | AB46: =IF('BİLGİ GİRİŞİ'!T66="","",'BİLGİ GİRİŞİ'!T66) -> 
A47: =IF('BİLGİ GİRİŞİ'!D67="","",'BİLGİ GİRİŞİ'!D67) ->  | B47: =IF('BİLGİ GİRİŞİ'!E67="","",'BİLGİ GİRİŞİ'!E67) ->  | X47: =IF('BİLGİ GİRİŞİ'!W67="","",'BİLGİ GİRİŞİ'!W67) ->  | AB47: =IF('BİLGİ GİRİŞİ'!T67="","",'BİLGİ GİRİŞİ'!T67) -> 
A48: =IF('BİLGİ GİRİŞİ'!D68="","",'BİLGİ GİRİŞİ'!D68) ->  | B48: =IF('BİLGİ GİRİŞİ'!E68="","",'BİLGİ GİRİŞİ'!E68) ->  | X48: =IF('BİLGİ GİRİŞİ'!W68="","",'BİLGİ GİRİŞİ'!W68) ->  | AB48: =IF('BİLGİ GİRİŞİ'!T68="","",'BİLGİ GİRİŞİ'!T68) -> 
A49: =IF('BİLGİ GİRİŞİ'!D69="","",'BİLGİ GİRİŞİ'!D69) ->  | B49: =IF('BİLGİ GİRİŞİ'!E69="","",'BİLGİ GİRİŞİ'!E69) ->  | X49: =IF('BİLGİ GİRİŞİ'!W69="","",'BİLGİ GİRİŞİ'!W69) ->  | AB49: =IF('BİLGİ GİRİŞİ'!T69="","",'BİLGİ GİRİŞİ'!T69) -> 
A50: =IF('BİLGİ GİRİŞİ'!D70="","",'BİLGİ GİRİŞİ'!D70) ->  | B50: =IF('BİLGİ GİRİŞİ'!E70="","",'BİLGİ GİRİŞİ'!E70) ->  | X50: =IF('BİLGİ GİRİŞİ'!W70="","",'BİLGİ GİRİŞİ'!W70) ->  | AB50: =IF('BİLGİ GİRİŞİ'!T70="","",'BİLGİ GİRİŞİ'!T70) -> 
A51: =IF('BİLGİ GİRİŞİ'!D71="","",'BİLGİ GİRİŞİ'!D71) ->  | B51: =IF('BİLGİ GİRİŞİ'!E71="","",'BİLGİ GİRİŞİ'!E71) ->  | X51: =IF('BİLGİ GİRİŞİ'!W71="","",'BİLGİ GİRİŞİ'!W71) ->  | AB51: =IF('BİLGİ GİRİŞİ'!T71="","",'BİLGİ GİRİŞİ'!T71) -> 
A52: =IF('BİLGİ GİRİŞİ'!D72="","",'BİLGİ GİRİŞİ'!D72) ->  | B52: =IF('BİLGİ GİRİŞİ'!E72="","",'BİLGİ GİRİŞİ'!E72) ->  | X52: =IF('BİLGİ GİRİŞİ'!W72="","",'BİLGİ GİRİŞİ'!W72) ->  | AB52: =IF('BİLGİ GİRİŞİ'!T72="","",'BİLGİ GİRİŞİ'!T72) -> 
A53: =IF('BİLGİ GİRİŞİ'!D73="","",'BİLGİ GİRİŞİ'!D73) ->  | B53: =IF('BİLGİ GİRİŞİ'!E73="","",'BİLGİ GİRİŞİ'!E73) ->  | X53: =IF('BİLGİ GİRİŞİ'!W73="","",'BİLGİ GİRİŞİ'!W73) ->  | AB53: =IF('BİLGİ GİRİŞİ'!T73="","",'BİLGİ GİRİŞİ'!T73) -> 
A54: =IF('BİLGİ GİRİŞİ'!D74="","",'BİLGİ GİRİŞİ'!D74) ->  | B54: =IF('BİLGİ GİRİŞİ'!E74="","",'BİLGİ GİRİŞİ'!E74) ->  | X54: =IF('BİLGİ GİRİŞİ'!W74="","",'BİLGİ GİRİŞİ'!W74) ->  | AB54: =IF('BİLGİ GİRİŞİ'!T74="","",'BİLGİ GİRİŞİ'!T74) -> 
A55: =IF('BİLGİ GİRİŞİ'!D75="","",'BİLGİ GİRİŞİ'!D75) ->  | B55: =IF('BİLGİ GİRİŞİ'!E75="","",'BİLGİ GİRİŞİ'!E75) ->  | X55: =IF('BİLGİ GİRİŞİ'!W75="","",'BİLGİ GİRİŞİ'!W75) ->  | AB55: =IF('BİLGİ GİRİŞİ'!T75="","",'BİLGİ GİRİŞİ'!T75) -> 
A56: =IF('BİLGİ GİRİŞİ'!D76="","",'BİLGİ GİRİŞİ'!D76) ->  | B56: =IF('BİLGİ GİRİŞİ'!E76="","",'BİLGİ GİRİŞİ'!E76) ->  | X56: =IF('BİLGİ GİRİŞİ'!W76="","",'BİLGİ GİRİŞİ'!W76) ->  | AB56: =IF('BİLGİ GİRİŞİ'!T76="","",'BİLGİ GİRİŞİ'!T76) -> 
A57: =IF('BİLGİ GİRİŞİ'!D77="","",'BİLGİ GİRİŞİ'!D77) ->  | B57: =IF('BİLGİ GİRİŞİ'!E77="","",'BİLGİ GİRİŞİ'!E77) ->  | X57: =IF('BİLGİ GİRİŞİ'!W77="","",'BİLGİ GİRİŞİ'!W77) ->  | AB57: =IF('BİLGİ GİRİŞİ'!T77="","",'BİLGİ GİRİŞİ'!T77) -> 
A58: =IF('BİLGİ GİRİŞİ'!D78="","",'BİLGİ GİRİŞİ'!D78) ->  | B58: =IF('BİLGİ GİRİŞİ'!E78="","",'BİLGİ GİRİŞİ'!E78) ->  | X58: =IF('BİLGİ GİRİŞİ'!W78="","",'BİLGİ GİRİŞİ'!W78) ->  | AB58: =IF('BİLGİ GİRİŞİ'!T78="","",'BİLGİ GİRİŞİ'!T78) -> 
A59: =IF('BİLGİ GİRİŞİ'!D79="","",'BİLGİ GİRİŞİ'!D79) ->  | B59: =IF('BİLGİ GİRİŞİ'!E79="","",'BİLGİ GİRİŞİ'!E79) ->  | X59: =IF('BİLGİ GİRİŞİ'!W79="","",'BİLGİ GİRİŞİ'!W79) ->  | AB59: =IF('BİLGİ GİRİŞİ'!T79="","",'BİLGİ GİRİŞİ'!T79) -> 
A60: =IF('BİLGİ GİRİŞİ'!D80="","",'BİLGİ GİRİŞİ'!D80) ->  | B60: =IF('BİLGİ GİRİŞİ'!E80="","",'BİLGİ GİRİŞİ'!E80) ->  | X60: =IF('BİLGİ GİRİŞİ'!W80="","",'BİLGİ GİRİŞİ'!W80) ->  | AB60: =IF('BİLGİ GİRİŞİ'!T80="","",'BİLGİ GİRİŞİ'!T80) -> 
A61: =IF('BİLGİ GİRİŞİ'!D81="","",'BİLGİ GİRİŞİ'!D81) ->  | B61: =IF('BİLGİ GİRİŞİ'!E81="","",'BİLGİ GİRİŞİ'!E81) ->  | X61: =IF('BİLGİ GİRİŞİ'!W81="","",'BİLGİ GİRİŞİ'!W81) ->  | AB61: =IF('BİLGİ GİRİŞİ'!T81="","",'BİLGİ GİRİŞİ'!T81) -> 
A62: =IF('BİLGİ GİRİŞİ'!D82="","",'BİLGİ GİRİŞİ'!D82) ->  | B62: =IF('BİLGİ GİRİŞİ'!E82="","",'BİLGİ GİRİŞİ'!E82) ->  | X62: =IF('BİLGİ GİRİŞİ'!W82="","",'BİLGİ GİRİŞİ'!W82) ->  | AB62: =IF('BİLGİ GİRİŞİ'!T82="","",'BİLGİ GİRİŞİ'!T82) -> 
A63: =IF('BİLGİ GİRİŞİ'!D83="","",'BİLGİ GİRİŞİ'!D83) ->  | B63: =IF('BİLGİ GİRİŞİ'!E83="","",'BİLGİ GİRİŞİ'!E83) ->  | X63: =IF('BİLGİ GİRİŞİ'!W83="","",'BİLGİ GİRİŞİ'!W83) ->  | AB63: =IF('BİLGİ GİRİŞİ'!T83="","",'BİLGİ GİRİŞİ'!T83) -> 
A64: =IF('BİLGİ GİRİŞİ'!D84="","",'BİLGİ GİRİŞİ'!D84) ->  | B64: =IF('BİLGİ GİRİŞİ'!E84="","",'BİLGİ GİRİŞİ'!E84) ->  | X64: =IF('BİLGİ GİRİŞİ'!W84="","",'BİLGİ GİRİŞİ'!W84) ->  | AB64: =IF('BİLGİ GİRİŞİ'!T84="","",'BİLGİ GİRİŞİ'!T84) -> 
A65: =IF('BİLGİ GİRİŞİ'!D85="","",'BİLGİ GİRİŞİ'!D85) ->  | B65: =IF('BİLGİ GİRİŞİ'!E85="","",'BİLGİ GİRİŞİ'!E85) ->  | X65: =IF('BİLGİ GİRİŞİ'!W85="","",'BİLGİ GİRİŞİ'!W85) ->  | AB65: =IF('BİLGİ GİRİŞİ'!T85="","",'BİLGİ GİRİŞİ'!T85) -> 
A66: =IF('BİLGİ GİRİŞİ'!D86="","",'BİLGİ GİRİŞİ'!D86) ->  | B66: =IF('BİLGİ GİRİŞİ'!E86="","",'BİLGİ GİRİŞİ'!E86) ->  | X66: =IF('BİLGİ GİRİŞİ'!W86="","",'BİLGİ GİRİŞİ'!W86) ->  | AB66: =IF('BİLGİ GİRİŞİ'!T86="","",'BİLGİ GİRİŞİ'!T86) -> 
A67: =IF('BİLGİ GİRİŞİ'!D87="","",'BİLGİ GİRİŞİ'!D87) ->  | B67: =IF('BİLGİ GİRİŞİ'!E87="","",'BİLGİ GİRİŞİ'!E87) ->  | X67: =IF('BİLGİ GİRİŞİ'!W87="","",'BİLGİ GİRİŞİ'!W87) ->  | AB67: =IF('BİLGİ GİRİŞİ'!T87="","",'BİLGİ GİRİŞİ'!T87) -> 
A68: =IF('BİLGİ GİRİŞİ'!D88="","",'BİLGİ GİRİŞİ'!D88) ->  | B68: =IF('BİLGİ GİRİŞİ'!E88="","",'BİLGİ GİRİŞİ'!E88) ->  | X68: =IF('BİLGİ GİRİŞİ'!W88="","",'BİLGİ GİRİŞİ'!W88) ->  | AB68: =IF('BİLGİ GİRİŞİ'!T88="","",'BİLGİ GİRİŞİ'!T88) -> 
A69: =IF('BİLGİ GİRİŞİ'!D89="","",'BİLGİ GİRİŞİ'!D89) ->  | B69: =IF('BİLGİ GİRİŞİ'!E89="","",'BİLGİ GİRİŞİ'!E89) ->  | X69: =IF('BİLGİ GİRİŞİ'!W89="","",'BİLGİ GİRİŞİ'!W89) ->  | AB69: =IF('BİLGİ GİRİŞİ'!T89="","",'BİLGİ GİRİŞİ'!T89) -> 
A71: S | B71: TEKLİF VEREN GERÇEK/TÜZEL KİŞİLER | X71: TEKLİF FİYATLARI
A72: 1 | B72: =IF('BİLGİ GİRİŞİ'!AB95="","",'BİLGİ GİRİŞİ'!AB95) -> A GERÇEK/TÜZEL KİŞİSİ | X72: =IF('BİLGİ GİRİŞİ'!AF157="","",'BİLGİ GİRİŞİ'!AF157) -> 24000
A73: 2 | B73: =IF('BİLGİ GİRİŞİ'!AJ95="","",'BİLGİ GİRİŞİ'!AJ95) -> B GERÇEK/TÜZEL KİŞİSİ | X73: =IF('BİLGİ GİRİŞİ'!AN157="","",'BİLGİ GİRİŞİ'!AN157) -> 30000
A74: 3 | B74: =IF('BİLGİ GİRİŞİ'!AR95="","",'BİLGİ GİRİŞİ'!AR95) -> D GERÇEK/TÜZEL KİŞİSİ | X74: =IF('BİLGİ GİRİŞİ'!AV157="","",'BİLGİ GİRİŞİ'!AV157) -> 36000
A76: EN UYGUN (DÜŞÜK) TEKLİFİ VEREN VE TEKLİFİ UYGUN GÖRÜLEN GERÇEK/TÜZEL KİŞİ
A77: S | B77: Adı | X77: Teklif Fiyatı
A78: 1 | B78: =IF('BİLGİ GİRİŞİ'!D161="","",'BİLGİ GİRİŞİ'!D161) -> A GERÇEK/TÜZEL KİŞİSİ | X78: =IF('BİLGİ GİRİŞİ'!AF161="","",'BİLGİ GİRİŞİ'!AF161) -> 24000
A80: Yukarıda bilgileri verilen Mal/Hizmet/Yapım İşi, idarenin belirlediği şartlar dahilinde muayenesi yapılmış olup kabule engel herhangi bir durum tespit edilmemiştir. Söz konusu işin yukarıda alım yapılması uygun görülen gerçek/tüzel kişiden Doğrudan Temin yoluyla satın alınması hususunu; Olurlarınıza arz ederim/ederiz.
A85: =IF(A88="","",IF('BİLGİ GİRİŞİ'!AH21="","",'BİLGİ GİRİŞİ'!AH21)) -> Muayene ve Kabul Görevlisi | K85: =IF(K88="","",IF('BİLGİ GİRİŞİ'!AN21="","",'BİLGİ GİRİŞİ'!AN21)) ->  | U85: =IF(U88="","",IF('BİLGİ GİRİŞİ'!AB21="","",'BİLGİ GİRİŞİ'!AB21)) -> Muayene ve Kabul Görevlisi
A86: =IF(A88="","",IF('BİLGİ GİRİŞİ'!O23="","…../…../……..",'BİLGİ GİRİŞİ'!O23)) -> 2023-03-08 | K86: =IF(K88="","",IF('BİLGİ GİRİŞİ'!O23="","…../…../……..",'BİLGİ GİRİŞİ'!O23)) ->  | U86: =IF(U88="","",IF('BİLGİ GİRİŞİ'!O23="","…../…../……..",'BİLGİ GİRİŞİ'!O23)) -> 2023-03-08
A88: =IF('BİLGİ GİRİŞİ'!AH22="","",'BİLGİ GİRİŞİ'!AH22) -> Fatma GÜNEŞ | K88: =IF('BİLGİ GİRİŞİ'!AN22="","",'BİLGİ GİRİŞİ'!AN22) ->  | U88: =IF('BİLGİ GİRİŞİ'!AB22="","",'BİLGİ GİRİŞİ'!AB22) -> Mehmet ÇELİK
A89: =IF('BİLGİ GİRİŞİ'!AH23="","",'BİLGİ GİRİŞİ'!AH23) -> Öğretmen 2 | K89: =IF(K88="","",IF('BİLGİ GİRİŞİ'!AN23="","",'BİLGİ GİRİŞİ'!AN23)) ->  | U89: =IF('BİLGİ GİRİŞİ'!AB23="","",'BİLGİ GİRİŞİ'!AB23) -> Müdür Yardımcısı 2
A92: =IF(A95="","",IF('BİLGİ GİRİŞİ'!AT21="","",'BİLGİ GİRİŞİ'!AT21)) -> OLUR/UYGUNDUR
A93: =IF(A95="","",IF('BİLGİ GİRİŞİ'!O23="","…../…../……..",'BİLGİ GİRİŞİ'!O23)) -> 2023-03-08
A95: =IF('BİLGİ GİRİŞİ'!AT22="","",'BİLGİ GİRİŞİ'!AT22) -> Mustafa AYDIN
A96: =IF(A95="","",'BİLGİ GİRİŞİ'!AT23) -> Okul Müdürü
A98: Ek: Piyasa Fiyat Araştırma Tutanağı

Sheet KAPAK
A4: T.C.
A5: =IF('BİLGİ GİRİŞİ'!O7="","",'BİLGİ GİRİŞİ'!O7) -> BULANIK KAYMAKAMLIĞI
A6: =IF('BİLGİ GİRİŞİ'!O8="","",'BİLGİ GİRİŞİ'!O8) -> Atatürk İlkokulu Müdürlüğü
A10: =IF('BİLGİ GİRİŞİ'!O11="","",CONCATENATE('BİLGİ GİRİŞİ'!O11," DOĞRUDAN TEMİN NUMARALI")) -> 22DT1211930 DOĞRUDAN TEMİN NUMARALI
A11: =UPPER(IF('BİLGİ GİRİŞİ'!O9="","",'BİLGİ GİRİŞİ'!O9)) -> BİLİŞİM MALZEMELERİ ALIMI
A15: DOĞRUDAN TEMİN İŞLEM DOSYASI DİZİ PUSULASI
A16: S.N | B16: Belge Adı | AB16: Sayfa Sayısı
A17: 1 | B17: Ödeme Emri Belgesi | AB17: 1
A18: 2 | B18: Fatura | AB18: 1
A19: 3 | B19: Harcama Talimatı | AB19: 1
A20: 4 | B20: Taşınır İşlem Fişi | AB20: 1
A21: 5 | B21: Varlık İşlem Fişi | AB21: 1
A22: 6 | B22: Vergi Borcu Yok Belgesi (Yüklenici) | AB22: 1
A23: 7 | B23: Alım/Görevlendirme Onayı | AB23: 1
A24: 8 | B24: Yaklaşık Maliyet Araştırma (Piyasa Fiyatları) Belgeleri/Mektupları | AB24: 3
A25: 9 | B25: Doğrudan Temin Onay Belgesi ve Eki Yaklaşık Maliyet Hesap Cetveli | AB25: 2
A26: 10 | B26: Piyasa Fiyat Araştırma (Teklif Edilen Fiyalar) Belgeleri/Mektupları | AB26: 3
A27: 11 | B27: Muayene ve Kabul Tutanağı (Doğrudan Temin Sonuç Onay Belgesi) ve Eki Piyasa Fiyat Araştırma Tutanağı | AB27: 2
A33: TOPLAM | AB33: =SUM(AB17:AB27) -> 17
A36: İş Bu Dosya | D36: =(AB33) -> 17 | F36: Sayfadan İbarettir.
A41: =IF('BİLGİ GİRİŞİ'!AT22="","",'BİLGİ GİRİŞİ'!AT22) -> Mustafa AYDIN
A42: =IF(A41="","",'BİLGİ GİRİŞİ'!AT23) -> Okul Müdürü
